Workbook

Sheet Input (hidden)
A1: Parametri
A2: Età | B2: =+Dashboard!C8 -> 43
A3: Patrimonio finanziario | B3: =+Dashboard!C11 -> 500000
A4: Patrimonio complessivo | B4: =+Dashboard!C14 -> 600000
A6: Reddito annuo (netto) | B6: =+Dashboard!G11 -> 50000
A7: Capacità risparmio | B7: =IF(+Dashboard!G14<0.1,0.1,+Dashboard!G14) -> 0.2
A8: Profilo di rischio | B8: =+Dashboard!G8 -> 5
A11: Logiche da applicare | B11: più capacità di risparmio ha (in percentuale) più significa che il reddito è più che sufficiente
A12: La parte di breve termine: | B12: ( il fabbisogno finanziario per un anno - capacità di risparmio) * Età / 100
A13: La parte a lungo termine | B13: non deve essere negativa; al massimo solo il pac
A14: La parte a medio termine | B14: deve essere scomposta: 1/4 su lungo termine; 1/4 liquidità e 50% in medio termine

Sheet Dashboard
D3: INSERIMENTO DATI DEL CLIENTE
B5: NOME: | C5: Cesare | F5: COGNOME: | G5: Nistri
B8: ETA': | C8: 43 | F8: PROFILO DI RISCHIO: | G8: 5
A11: PATRIMONIO FINANZIARIO: | C11: 500000 | F11: REDDITO ANNUO: | G11: 50000
A14: PATRIMONIO TOTALE: | C14: 600000 | F14: CAPACITA' DI RISPARMIO: | G14: 0.2
B23: Il presente simulatore non costituisce nessun tipo di attività di consulenza o di promozione; il suo utilizzo è ad esclusivo scopo dimostrativo e non può essere inteso come strumento di valutazione da parte di consulenti finanziari e ne tantomeno da clienti per prendere scelte di investimento. Qualunque uso improprio dello stesso verrà perseguito da Diaman Partners Ltd che ne possiede i diritti di utilizzo ad uso esclusivo. L'utilizzo dello stesso a livello professionale è possibile esclusivamente previa autorizzazione della società Diaman partners Ltd.

Sheet Motori (hidden)
A1: Investment Saving Account | H1: Long Term | O1: Medium Term | V1: Short Term
A2: PAC | C2: annuale | D2: mensile | J2: annuale | K2: mensile | O2: PAC | Q2: annuale | R2: mensile | V2: PAC | X2: annuale | Y2: mensile | AD2: annuale | AE2: mensile | AH2: annuale | AI2: mensile
A3: media | C3: 0.06 | D3: =(1+C3)^(1/12)-1 -> 0.004867550565 | H3: media | J3: 0.06 | K3: =(1+J3)^(1/12)-1 -> 0.004867550565 | O3: media | Q3: 0.03 | R3: =(1+Q3)^(1/12)-1 -> 0.002466269772 | V3: media | X3: 0.01 | Y3: =(1+X3)^(1/12)-1 -> 0.0008295381143 | AD3: 0.01 | AE3: =(1+AD3)^(1/12)-1 -> 0.0008295381143 | AH3: 0.01 | AI3: =(1+AH3)^(1/12)-1 -> 0.0008295381143
A4: dev.st | C4: 0.15 | D4: =C4/SQRT(12) -> 0.04330127019 | H4: dev.st | J4: 0.15 | K4: =J4/SQRT(12) -> 0.04330127019 | O4: dev.st | Q4: =+Q3*1.75 -> 0.0525 | R4: =Q4/SQRT(12) -> 0.01515544457 | V4: dev.st | X4: 0.03 | Y4: =X4/SQRT(12) -> 0.008660254038 | AD4: 0.03 | AE4: =AD4/SQRT(12) -> 0.008660254038 | AH4: 0.03 | AI4: =AH4/SQRT(12) -> 0.008660254038
A5: Rata mensile | D5: =+output!$F$8 -> 800 | H5: Rata mensile | K5: 0 | O5: Rata mensile | R5: 0 | V5: Rata mensile | Y5: 0 | AE5: 0 | AI5: 0
A6: Capitale iniziale | D6: =+output!G8 -> 9600 | H6: Capitale iniziale | K6: =+output!H10 -> 151271.8299 | O6: Capitale iniziale | R6: =+output!H16 -> 314179.9544 | V6: Capitale iniziale | Y6: =+output!H21 -> 24948.21564 | AE6: =+output!J21 -> 0 | AI6: =+output!N21 -> 0
A7: Numero di Rate | C7: 204 | H7: Numero di Rate | J7: 0 | O7: Numero di Rate | Q7: 0 | V7: Numero di Rate | X7: 0 | AD7: 0 | AH7: 0
C8: Stimate | J8: Stimate | Q8: Stimate | X8: Stimate
B9: MESI | C9: -sigma | D9: media | E9: +sigma | F9: var | G9: sigma | I9: MESI | J9: -sigma | K9: media | L9: +sigma | M9: var | N9: sigma | P9: MESI | Q9: -sigma | R9: media | S9: +sigma | T9: var | U9: sigma | W9: MESI | X9: -sigma | Y9: media | Z9: +sigma | AA9: var | AB9: sigma | AC9: MESI | AD9: -sigma | AE9: media | AF9: +sigma | AG9: MESI | AH9: -sigma | AI9: media | AJ9: +sigma | AM9: -sigma | AN9: media | AO9: +sigma | AR9: -sigma | AS9: media | AT9: +sigma | AW9: -sigma | AX9: media | AY9: +sigma | BB9: -sigma | BC9: media | BD9: +sigma
B10: 0 | C10: =+$D$6 -> 9600 | D10: =+$D$6 -> 9600 | E10: =+$D$6 -> 9600 | I10: 0 | J10: =+K6 -> 151271.8299 | K10: =+$K$6 -> 151271.8299 | L10: =+K6 -> 151271.8299 | P10: 0 | Q10: =+R6 -> 314179.9544 | R10: =+$R$6 -> 314179.9544 | S10: =+R6 -> 314179.9544 | W10: 0 | X10: =+Y6 -> 24948.21564 | Y10: =+$Y$6 -> 24948.21564 | Z10: =+Y6 -> 24948.21564 | AC10: 0 | AD10: =+J10+Q10+X10 -> 490400 | AE10: =+K10+R10+Y10 -> 490400 | AF10: =+L10+S10+Z10 -> 490400 | AG10: 0 | AH10: =+AD10+C10 -> 500000 | AI10: =+AE10+D10 -> 500000 | AJ10: 500000 | AK10: 0 | AL10: =+Dashboard!C8 -> 43 | AM10: =VLOOKUP($AK10,$AC10:$AF370,2,FALSE) -> 490400 | AN10: =VLOOKUP($AK10,$AC10:$AF370,3,FALSE) -> 490400 | AO10: =VLOOKUP($AK10,$AC10:$AF370,4,FALSE) -> 490400 | AP10: 0 | AQ10: =+AL10 -> 43 | AR10: =VLOOKUP($AK10,$B10:$E370,2,FALSE) -> 9600 | AS10: =VLOOKUP($AK10,$B10:$E370,3,FALSE) -> 9600 | AT10: =VLOOKUP($AK10,$B10:$E370,4,FALSE) -> 9600 | AU10: 0 | AV10: =+AQ10 -> 43 | AW10: =VLOOKUP($AK10,$B10:$E370,2,FALSE) -> 9600 | AX10: =VLOOKUP($AK10,$B10:$E370,3,FALSE) -> 9600 | AY10: =VLOOKUP($AK10,$B10:$E370,4,FALSE) -> 9600 | AZ10: 0 | BA10: =+AV10 -> 43 | BB10: =+AW10+AM10 -> 500000 | BC10: =+AX10+AN10 -> 500000 | BD10: 500000
B11: 1 | C11: =+D10-G11+$D$5 -> 9984.307806 | D11: =+D10*(1+$D$3)+$D$5 -> 10446.72849 | E11: =D10+G11+$D$5 -> 10815.69219 | F11: =(D10^2)*(D4^2) -> 172800 | G11: =SQRT(F11) -> 415.6921938 | I11: 1 | J11: =+K10-N11+$K$5 -> 144721.5675 | K11: =+K10*(1+$K$3)+$K$5 -> 152008.1532 | L11: =K10+N11+$K$5 -> 157822.0923 | M11: =(K10^2)*(K4^2) -> 42905937.24 | N11: =SQRT(M11) -> 6550.262379 | P11: 1 | Q11: =+R10-U11+$R$5 -> 309418.4176 | R11: =+R10*(1+$R$3)+$R$5 -> 314954.807 | S11: =R10+U11+$R$5 -> 318941.4913 | T11: =(R10^2)*(R4^2) -> 22672233.49 | U11: =SQRT(T11) -> 4761.536883 | W11: 1 | X11: =+Y10-AB11+$Y$5 -> 24732.15776 | Y11: =+Y10*(1+$Y$3)+$Y$5 -> 24968.91114 | Z11: =Y10+AB11+$Y$5 -> 25164.27353 | AA11: =(Y10^2)*(Y4^2) -> 46681.00978 | AB11: =SQRT(AA11) -> 216.0578852 | AC11: 1 | AD11: =+J11+Q11+X11 -> 478872.1429 | AE11: =+K11+R11+Y11 -> 491931.8713 | AF11: =+L11+S11+Z11 -> 501927.8571 | AG11: 1 | AH11: =+AD11+C11 -> 488856.4507 | AI11: =+AE11+D11 -> 502378.5998 | AJ11: =+AF11+E11 -> 512743.5493 | AK11: 12 | AL11: =+AL10+1 -> 44 | AM11: =VLOOKUP($AK11,$AC11:$AF371,2,FALSE) -> 465785.4644 | AN11: =VLOOKUP($AK11,$AC11:$AF371,3,FALSE) -> 509151.1906 | AO11: =VLOOKUP($AK11,$AC11:$AF371,4,FALSE) -> 549329.4334 | AP11: 12 | AQ11: =+AQ10+1 -> 44 | AR11: =VLOOKUP($AK11,$B11:$E371,2,FALSE) -> 17693.89143 | AS11: =VLOOKUP($AK11,$B11:$E371,3,FALSE) -> 20037.22267 | AT11: =VLOOKUP($AK11,$B11:$E371,4,FALSE) -> 22194.18477 | AU11: 12 | AV11: =+AV10+1 -> 44 | AW11: =IF($AV11>67,+AW10,AR11) -> 17693.89143 | AX11: =IF($AV11>67,+AX10,AS11) -> 20037.22267 | AY11: 22194.18477 | AZ11: 12 | BA11: =+BA10+1 -> 44 | BB11: =+AW11+AM11 -> 483479.3558 | BC11: =+AX11+AN11 -> 529188.4133 | BD11: =+AY11+AO11 -> 571523.6182
B12: 2 | C12: 10630.74405 | D12: 11297.57846 | E12: 11862.71292 | F12: =F11*($D$4^2)+(D11^2)*($D$4^2)+((1+$D$3)^2)*F11 -> 379436.8247 | G12: =SQRT(F12) -> 615.9844355 | I12: 2 | J12: =+K11-N12+$K$5 -> 142695.2727 | K12: 152748.0606 | L12: =K11+N12+$K$5 -> 161321.0337 | M12: =M11*($K$4^2)+(K11^2)*($K$4^2)+((1+$K$3)^2)*M11 -> 86729743.53 | N12: =SQRT(M12) -> 9312.880517 | P12: 2 | Q12: =+R11-U12+$R$5 -> 308203.9838 | R12: 315731.5705 | S12: =R11+U12+$R$5 -> 321705.6302 | T12: =T11*($R$4^2)+(R11^2)*($R$4^2)+((1+$R$3)^2)*T11 -> 45573613.7 | U12: =SQRT(T12) -> 6750.823187 | W12: 2 | X12: =+Y11-AB12+$Y$5 -> 24663.09995 | Y12: 24989.6238 | Z12: =Y11+AB12+$Y$5 -> 25274.72232 | AA12: =AA11*($Y$4^2)+(Y11^2)*($Y$4^2)+((1+$Y$3)^2)*AA11 -> 93520.47958 | AB12: =SQRT(AA12) -> 305.8111829 | AC12: 2 | AD12: 475562.3564 | AE12: 493469.2549 | AF12: 508301.3862 | AG12: 2 | AH12: 486193.1005 | AI12: 504766.8333 | AJ12: 520164.0991 | AK12: 24 | AL12: =+AL11+1 -> 45 | AM12: 465002.0955 | AN12: 528732.2165 | AO12: 589133.4618 | AP12: 24 | AQ12: =+AQ11+1 -> 45 | AR12: 26374.56698 | AS12: 31100.67871 | AT12: 35533.23914 | AU12: 24 | AV12: =+AV11+1 -> 45 | AW12: =IF($AV12>67,+AW11,AR12) -> 26374.56698 | AX12: =IF($AV12>67,+AX11,AS12) -> 31100.67871 | AY12: =IF($AV12>67,+AY11,AT12) -> 35533.23914 | AZ12: 24 | BA12: =+BA11+1 -> 45 | BB12: 491376.6625 | BC12: 559832.8952 | BD12: 624666.7009
B13: 3 | C13: 11308.16903 | D13: 12152.57 | E13: 12886.9879 | F13: =F12*($D$4^2)+(D12^2)*($D$4^2)+((1+$D$3)^2)*F12 -> 623167.2631 | G13: =SQRT(F13) -> 789.4094394 | I13: 3 | J13: 141281.3181 | K13: 153491.5695 | L13: 164214.8031 | M13: 131486183.3 | N13: =SQRT(M13) -> 11466.74249 | P13: 3 | Q13: 307442.6696 | R13: 316510.2497 | S13: 324020.4714 | T13: 68705877.89 | U13: =SQRT(T13) -> 8288.900885 | W13: 3 | X13: 24614.76541 | Y13: 25010.35365 | Z13: 25364.48219 | AA13: 140518.8129 | AB13: =SQRT(AA13) -> 374.8583905 | AC13: 3 | AD13: 473338.7531 | AE13: 495012.1728 | AF13: 513599.7566 | AG13: 3 | AH13: 484646.9221 | AI13: 507164.7428 | AJ13: 526486.7445 | AK13: 36 | AL13: 46 | AM13: 467557.502 | AN13: 549184.2604 | AO13: 627333.7209 | AP13: 36 | AQ13: 46 | AR13: 35143.83791 | AS13: 42827.9421 | AT13: 50104.88193 | AU13: 36 | AV13: 46 | AW13: 35143.83791 | AX13: 42827.9421 | AY13: 50104.88193 | AZ13: 36 | BA13: 46 | BB13: 502701.3399 | BC13: 592012.2025 | BD13: 677438.6029
B14: 4 | C14: 12000.0332 | D14: 13011.72325 | E14: 13905.1068 | F14: =F13*($D$4^2)+(D13^2)*($D$4^2)+((1+$D$3)^2)*F13 -> 907326.3582 | G14: =SQRT(F14) -> 952.5368015 | I14: 4 | J14: 140180.2873 | K14: 154238.6975 | L14: 166802.8516 | M14: 177190232.5 | N14: =SQRT(M14) -> 13311.28215 | P14: 4 | Q14: 306914.898 | R14: 317290.8494 | S14: 326105.6015 | T14: 92070775.06 | U14: =SQRT(T14) -> 9595.351742 | W14: 4 | X14: 24577.13729 | Y14: 25031.10069 | Z14: 25443.57001 | AA14: 187676.4141 | AB14: =SQRT(AA14) -> 433.2163595 | AC14: 4 | AD14: 471672.3226 | AE14: 496560.6475 | AF14: 518352.0231 | AG14: 4 | AH14: 483672.3558 | AI14: 509572.3708 | AJ14: 532257.1299 | AK14: 48 | AL14: 47 | AM14: 471757.0412 | AN14: 570550.7199 | AO14: 665711.2705 | AP14: 48 | AQ14: 47 | AR14: 44011.83161 | AS14: 55258.8413 | AT14: 65978.25676 | AU14: 48 | AV14: 47 | AW14: 44011.83161 | AX14: 55258.8413 | AY14: 65978.25676 | AZ14: 48 | BA14: 47 | BB14: 515768.8728 | BC14: 625809.5612 | BD14: 731689.5272
B15: 5 | C15: 12700.2698 | D15: 13875.05847 | E15: 14923.1767 | F15: 1235328.772 | G15: 1111.45345 | I15: 5 | J15: 139276.8432 | K15: 154989.4621 | L15: 169200.5517 | M15: 223857081.8 | N15: 14961.85422 | P15: 5 | Q15: 306535.8475 | R15: 318073.3742 | S15: 328045.8513 | T15: 115670066 | U15: 10755.0019 | W15: 5 | X15: 24546.33921 | Y15: 25051.86494 | Z15: 25515.86216 | AA15: 234993.6886 | AB15: 484.761476 | AC15: 5 | AD15: 470359.0299 | AE15: 498114.7013 | AF15: 522762.2651 | AG15: 5 | AH15: 483059.2997 | AI15: 511989.7597 | AJ15: 537685.4418 | AK15: 60 | AL15: 48 | AM15: 476960.8098 | AN15: 592877.3332 | AO15: 704997.0901 | AP15: 60 | AQ15: 48 | AR15: 52992.64768 | AS15: 68435.59446 | AT15: 83223.29134 | AU15: 60 | AV15: 48 | AW15: 52992.64768 | AX15: 68435.59446 | AY15: 83223.29134 | AZ15: 60 | BA15: 48 | BB15: 529953.4575 | BC15: 661312.9276 | BD15: 788220.3814
B16: 6 | C16: 13405.93666 | D16: 14742.59602 | E16: 15944.18028 | F16: 1610670.172 | G16: 1269.121811 | I16: 6 | J16: 138512.1401 | K16: 155743.8812 | L16: 171466.7841 | M16: 271502139.1 | N16: 16477.32196 | P16: 6 | Q16: 306262.1286 | R16: 318857.829 | S16: 329884.6198 | T16: 139505523.3 | U16: 11811.24563 | W16: 6 | X16: 24520.38489 | Y16: 25072.64642 | Z16: 25583.34499 | AA16: 282471.0426 | AB16: 531.4800491 | AC16: 6 | AD16: 469294.6536 | AE16: 499674.3565 | AF16: 526934.7489 | AG16: 6 | AH16: 482700.5903 | AI16: 514416.9525 | AJ16: 542878.9292 | AK16: 72 | AL16: 49 | AM16: 482843.1366 | AN16: 616212.3116 | AO16: 745612.8509 | AP16: 72 | AQ16: 49 | AR16: 62096.39066 | AS16: 82402.9528 | AT16: 101918.9501 | AU16: 72 | AV16: 49 | AW16: 62096.39066 | AX16: 82402.9528 | AY16: 101918.9501 | AZ16: 72 | BA16: 49 | BB16: 544939.5273 | BC16: 698615.2644 | BD16: 847531.801
B17: 7 | C17: 14115.38593 | D17: 15614.35635 | E17: 16969.80611 | F17: 2036928.635 | G17: 1427.210088 | I17: 7 | J17: 137851.3958 | K17: 156501.9724 | L17: 173636.3665 | M17: 320141032.6 | N17: 17892.48537 | P17: 7 | Q17: 306068.031 | R17: 319644.2184 | S17: 331647.6269 | T17: 163578931.5 | U17: 12789.79795 | W17: 7 | X17: 24498.09539 | Y17: 25093.44513 | Z17: 25647.19744 | AA17: 330108.8831 | AB17: 574.5510275 | AC17: 7 | AD17: 468417.5222 | AE17: 501239.6359 | AF17: 530931.1909 | AG17: 7 | AH17: 482532.9081 | AI17: 516853.9922 | AJ17: 547900.997 | AK17: 84 | AL17: 50 | AM17: 489207.9124 | AN17: 640606.4798 | AO17: 787855.8646 | AP17: 84 | AQ17: 50 | AR17: 71329.16463 | AS17: 97208.35264 | AT17: 122153.5419 | AU17: 84 | AV17: 50 | AW17: 71329.16463 | AX17: 97208.35264 | AY17: 122153.5419 | AZ17: 84 | BA17: 50 | BB17: 560537.0771 | BC17: 737814.8324 | BD17: 910009.4064
B18: 8 | C18: 14827.60934 | D18: 16490.36002 | E18: 18001.10336 | F18: 2517766.076 | G18: 1586.747011 | I18: 8 | J18: 137272.0578 | K18: 157263.7536 | L18: 175731.8869 | M18: 369789613.8 | N18: 19229.91455 | P18: 8 | Q18: 305936.8449 | R18: 320432.5473 | S18: 333351.5918 | T18: 187892087.2 | U18: 13707.37346 | W18: 8 | X18: 24478.70322 | Y18: 25114.2611 | Z18: 25708.18704 | AA18: 377907.6184 | AB18: 614.741912 | AC18: 8 | AD18: 467687.606 | AE18: 502810.562 | AF18: 534791.6658 | AG18: 8 | AH18: 482515.2153 | AI18: 519300.922 | AJ18: 552792.7692 | AK18: 96 | AL18: 51 | AM18: 495922.2558 | AN18: 666113.4239 | AO18: 831965.7131 | AP18: 96 | AQ18: 51 | AR18: 80693.64563 | AS18: 112902.0765 | AT18: 144024.4686 | AU18: 96 | AV18: 51 | AW18: 80693.64563 | AX18: 112902.0765 | AY18: 144024.4686 | AZ18: 96 | BA18: 51 | BB18: 576615.9015 | BC18: 779015.5004 | BD18: 975990.1817
B19: 9 | C19: 15541.95226 | D19: 17370.62768 | E19: 19038.76778 | F19: 3056929.699 | G19: 1748.407761 | I19: 9 | J19: 136758.5358 | K19: 158029.2429 | L19: 177768.9715 | M19: 420463960.4 | N19: 20505.21788 | P19: 9 | Q19: 305856.9924 | R19: 321222.8204 | S19: 335008.1021 | T19: 212446799.1 | U19: 14575.55485 | W19: 9 | X19: 24461.67574 | Y19: 25135.09434 | Z19: 25766.84647 | AA19: 425867.6574 | AB19: 652.5853641 | AC19: 9 | AD19: 467077.2039 | AE19: 504387.1576 | AF19: 538543.9201 | AG19: 9 | AH19: 482619.1562 | AI19: 521757.7853 | AJ19: 557582.6879 | AK19: 108 | AL19: 52 | AM19: 502887.3445 | AN19: 692789.6492 | AO19: 878153.7302 | AP19: 108 | AQ19: 52 | AR19: 90189.51404 | AS19: 129537.4237 | AT19: 167638.1324 | AU19: 108 | AV19: 52 | AW19: 90189.51404 | AX19: 129537.4237 | AY19: 167638.1324 | AZ19: 108 | BA19: 52 | BB19: 593076.8585 | BC19: 822327.0729 | BD19: 1045791.863
B20: 10 | C20: 16257.97155 | D20: 18255.18009 | E20: 20083.28381 | F20: 3658253.464 | G20: 1912.656128 | I20: 10 | J20: 136299.531 | K20: 158798.4582 | L20: 179758.9548 | M20: 472180379.6 | N20: 21729.71191 | P20: 10 | Q20: 305820.0645 | R20: 322015.0425 | S20: 336625.5762 | T20: 237244887.9 | U20: 15402.75586 | W20: 10 | X20: 24446.62545 | Y20: 25155.94486 | Z20: 25823.56323 | AA20: 473989.41 | AB20: 688.4688882 | AC20: 10 | AD20: 466566.221 | AE20: 505969.4456 | AF20: 542208.0943 | AG20: 10 | AH20: 482824.1925 | AI20: 524224.6257 | AJ20: 562291.3781 | AK20: 120 | AL20: 53 | AM20: 510023.7434 | AN20: 720694.746 | AO20: 926618.0041 | AP20: 120 | AQ20: 53 | AR20: 99813.71122 | AS20: 147170.8918 | AT20: 193110.0393 | AU20: 120 | AV20: 53 | AW20: 99813.71122 | AX20: 147170.8918 | AY20: 193110.0393 | AZ20: 120 | BA20: 53 | BB20: 609837.4546 | BC20: 867865.6378 | BD20: 1119728.043
B21: 11 | C21: 16975.35808 | D21: 19144.0381 | E21: 21135.0021 | F21: 4325659.582 | G21: 2079.822007 | I21: 11 | J21: 135886.5528 | K21: 159571.4178 | L21: 181710.3637 | M21: 524955410.9 | N21: 22911.90544 | P21: 11 | Q21: 305819.7288 | R21: 322809.2185 | S21: 338210.3562 | T21: 262288186.8 | U21: 16195.31373 | W21: 11 | X21: 24433.26008 | Y21: 25176.81267 | Z21: 25878.62963 | AA21: 522273.287 | AB21: 722.6847771 | AC21: 11 | AD21: 466139.5416 | AE21: 507557.4489 | AF21: 545799.3495 | AG21: 11 | AH21: 483114.8997 | AI21: 526701.487 | AJ21: 566934.3516 | AK21: 132 | AL21: 54 | AM21: 517263.2526 | AN21: 749891.5656 | AO21: 977551.8801 | AP21: 132 | AQ21: 54 | AR21: 109560.561 | AS21: 165862.368 | AT21: 220565.0599 | AU21: 132 | AV21: 54 | AW21: 109560.561 | AX21: 165862.368 | AY21: 220565.0599 | AZ21: 132 | BA21: 54 | BB21: 626823.8136 | BC21: 915753.9336 | BD21: 1198116.94
B22: 12 | C22: 17693.89143 | D22: 20037.22267 | E22: 22194.18477 | F22: 5063160.03 | G22: 2250.146669 | I22: 12 | J22: 135513.034 | K22: 160348.1397 | L22: 183629.8015 | M22: 578805829.1 | N22: 24058.38376 | P22: 12 | Q22: 305851.0776 | R22: 323605.3531 | S22: 339767.3593 | T22: 287578541.1 | U22: 16958.14085 | W22: 12 | X22: 24421.35275 | Y22: 25197.6978 | Z22: 25932.2726 | AA22: 570719.7004 | AB22: 755.4599264 | AC22: 12 | AD22: 465785.4644 | AE22: 509151.1906 | AF22: 549329.4334 | AG22: 12 | AH22: 483479.3558 | AI22: 529188.4133 | AJ22: 571523.6182 | AK22: 144 | AL22: 55 | AM22: 524544.0001 | AN22: 780446.4068 | AO22: 1031149.238 | AP22: 144 | AQ22: 55 | AR22: 119421.7927 | AS22: 185675.3328 | AT22: 250137.8108 | AU22: 144 | AV22: 55 | AW22: 119421.7927 | AX22: 185675.3328 | AY22: 250137.8108 | AZ22: 144 | BA22: 55 | BB22: 643965.7929 | BC22: 966121.7395 | BD22: 1281287.049
B23: 13 | C23: 18413.41202 | D23: 20934.75487 | E23: 23261.03333 | F23: 5874858.09 | G23: 2423.810655 | I23: 13 | J23: 135173.7748 | K23: 161128.6424 | L23: 185522.5046 | M23: 633748648.1 | N23: 25174.3649 | P23: 13 | Q23: 305910.2179 | R23: 324403.4512 | S23: 341300.4882 | T23: 313117808.5 | U23: 17695.13517 | W23: 13 | X23: 24410.72317 | Y23: 25218.60025 | Z23: 25984.67242 | AA23: 619329.0626 | AB23: 786.9746264 | AC23: 13 | AD23: 465494.7159 | AE23: 510750.6938 | AF23: 552807.6653 | AG23: 13 | AH23: 483908.1279 | AI23: 531685.4487 | AJ23: 576068.6986 | AK23: 156 | AL23: 56 | AM23: 531807.2763 | AN23: 812429.2128 | AO23: 1087608.052 | AP23: 156 | AQ23: 56 | AR23: 129386.4911 | AS23: 206677.0754 | AT23: 281973.134 | AU23: 156 | AV23: 56 | AW23: 129386.4911 | AX23: 206677.0754 | AY23: 281973.134 | AZ23: 156 | BA23: 56 | BB23: 661193.7674 | BC23: 1019106.288 | BD23: 1369581.186
B24: 14 | C24: 19133.80314 | D24: 21836.65585 | E24: 24335.7066 | F24: 6764949.908 | G24: 2600.951731 | I24: 14 | J24: 134864.5771 | K24: 161912.9442 | L24: 187392.7076 | M24: 689801123.3 | N24: 26264.06525 | P24: 14 | Q24: 305994.0009 | R24: 325203.5176 | S24: 342812.9014 | T24: 338907859.3 | U24: 18409.45027 | W24: 14 | X24: 24401.22531 | Y24: 25239.52004 | Z24: 26035.97519 | AA24: 668101.7875 | AB24: 817.3749369 | AC24: 14 | AD24: 465259.8034 | AE24: 512355.9818 | AF24: 556241.5843 | AG24: 14 | AH24: 484393.6065 | AI24: 534192.6377 | AJ24: 580577.2909 | AK24: 168 | AL24: 57 | AM24: 538995.3572 | AN24: 845913.78 | AO24: 1147132.979 | AP24: 168 | AQ24: 57 | AR24: 139440.9891 | AS24: 228938.9226 | AT24: 316226.6589 | AU24: 168 | AV24: 57 | AW24: 139440.9891 | AX24: 228938.9226 | AY24: 316226.6589 | AZ24: 168 | BA24: 57 | BB24: 678436.3462 | BC24: 1074852.703 | BD24: 1463359.638
B25: 15 | C25: 19854.979 | D25: 22742.94687 | E25: 25418.33269 | F25: 7737726.077 | G25: 2781.676846 | I25: 15 | J25: 134581.9955 | K25: 162701.0636 | L25: 189243.8929 | M25: 746980755.4 | N25: 27330.94867 | P25: 15 | Q25: 306099.8379 | R25: 326005.5572 | S25: 344307.1973 | T25: 364950576.3 | U25: 19103.67965 | W25: 15 | X25: 24392.7389 | Y25: 25260.45718 | Z25: 26086.30117 | AA25: 717038.2896 | AB25: 846.7811344 | AC25: 15 | AD25: 465074.5724 | AE25: 513967.078 | AF25: 559637.3913 | AG25: 15 | AH25: 484929.5514 | AI25: 536710.0249 | AJ25: 585055.724 | AK25: 180 | AL25: 58 | AM25: 546049.9142 | AN25: 880977.9792 | AO25: 1209937.393 | AP25: 180 | AQ25: 58 | AR25: 149568.7137 | AS25: 252536.4806 | AT25: 353065.4385 | AU25: 180 | AV25: 58 | AW25: 149568.7137 | AX25: 252536.4806 | AY25: 353065.4385 | AZ25: 180 | BA25: 58 | BB25: 695618.6279 | BC25: 1133514.46 | BD25: 1563002.831
B26: 16 | C26: 20576.87653 | D26: 23653.64932 | E26: 26509.01721 | F26: 8797573.251 | G26: 2966.070338 | I26: 16 | J26: 134323.1621 | K26: 163493.0193 | L26: 191078.9651 | M26: 805305293.5 | N26: 28377.9015 | P26: 16 | Q26: 306225.571 | R26: 326809.5749 | S26: 345785.5434 | T26: 391247854.8 | U26: 19779.98622 | W26: 16 | X26: 24385.16353 | Y26: 25281.41169 | Z26: 26135.75084 | AA26: 766138.9843 | AB26: 875.293656 | AC26: 16 | AD26: 464933.8967 | AE26: 515584.0059 | AF26: 563000.2594 | AG26: 16 | AH26: 485510.7732 | AI26: 539237.6552 | AJ26: 589509.2766 | AK26: 192 | AL26: 59 | AM26: 552910.7811 | AN26: 917703.9888 | AO26: 1276245.08 | AP26: 192 | AQ26: 59 | AR26: 159749.9918 | AS26: 277549.8921 | AT26: 392668.6549 | AU26: 192 | AV26: 59 | AW26: 159749.9918 | AX26: 277549.8921 | AY26: 392668.6549 | AZ26: 192 | BA26: 59 | BB26: 712660.7729 | BC26: 1195253.881 | BD26: 1668913.735
B27: 17 | C27: 21299.44961 | D27: 24568.78465 | E27: 27607.84902 | F27: 9948975.768 | G27: 3154.199703 | I27: 17 | J27: 134085.6607 | K27: 164288.8298 | L27: 192900.3779 | M27: 864792738.3 | N27: 29407.35857 | P27: 17 | Q27: 306369.3791 | R27: 327615.5754 | S27: 347249.7706 | T27: 417801603 | U27: 20440.19577 | W27: 17 | X27: 24378.4143 | Y27: 25302.38359 | Z27: 26184.40909 | AA27: 815404.2882 | AB27: 902.997391 | AC27: 17 | AD27: 464833.4541 | AE27: 517206.7889 | AF27: 566334.5576 | AG27: 17 | AH27: 486132.9037 | AI27: 541775.5735 | AJ27: 593942.4066 | AK27: 204 | AL27: 60 | AM27: 559514.9423 | AN27: 956178.543 | AO27: 1346291.746 | AP27: 204 | AQ27: 60 | AR27: 169961.818 | AS27: 304064.1083 | AT27: 435228.3928 | AU27: 204 | AV27: 60 | AW27: 169961.818 | AX27: 304064.1083 | AY27: 435228.3928 | AZ27: 204 | BA27: 60 | BB27: 729476.7602 | BC27: 1260242.651 | BD27: 1781520.139
B28: 18 | C28: 22022.66491 | D28: 25488.37445 | E28: 28714.90439 | F28: 11196517.32 | G28: 3346.11974 | I28: 18 | J28: 133867.4337 | K28: 165088.514 | L28: 194710.226 | M28: 925461345.8 | N28: 30421.39618 | P28: 18 | Q28: 306529.7095 | R28: 328423.5638 | S28: 348701.4414 | T28: 444613741.8 | U28: 21085.86593 | W28: 18 | X28: 24372.41874 | Y28: 25323.37288 | Z28: 26232.34844 | AA28: 864834.6187 | AB28: 929.9648481 | AC28: 18 | AD28: 464769.5619 | AE28: 518835.4507 | AF28: 569644.0158 | AG28: 18 | AH28: 486792.2268 | AI28: 544323.8252 | AJ28: 598358.9202 | AK28: 216 | AL28: 61 | AM28: 565795.6565 | AN28: 996493.1936 | AO28: 1420326.412 | AP28: 216 | AQ28: 61 | AR28: 180177.588 | AS28: 332169.1775 | AT28: 480950.4808 | AU28: 216 | AV28: 61 | AW28: 180177.588 | AX28: 332169.1775 | AY28: 480950.4808 | AZ28: 216 | BA28: 61 | BB28: 745973.2446 | BC28: 1328662.371 | BD28: 1901276.893
B29: 19 | C29: 22746.49888 | D29: 26412.4404 | E29: 29830.25003 | F29: 12544882.6 | G29: 3541.875577 | I29: 19 | J29: 133666.7122 | K29: 165892.0907 | L29: 196510.3159 | M29: 987329630.4 | N29: 31421.80183 | P29: 19 | Q29: 306705.2258 | R29: 329233.5449 | S29: 350141.9018 | T29: 471686204.9 | U29: 21718.33799 | W29: 19 | X29: 24367.11434 | Y29: 25344.37958 | Z29: 26279.63142 | AA29: 914430.394 | AB29: 956.2585393 | AC29: 19 | AD29: 464739.0524 | AE29: 520470.0152 | AF29: 572931.8491 | AG29: 19 | AH29: 487485.5512 | AI29: 546882.4556 | AJ29: 602762.0991 | AK29: 228 | AL29: 62 | AM29: 571681.6636 | AN29: 1038744.588 | AO29: 1498612.761 | AP29: 228 | AQ29: 62 | AR29: 190366.7971 | AS29: 361960.5508 | AT29: 530055.4012 | AU29: 228 | AV29: 62 | AW29: 190366.7971 | AX29: 361960.5508 | AY29: 530055.4012 | AZ29: 228 | BA29: 62 | BB29: 762048.4607 | BC29: 1400705.139 | BD29: 2028668.162
B30: 20 | C30: 23470.93548 | D30: 27341.00429 | E30: 30953.94533 | F30: 13998859.08 | G30: 3741.504921 | I30: 20 | J30: 133481.9632 | K30: 166699.5789 | L30: 198302.2183 | M30: 1050416368 | N30: 32410.12756 | P30: 20 | Q30: 306894.7684 | R30: 330045.5237 | S30: 351572.3215 | T30: 499020939.1 | U30: 22338.77658 | W30: 20 | X30: 24362.44678 | Y30: 25365.40371 | Z30: 26326.31239 | AA30: 964192.0335 | AB30: 981.932805 | AC30: 20 | AD30: 464739.1783 | AE30: 522110.5062 | AF30: 576200.8522 | AG30: 20 | AH30: 488210.1138 | AI30: 549451.5105 | AJ30: 607154.7975 | AK30: 240 | AL30: 63 | AM30: 577096.4343 | AN30: 1083034.761 | AO30: 1581430.473 | AP30: 240 | AQ30: 63 | AR30: 200494.7034 | AS30: 393539.4066 | AT30: 582779.2722 | AU30: 240 | AV30: 63 | AW30: 200494.7034 | AX30: 393539.4066 | AY30: 582779.2722 | AZ30: 240 | BA30: 63 | BB30: 777591.1377 | BC30: 1476574.168 | BD30: 2164209.745
B31: 21 | C31: 24195.96454 | D31: 28274.08801 | E31: 32086.04404 | F31: 15563338.64 | G31: 3945.039751 | I31: 21 | J31: 133311.8476 | K31: 167510.9975 | L31: 200087.3102 | M31: 1114740602 | N31: 33387.73131 | P31: 21 | Q31: 307097.3232 | R31: 330859.505 | S31: 352993.7241 | T31: 526619904.1 | U31: 22948.20046 | W31: 21 | X31: 24358.36848 | Y31: 25386.44528 | Z31: 26372.43894 | AA31: 1014119.957 | AB31: 1007.035231 | AC31: 21 | AD31: 464767.5392 | AE31: 523756.9477 | AF31: 579453.4732 | AG31: 21 | AH31: 488963.5038 | AI31: 552031.0358 | AJ31: 611539.5173 | AK31: 252 | AL31: 64 | AM31: 581957.4391 | AN31: 1129471.45 | AO31: 1669076.574 | AP31: 252 | AQ31: 64 | AR31: 210521.9557 | AS31: 427012.9936 | AT31: 639374.9037 | AU31: 252 | AV31: 64 | AW31: 210521.9557 | AX31: 427012.9936 | AY31: 639374.9037 | AZ31: 252 | BA31: 64 | BB31: 792479.3949 | BC31: 1556484.444 | BD31: 2308451.477
B32: 22 | C32: 24921.58041 | D32: 29211.71357 | E32: 33226.59562 | F32: 17243319.42 | G32: 4152.507606 | I32: 22 | J32: 133155.1881 | K32: 168326.3657 | L32: 201866.8069 | M32: 1180321641 | N32: 34355.80942 | P32: 22 | Q32: 307311.9982 | R32: 331675.4938 | S32: 354407.0117 | T32: 554485072.8 | U32: 23547.50672 | W32: 22 | X32: 24354.83751 | Y32: 25407.50431 | Z32: 26418.05305 | AA32: 1064214.587 | AB32: 1031.607768 | AC32: 22 | AD32: 464822.0238 | AE32: 525409.3638 | AF32: 582691.8717 | AG32: 22 | AH32: 489743.6042 | AI32: 554621.0774 | AJ32: 615918.4673 | AK32: 264 | AL32: 65 | AM32: 586175.4173 | AN32: 1178168.421 | AO32: 1761866.825 | AP32: 264 | AQ32: 65 | AR32: 220404.1839 | AS32: 462494.9959 | AT32: 700112.9325 | AU32: 264 | AV32: 65 | AW32: 220404.1839 | AX32: 462494.9959 | AY32: 700112.9325 | AZ32: 264 | BA32: 65 | BB32: 806579.6012 | BC32: 1640663.416 | BD32: 2461979.758
B33: 23 | C33: 25647.78099 | D33: 30153.90306 | E33: 34375.64614 | F33: 19043907.54 | G33: 4363.932577 | I33: 23 | J33: 133010.9432 | K33: 169145.7028 | L33: 203641.7883 | M33: 1247179070 | N33: 35315.42256 | P33: 23 | Q33: 307538.0036 | R33: 332493.495 | S33: 355812.9839 | T33: 582618431.2 | U33: 24137.49016 | W33: 23 | X33: 24351.81669 | Y33: 25428.5808 | Z33: 26463.19192 | AA33: 1114476.344 | AB33: 1055.687617 | AC33: 23 | AD33: 464900.7635 | AE33: 527067.7786 | AF33: 585917.9641 | AG33: 23 | AH33: 490548.5445 | AI33: 557221.6817 | AJ33: 620293.6103 | AK33: 276 | AL33: 66 | AM33: 589653.6305 | AN33: 1229245.815 | AO33: 1860137.162 | AP33: 276 | AQ33: 66 | AR33: 230091.549 | AS33: 500105.9184 | AT33: 765283.0397 | AU33: 276 | AV33: 66 | AW33: 230091.549 | AX33: 500105.9184 | AY33: 765283.0397 | AZ33: 276 | BA33: 66 | BB33: 819745.1795 | BC33: 1729351.734 | BD33: 2625420.202
B34: 24 | C34: 26374.56698 | D34: 31100.67871 | E34: 35533.23914 | F34: 20970318.94 | G34: 4579.336081 | I34: 24 | J34: 132878.1864 | K34: 169969.0281 | L34: 205413.2193 | M34: 1315332749 | N34: 36267.51644 | P34: 24 | Q34: 307774.6362 | R34: 333313.5137 | S34: 357212.3538 | T34: 611021978.7 | U34: 24718.85877 | W34: 24 | X34: 24349.27285 | Y34: 25449.67478 | Z34: 26507.88875 | AA34: 1164905.652 | AB34: 1079.30795 | AC34: 24 | AD34: 465002.0955 | AE34: 528732.2165 | AF34: 589133.4618 | AG34: 24 | AH34: 491376.6625 | AI34: 559832.8952 | AJ34: 624666.7009 | AK34: 288 | AL34: 67 | AM34: 592287.0902 | AN34: 1282830.526 | AO34: 1964245.202 | AP34: 288 | AQ34: 67 | AR34: 239528.253 | AS34: 539973.4961 | AT34: 835195.2563 | AU34: 288 | AV34: 67 | AW34: 239528.253 | AX34: 539973.4961 | AY34: 835195.2563 | AZ34: 288 | BA34: 67 | BB34: 831815.3432 | BC34: 1822804.022 | BD34: 2799440.458
B35: 25 | C35: 27101.94125 | D35: 32052.06283 | E35: 36699.41617 | F35: 23027881.22 | G35: 4798.737462 | I35: 25 | J35: 132756.0893 | K35: 170796.3609 | L35: 207181.9669 | M35: 1384802817 | N35: 37212.93883 | P35: 25 | Q35: 308021.2673 | R35: 334135.5547 | S35: 358605.7601 | T35: 639697728 | U35: 25292.2464 | W35: 25 | X35: 24347.17628 | Y35: 25470.78625 | Z35: 26552.17327 | AA35: 1215502.935 | AB35: 1102.498496 | AC35: 25 | AD35: 465124.5328 | AE35: 530402.7019 | AF35: 592339.9003 | AG35: 25 | AH35: 492226.4741 | AI35: 562454.7647 | AJ35: 629039.3164 | AK35: 300 | AL35: 68 | AM35: 593961.7499 | AN35: 1339056.582 | AO35: 2074571.829 | AP35: 300 | AQ35: 68 | AR35: 248652.0028 | AS35: 582233.1286 | AT35: 910181.3625 | AU35: 300 | AV35: 68 | AW35: 239528.253 | AX35: 539973.4961 | AY35: 835195.2563 | AZ35: 300 | BA35: 68 | BB35: 833490.0029 | BC35: 1879030.078 | BD35: 2909767.085
B36: 26 | C36: 27829.90837 | D36: 33008.07787 | E36: 37874.2173 | F36: 25222035.48 | G36: 5022.154466 | I36: 26 | J36: 132643.9076 | K36: 171627.7209 | L36: 208948.8143 | M36: 1455609697 | N36: 38152.45335 | P36: 26 | Q36: 308277.3315 | R36: 334959.6231 | S36: 359993.7779 | T36: 668647705.1 | U36: 25858.22316 | W36: 26 | X36: 24345.50024 | Y36: 25491.91524 | Z36: 26596.07227 | AA36: 1266268.617 | AB36: 1125.286016 | AC36: 26 | AD36: 465266.7394 | AE36: 532079.2592 | AF36: 595538.6644 | AG36: 26 | AH36: 493096.6477 | AI36: 565087.3371 | AJ36: 633412.8817 | AK36: 312 | AL36: 69 | AM36: 594553.6524 | AN36: 1398065.566 | AO36: 2191522.873 | AP36: 312 | AQ36: 69 | AR36: 257393.4269 | AS36: 627028.339 | AT36: 990596.3856 | AU36: 312 | AV36: 69 | AW36: 239528.253 | AX36: 539973.4961 | AY36: 835195.2563 | AZ36: 312 | BA36: 69 | BB36: 834081.9054 | BC36: 1938039.062 | BD36: 3026718.13
B37: 27 | C37: 28558.47425 | D37: 33968.74636 | E37: 39057.68149 | F37: 27558338.21 | G37: 5249.603624 | I37: 27 | J37: 132540.9699 | K37: 172463.1275 | L37: 210714.4718 | M37: 1527774100 | N37: 39086.75095 | P37: 27 | Q37: 308542.3191 | R37: 335785.7239 | S37: 361376.9271 | T37: 697873949.9 | U37: 26417.30399 | W37: 27 | X37: 24344.22054 | Y37: 25513.06175 | Z37: 26639.60994 | AA37: 1317203.126 | AB37: 1147.694701 | AC37: 27 | AD37: 465427.5096 | AE37: 533761.9131 | AF37: 598731.0089 | AG37: 27 | AH37: 493985.9838 | AI37: 567730.6595 | AJ37: 637788.6904 | AK37: 324 | AL37: 70 | AM37: 593928.0254 | AN37: 1460007.051 | AO37: 2315530.888 | AP37: 324 | AQ37: 70 | AR37: 265675.442 | AS37: 674511.262 | AT37: 1076820.205 | AU37: 324 | AV37: 70 | AW37: 239528.253 | AX37: 539973.4961 | AY37: 835195.2563 | AZ37: 324 | BA37: 70 | BB37: 833456.2784 | BC37: 1999980.547 | BD37: 3150726.144
B38: 28 | C38: 29287.64581 | D38: 34934.09095 | E38: 40249.84691 | F38: 30042463.23 | G38: 5481.100549 | I38: 28 | J38: 132446.668 | K38: 173302.6005 | L38: 212479.5869 | M38: 1601317029 | N38: 40016.45948 | P38: 28 | Q38: 308815.7681 | R38: 336613.8621 | S38: 362755.6797 | T38: 727378515.5 | U38: 26969.95579 | W38: 28 | X38: 24343.31525 | Y38: 25534.22581 | Z38: 26682.80826 | AA38: 1368306.887 | AB38: 1169.746505 | AC38: 28 | AD38: 465605.7514 | AE38: 535450.6884 | AF38: 601918.0749 | AG38: 28 | AH38: 494893.3972 | AI38: 570384.7793 | AJ38: 642167.9218 | AK38: 336 | AL38: 71 | AM38: 591938.3181 | AN38: 1525039.066 | AO38: 2447057.035 | AP38: 336 | AQ38: 71 | AR38: 273412.5628 | AS38: 724843.1604 | AT38: 1169259.268 | AU38: 336 | AV38: 71 | AW38: 239528.253 | AX38: 539973.4961 | AY38: 835195.2563 | AZ38: 336 | BA38: 71 | BB38: 831466.5711 | BC38: 2065012.562 | BD38: 3282252.291
B39: 29 | C39: 30017.43077 | D39: 35904.1344 | E39: 41450.75113 | F39: 32680203.65 | G39: 5716.660183 | I39: 29 | J39: 132360.4488 | K39: 174146.1596 | L39: 214244.7521 | M39: 1676259780 | N39: 40942.15163 | P39: 29 | Q39: 309097.2586 | R39: 337444.0427 | S39: 364130.4656 | T39: 757163469 | U39: 27516.60351 | W39: 29 | X39: 24342.76439 | Y39: 25555.40743 | Z39: 26725.68724 | AA39: 1419580.328 | AB39: 1191.461425 | AC39: 29 | AD39: 465800.4718 | AE39: 537145.6098 | AF39: 605100.9049 | AG39: 29 | AH39: 495817.9026 | AI39: 573049.7442 | AJ39: 646551.6561 | AK39: 348 | AL39: 72 | AM39: 588425.1718 | AN39: 1593328.586 | AO39: 2586593.095 | AP39: 348 | AQ39: 72 | AR39: 280510.1549 | AS39: 778194.9727 | AT39: 1268348.431 | AU39: 348 | AV39: 72 | AW39: 239528.253 | AX39: 539973.4961 | AY39: 835195.2563 | AZ39: 348 | BA39: 72 | BB39: 827953.4248 | BC39: 2133302.083 | BD39: 3421788.351
B40: 30 | C40: 30747.83742 | D40: 36878.89959 | E40: 42660.43139 | F40: 35477473.79 | G40: 5956.296986 | I40: 30 | J40: 132281.8078 | K40: 174993.8249 | L40: 216010.5114 | M40: 1752623951 | N40: 41864.35179 | P40: 30 | Q40: 309386.4075 | R40: 338276.2707 | S40: 365501.6779 | T40: 787230891.1 | U40: 28057.63517 | W40: 30 | X40: 24342.54969 | Y40: 25576.60661 | Z40: 26768.26516 | AA40: 1471023.879 | AB40: 1212.857733 | AC40: 30 | AD40: 466010.7651 | AE40: 538846.7022 | AF40: 608280.4544 | AG40: 30 | AH40: 496758.6025 | AI40: 575725.6018 | AJ40: 650940.8858 | AK40: 360 | AL40: 73 | AM40: 583215.317 | AN40: 1665052.058 | AO40: 2734663.608 | AP40: 360 | AQ40: 73 | AR40: 286863.6231 | AS40: 834747.8937 | AT40: 1374552.923 | AU40: 360 | AV40: 73 | AW40: 239528.253 | AX40: 539973.4961 | AY40: 835195.2563 | AZ40: 360 | BA40: 73 | BB40: 822743.57 | BC40: 2205025.554 | BD40: 3569858.864
B41: 31 | C41: 31478.87449 | D41: 37858.4095 | E41: 43878.92469 | F41: 38440311.23 | G41: 6200.025099 | I41: 31 | J41: 132210.2832 | K41: 175845.6162 | L41: 217777.3666 | M41: 1830431440 | N41: 42783.54169 | P41: 31 | Q41: 309682.8646 | R41: 339110.5513 | S41: 366869.6769 | T41: 817582876.5 | U41: 28593.40617 | W41: 31 | X41: 24342.65443 | Y41: 25597.82338 | Z41: 26810.55878 | AA41: 1522637.97 | AB41: 1233.952175 | AC41: 31 | AD41: 466235.8022 | AE41: 540553.9908 | AF41: 611457.6023 | AG41: 31 | AH41: 497714.6767 | AI41: 578412.4003 | AJ41: 655336.527
B42: 32 | C42: 32210.55103 | D42: 38842.68722 | E42: 45106.26797 | F42: 41574878.84 | G42: 6447.85847 | I42: 32 | J42: 132145.4508 | K42: 176701.5536 | L42: 219545.7815 | M42: 1909704454 | N42: 43700.16538 | P42: 32 | Q42: 309986.3082 | R42: 339946.8894 | S42: 368234.7943 | T42: 848221533.8 | U42: 29124.24306 | W42: 32 | X42: 24343.06323 | Y42: 25619.05775 | Z42: 26852.58353 | AA42: 1574423.03 | AB42: 1254.760148 | AC42: 32 | AD42: 466474.8222 | AE42: 542267.5007 | AF42: 614633.1594 | AG42: 32 | AH42: 498685.3733 | AI42: 581110.1879 | AJ42: 659739.4274
B43: 33 | C43: 32942.87627 | D43: 39831.75597 | E43: 46342.49818 | F43: 44887466.84 | G43: 6699.810955 | I43: 33 | J43: 132086.9202 | K43: 177561.6573 | L43: 221316.187 | M43: 1990465511 | N43: 44614.63337 | P43: 33 | Q43: 310296.4427 | R43: 340785.2901 | S43: 369597.336 | T43: 879148985.7 | U43: 29650.44664 | W43: 33 | X43: 24343.76191 | Y43: 25640.30973 | Z43: 26894.35359 | AA43: 1626379.492 | AB43: 1275.295845 | AC43: 33 | AD43: 466727.1249 | AE43: 543987.2572 | AF43: 617807.8766 | AG43: 33 | AH43: 499670.0011 | AI43: 583819.0132 | AJ43: 664150.3747
B44: 34 | C44: 33675.85956 | D44: 40825.63905 | E44: 47587.65238 | F44: 48384494.86 | G44: 6955.896409 | I44: 34 | J44: 132034.331 | K44: 178425.9477 | L44: 223088.9837 | M44: 2072737443 | N44: 45527.32634 | P44: 34 | Q44: 310612.9954 | R44: 341625.7586 | S44: 370957.5848 | T44: 910367368.9 | U44: 30172.29472 | W44: 34 | X44: 24344.73736 | Y44: 25661.57935 | Z44: 26935.88211 | AA44: 1678507.788 | AB44: 1295.572379 | AC44: 34 | AD44: 466992.0638 | AE44: 545713.2856 | AF44: 620982.4506 | AG44: 34 | AH44: 500667.9233 | AI44: 586538.9247 | AJ44: 668570.103
B45: 35 | C45: 34409.51031 | D45: 41824.35992 | E45: 48841.7678 | F45: 52072514.12 | G45: 7216.128749 | I45: 35 | J45: 131987.3495 | K45: 179294.445 | L45: 224864.5459 | M45: 2156543404 | N45: 46438.59822 | P45: 35 | Q45: 310935.714 | R45: 342468.2999 | S45: 372315.8031 | T45: 941878834.5 | U45: 30690.04455 | W45: 35 | X45: 24345.97745 | Y45: 25682.86661 | Z45: 26977.18125 | AA45: 1730808.353 | AB45: 1315.601898 | AC45: 35 | AD45: 467269.0409 | AE45: 547445.6115 | AF45: 624157.5303 | AG45: 35 | AH45: 501678.5512 | AI45: 589269.9714 | AJ45: 672999.2981
B46: 36 | C46: 35143.83791 | D46: 42827.9421 | E46: 50104.88193 | F46: 55958209.56 | G46: 7480.522011 | I46: 36 | J46: 131945.666 | K46: 180167.1698 | L46: 226643.224 | M46: 2241906870 | N46: 47348.77897 | P46: 36 | Q46: 311264.365 | R46: 343312.9191 | S46: 373672.2347 | T46: 973685547.8 | U46: 31203.93481 | W46: 36 | X46: 24347.47093 | Y46: 25704.17152 | Z46: 27018.26229 | AA46: 1783281.62 | AB46: 1335.395679 | AC46: 36 | AD46: 467557.502 | AE46: 549184.2604 | AF46: 627333.7209 | AG46: 36 | AH46: 502701.3399 | AI46: 592012.2025 | AJ46: 677438.6029
B47: 37 | C47: 35878.8517 | D47: 43836.40928 | E47: 51377.0325 | F47: 60048402.02 | G47: 7749.0904 | I47: 37 | J47: 131908.9928 | K47: 181044.1426 | L47: 228425.3468 | M47: 2328851645 | N47: 48258.17698 | P47: 37 | Q47: 311598.7316 | R47: 344159.6214 | S47: 375027.1066 | T47: 1005789689 | U47: 31714.1875 | W47: 37 | X47: 24349.20731 | Y47: 25725.49411 | Z47: 27059.13574 | AA47: 1835928.026 | AB47: 1354.964216 | AC47: 37 | AD47: 467856.9317 | AE47: 550929.2581 | AF47: 630511.5891 | AG47: 37 | AH47: 503735.7834 | AI47: 594765.6673 | AJ47: 681888.6216
B48: 38 | C48: 36614.56096 | D48: 44849.78522 | E48: 52658.2576 | F48: 64350050.48 | G48: 8021.848321 | I48: 38 | J48: 131877.0615 | K48: 181925.3841 | L48: 230211.2237 | M48: 2417401866 | N48: 49167.08113 | P48: 38 | Q48: 311938.6119 | R48: 345008.4118 | S48: 376380.6308 | T48: 1038193451 | U48: 32221.00947 | W48: 38 | X48: 24351.17683 | Y48: 25746.83439 | Z48: 27099.8114 | AA48: 1888748.007 | AB48: 1374.317288 | AC48: 38 | AD48: 468166.8502 | AE48: 552680.6303 | AF48: 633691.6659 | AG48: 38 | AH48: 504781.4111 | AI48: 597530.4155 | AJ48: 686349.9235
B49: 39 | C49: 37350.9748 | D49: 45868.09381 | E49: 53948.59563 | F49: 68870254.29 | G49: 8298.810414 | I49: 39 | J49: 131849.6214 | K49: 182810.9151 | L49: 232001.1468 | M49: 2507582007 | N49: 50075.76267 | P49: 39 | Q49: 312283.818 | R49: 345859.2956 | S49: 377733.0057 | T49: 1070899044 | U49: 32724.59387 | W49: 39 | X49: 24353.37036 | Y49: 25768.19237 | Z49: 27140.29842 | AA49: 1941742.001 | AB49: 1393.464029 | AC49: 39 | AD49: 468486.8097 | AE49: 554438.4031 | AF49: 636874.4509 | AG49: 39 | AH49: 505837.7846 | AI49: 600306.4969 | AJ49: 690823.0465
B50: 40 | C50: 38088.10224 | D50: 46891.35908 | E50: 55248.08539 | F50: 73616255.46 | G50: 8579.991577 | I50: 40 | J50: 131826.4382 | K50: 183700.7565 | L50: 233795.392 | M50: 2599416883 | N50: 50984.47688 | P50: 40 | Q50: 312634.1743 | R50: 346712.278 | S50: 379084.417 | T50: 1103908691 | U50: 33225.12138 | W50: 40 | X50: 24355.77938 | Y50: 25789.56807 | Z50: 27180.60536 | AA50: 1994910.446 | AB50: 1412.412987 | AC50: 40 | AD50: 468816.3919 | AE50: 556202.6025 | AF50: 640060.4144 | AG50: 40 | AH50: 506904.4941 | AI50: 603093.9616 | AJ50: 695308.4998
B51: 41 | C51: 38825.9521 | D51: 47919.60514 | E51: 56556.76606 | F51: 78595440.99 | G51: 8865.406984 | I51: 41 | J51: 131807.292 | K51: 184594.9292 | L51: 235594.2209 | M51: 2692931654 | N51: 51893.46446 | P51: 41 | Q51: 312989.5167 | R51: 347567.364 | S51: 380435.0393 | T51: 1137224630 | U51: 33722.76131 | W51: 41 | X51: 24358.3959 | Y51: 25810.9615 | Z51: 27220.74024 | AA51: 2048253.782 | AB51: 1431.172171 | AC51: 41 | AD51: 469155.2046 | AE51: 557973.2547 | AF51: 643250.0005 | AG51: 41 | AH51: 507981.1567 | AI51: 605892.8598 | AJ51: 699806.7665
B52: 42 | C52: 39564.53304 | D52: 48952.85624 | E52: 57874.67724 | F52: 83815345.22 | G52: 9155.072103 | I52: 42 | J52: 131791.9763 | K52: 185493.4544 | L52: 237397.8821 | M52: 2788151831 | N52: 52802.95286 | P52: 42 | Q52: 313349.6914 | R52: 348424.5589 | S52: 381785.0365 | T52: 1170849115 | U52: 34217.67255 | W52: 42 | X52: 24361.2124 | Y52: 25832.37268 | Z52: 27260.7106 | AA52: 2101772.45 | AB52: 1449.749099 | AC52: 42 | AD52: 469502.8802 | AE52: 559750.3859 | AF52: 646443.6292 | AG52: 42 | AH52: 509067.4132 | AI52: 608703.2421 | AJ52: 704318.3064
B53: 43 | C53: 40303.85353 | D53: 49991.13675 | E53: 59201.85895 | F53: 89283652.2 | G53: 9449.002709 | I53: 43 | J53: 131780.2969 | K53: 186396.3531 | L53: 239206.6118 | M53: 2885103281 | N53: 53713.15743 | P53: 43 | Q53: 313714.5544 | R53: 349283.8678 | S53: 383134.5634 | T53: 1204784413 | U53: 34710.00451 | W53: 43 | X53: 24364.22184 | Y53: 25853.80161 | Z53: 27300.52352 | AA53: 2155466.891 | AB53: 1468.150841 | AC53: 43 | AD53: 469859.0731 | AE53: 561534.0226 | AF53: 649641.6987 | AG53: 43 | AH53: 510162.9267 | AI53: 611525.1593 | AJ53: 708843.5576
B54: 44 | C54: 41043.92186 | D54: 51034.47113 | E54: 60538.35164 | F54: 95008198.12 | G54: 9747.21489 | I54: 44 | J54: 131772.0707 | K54: 187303.6468 | L54: 241020.6355 | M54: 2983812230 | N54: 54624.28242 | P54: 44 | Q54: 314083.97 | R54: 350145.2961 | S54: 384483.7657 | T54: 1239032808 | U54: 35199.89783 | W54: 44 | X54: 24367.41756 | Y54: 25875.24833 | Z54: 27340.18566 | AA54: 2209337.547 | AB54: 1486.384051 | AC54: 44 | AD54: 470223.4583 | AE54: 563324.1912 | AF54: 652844.5869 | AG54: 44 | AH54: 511267.3801 | AI54: 614358.6623 | AJ54: 713382.9385
B55: 45 | C55: 41784.74607 | D55: 52082.884 | E55: 61884.19619 | F55: 100996973.8 | G55: 10049.72506 | I55: 45 | J55: 131767.1249 | K55: 188215.3568 | L55: 242840.1687 | M55: 3084305267 | N55: 55536.52192 | P55: 45 | Q55: 314457.8109 | R55: 351008.8488 | S55: 385832.7812 | T55: 1273596597 | U55: 35687.48516 | W55: 45 | X55: 24370.79332 | Y55: 25896.71283 | Z55: 27379.70333 | AA55: 2263384.863 | AB55: 1504.455005 | AC55: 45 | AD55: 470595.7291 | AE55: 565120.9184 | AF55: 656052.6533 | AG55: 45 | AH55: 512380.4752 | AI55: 617203.8024 | AJ55: 717936.8495
B56: 46 | C56: 42526.33404 | D56: 53136.40007 | E56: 63239.43396 | F56: 107258127 | G56: 10356.54996 | I56: 46 | J56: 131765.2961 | K56: 189131.5045 | L56: 244665.4175 | M56: 3186609353 | N56: 56450.0607 | P56: 46 | Q56: 314835.9571 | R56: 351874.5313 | S56: 387181.7405 | T56: 1308478095 | U56: 36172.89172 | W56: 46 | X56: 24374.3432 | Y56: 25918.19514 | Z56: 27419.08246 | AA56: 2317609.283 | AB56: 1522.369627 | AC56: 46 | AD56: 470975.5964 | AE56: 566924.231 | AF56: 659266.2405 | AG56: 46 | AH56: 513501.9304 | AI56: 620060.6311 | AJ56: 722505.6744
B57: 47 | C57: 43268.69341 | D57: 54195.04419 | E57: 64604.10673 | F57: 113799965.4 | G57: 10667.70666 | I57: 47 | J57: 131766.4296 | K57: 190052.1117 | L57: 246496.5795 | M57: 3290751822 | N57: 57365.07493 | P57: 47 | Q57: 315218.2954 | R57: 352742.3489 | S57: 388530.7672 | T57: 1343679630 | U57: 36656.2359 | W57: 47 | X57: 24378.06162 | Y57: 25939.69527 | Z57: 27458.32866 | AA57: 2372011.252 | AB57: 1540.133517 | AC57: 47 | AD57: 471362.7867 | AE57: 568734.1558 | AF57: 662485.6754 | AG57: 47 | AH57: 514631.4801 | AI57: 622929.2 | AJ57: 727089.7821
B58: 48 | C58: 44011.83161 | D58: 55258.8413 | E58: 65978.25676 | F58: 120630958.6 | G58: 10983.21258 | I58: 48 | J58: 131770.3788 | K58: 190977.2 | L58: 248333.8446 | M58: 3396760386 | N58: 58281.73287 | P58: 48 | Q58: 315604.7191 | R58: 353612.3066 | S58: 389879.9787 | T58: 1379203547 | U58: 37137.6298 | W58: 48 | X58: 24381.9433 | Y58: 25961.21324 | Z58: 27497.44725 | AA58: 2426591.216 | AB58: 1557.751975 | AC58: 48 | AD58: 471757.0412 | AE58: 570550.7199 | AF58: 665711.2705 | AG58: 48 | AH58: 515768.8728 | AI58: 625809.5612 | AJ58: 731689.5272
B59: 49 | C59: 44755.75584 | D59: 56327.81651 | E59: 67361.92676 | F59: 127759740.9 | G59: 11303.08546 | I59: 49 | J59: 131777.0045 | K59: 191906.7911 | L59: 250177.3954 | M59: 3504663143 | N59: 59200.19546 | P59: 49 | Q59: 315995.127 | R59: 354484.41 | S59: 391229.4863 | T59: 1415052205 | U59: 37617.17965 | W59: 49 | X59: 24385.98322 | Y59: 25982.74905 | Z59: 27536.44326 | AA59: 2481349.625 | AB59: 1575.230023 | AC59: 49 | AD59: 472158.1147 | AE59: 572373.9502 | AF59: 668943.325 | AG59: 49 | AH59: 516913.8706 | AI59: 628701.7667 | AJ59: 736305.2518
B60: 50 | C60: 45500.47311 | D60: 57401.995 | E60: 68755.1599 | F60: 135195114.4 | G60: 11627.3434 | I60: 50 | J60: 131786.1742 | K60: 192840.9072 | L60: 252027.4081 | M60: 3614488578 | N60: 60120.61692 | P60: 50 | Q60: 316389.4237 | R60: 355358.6642 | S60: 392579.3963 | T60: 1451227979 | U60: 38094.98628 | W60: 50 | X60: 24390.17663 | Y60: 26004.30274 | Z60: 27575.32148 | AA60: 2536286.925 | AB60: 1592.572424 | AC60: 50 | AD60: 472565.7746 | AE60: 574203.8741 | AF60: 672182.1258 | AG60: 50 | AH60: 518066.2477 | AI60: 631605.8691 | AJ60: 740937.2857
B61: 51 | C61: 46245.99019 | D61: 58481.40212 | E61: 70157.99981 | F61: 142946051 | G61: 11956.00481 | I61: 51 | J61: 131797.762 | K61: 193779.57 | L61: 253884.0523 | M61: 3726265574 | N61: 61043.14518 | P61: 51 | Q61: 316787.5187 | R61: 356235.0745 | S61: 393929.8096 | T61: 1487733262 | U61: 38571.14546 | W61: 51 | X61: 24394.51903 | Y61: 26025.8743 | Z61: 27614.08644 | AA61: 2591403.568 | AB61: 1609.783702 | AC61: 51 | AD61: 472979.7997 | AE61: 576040.5188 | AF61: 675427.9484 | AG61: 51 | AH61: 519225.7899 | AI61: 634521.9209 | AJ61: 745585.9482
B62: 52 | C62: 46992.31365 | D62: 59566.0633 | E62: 71570.49059 | F62: 151021695.4 | G62: 12289.08847 | I62: 52 | J62: 131811.6476 | K62: 194722.8019 | L62: 255747.4924 | M62: 3840023409 | N62: 61967.92242 | P62: 52 | Q62: 317189.3262 | R62: 357113.6463 | S62: 395280.8228 | T62: 1524570459 | U62: 39045.74828 | W62: 52 | X62: 24399.00614 | Y62: 26047.46375 | Z62: 27652.74245 | AA62: 2646700.002 | AB62: 1626.868158 | AC62: 52 | AD62: 473399.98 | AE62: 577883.9119 | AF62: 678681.0577 | AG62: 52 | AH62: 520392.2936 | AI62: 637449.9752 | AJ62: 750251.5483
B63: 53 | C63: 47739.44981 | D63: 60656.00412 | E63: 72992.67678 | F63: 159431368.1 | G63: 12626.61348 | I63: 53 | J63: 131827.7165 | K63: 195670.625 | L63: 257617.8873 | M63: 3955791769 | N63: 62895.08541 | P63: 53 | Q63: 317594.7648 | R63: 357994.3849 | S63: 396632.5278 | T63: 1561741994 | U63: 39518.88148 | W63: 53 | X63: 24403.63387 | Y63: 26069.07111 | Z63: 27691.29363 | AA63: 2702176.681 | AB63: 1643.829882 | AC63: 53 | AD63: 473826.1152 | AE63: 579734.081 | AF63: 681941.7087 | AG63: 53 | AH63: 521565.565 | AI63: 640390.0851 | AJ63: 754934.3855
B64: 54 | C64: 48487.40483 | D64: 61751.25029 | E64: 74424.60342 | F64: 168184567.6 | G64: 12968.59929 | I64: 54 | J64: 131845.859 | K64: 196623.0616 | L64: 259495.3909 | M64: 4073600749 | N64: 63824.76595 | P64: 54 | Q64: 318003.7572 | R64: 358877.2956 | S64: 397985.0126 | T64: 1599250305 | U64: 39990.62772 | W64: 54 | X64: 24408.39834 | Y64: 26090.6964 | Z64: 27729.74389 | AA64: 2757834.056 | AB64: 1660.672772 | AC64: 54 | AD64: 474258.0145 | AE64: 581591.0537 | AF64: 685210.1474 | AG64: 54 | AH64: 522745.4194 | AI64: 643342.3039 | AJ64: 759634.7508
B65: 55 | C65: 49236.18461 | D65: 62851.82762 | E65: 75866.31597 | F65: 177290974 | G65: 13315.06568 | I65: 55 | J65: 131865.9704 | K65: 197580.1343 | L65: 261380.1528 | M65: 4193480859 | N65: 64757.09119 | P65: 55 | Q65: 318416.2298 | R65: 359762.3839 | S65: 399338.3615 | T65: 1637097848 | U65: 40461.06583 | W65: 55 | X65: 24413.29586 | Y65: 26112.33963 | Z65: 27768.09695 | AA65: 2813672.581 | AB65: 1677.400543 | AC65: 55 | AD65: 474695.4961 | AE65: 583454.8578 | AF65: 688486.6112 | AG65: 55 | AH65: 523931.6807 | AI65: 646306.6854 | AJ65: 764352.9272
B66: 56 | C66: 49985.79487 | D66: 63957.76207 | E66: 77317.86037 | F66: 186760451.1 | G66: 13666.03275 | I66: 56 | J66: 131887.9504 | K66: 198541.8656 | L66: 263272.3183 | M66: 4315463033 | N66: 65692.18396 | P66: 56 | Q66: 318832.1127 | R66: 360649.6549 | S66: 400692.655 | T66: 1675287094 | U66: 40930.27112 | W66: 56 | X66: 24418.32289 | Y66: 26134.00081 | Z66: 27806.35637 | AA66: 2869692.711 | AB66: 1694.016739 | AC66: 56 | AD66: 475138.386 | AE66: 585325.5214 | AF66: 691771.3296 | AG66: 56 | AH66: 525124.1809 | AI66: 649283.2834 | AJ66: 769089.19
B67: 57 | C67: 50736.24111 | D67: 65069.07971 | E67: 78779.28303 | F67: 196603050 | G67: 14021.52096 | I67: 57 | J67: 131911.7026 | K67: 199508.2782 | L67: 265172.0287 | M67: 4439578627 | N67: 66630.16304 | P67: 57 | Q67: 319251.3394 | R67: 361539.1143 | S67: 402047.9705 | T67: 1713820529 | U67: 41398.31554 | W67: 57 | X67: 24423.47607 | Y67: 26155.67996 | Z67: 27844.52556 | AA67: 2925894.901 | AB67: 1710.524744 | AC67: 57 | AD67: 475586.518 | AE67: 587203.0724 | AF67: 695064.5247 | AG67: 57 | AH67: 526322.7592 | AI67: 652272.1521 | AJ67: 773843.8077
B68: 58 | C68: 51487.52863 | D68: 66185.80675 | E68: 80250.6308 | F68: 206829011.5 | G68: 14381.55108 | I68: 58 | J68: 131937.1347 | K68: 200479.3948 | L68: 267079.4217 | M68: 4565859433 | N68: 67571.1435 | P68: 58 | Q68: 319673.8463 | R68: 362430.7673 | S68: 403404.3822 | T68: 1752700660 | U68: 41865.26794 | W68: 58 | X68: 24428.75217 | Y68: 26177.37709 | Z68: 27882.60776 | AA68: 2982279.609 | AB68: 1726.927795 | AC68: 58 | AD68: 476039.7332 | AE68: 589087.5392 | AF68: 698366.4117 | AG68: 58 | AH68: 527527.2618 | AI68: 655273.3459 | AJ68: 778617.0425
B69: 59 | C69: 52239.66252 | D69: 67307.96951 | E69: 81731.95098 | F69: 217448769.6 | G69: 14746.14423 | I69: 59 | J69: 131964.158 | K69: 201455.2384 | L69: 268994.6317 | M69: 4694337679 | N69: 68515.23684 | P69: 59 | Q69: 320099.5731 | R69: 363324.6193 | S69: 404761.9615 | T69: 1791930004 | U69: 42331.19422 | W69: 59 | X69: 24434.14811 | Y69: 26199.09223 | Z69: 27920.60608 | AA69: 3038847.292 | AB69: 1743.228984 | AC69: 59 | AD69: 476497.8791 | AE69: 590978.95 | AF69: 701677.1992 | AG69: 59 | AH69: 528737.5417 | AI69: 658286.9195 | AJ69: 783409.1502
B70: 60 | C70: 52992.64768 | D70: 68435.59446 | E70: 83223.29134 | F70: 228472954 | G70: 15115.32183 | I70: 60 | J70: 131992.6871 | K70: 202435.832 | L70: 270917.7897 | M70: 4825046037 | N70: 69462.55133 | P70: 60 | Q70: 320528.4618 | R70: 364220.6758 | S70: 406120.7769 | T70: 1831511101 | U70: 42796.15755 | W70: 60 | X70: 24439.66095 | Y70: 26220.82537 | Z70: 27958.5235 | AA70: 3095598.408 | AB70: 1759.431274 | AC70: 60 | AD70: 476960.8098 | AE70: 592877.3332 | AF70: 704997.0901 | AG70: 60 | AH70: 529953.4575 | AI70: 661312.9276 | AJ70: 788220.3814
B71: 61 | C71: 53746.48881 | D71: 69568.70817 | E71: 84724.7001 | F71: 239912393.7 | G71: 15489.10564 | I71: 61 | J71: 132022.6398 | K71: 203421.1986 | L71: 272849.0241 | M71: 4958017629 | N71: 70413.19215 | P71: 61 | Q71: 320960.4574 | R71: 365118.9423 | S71: 407480.8943 | T71: 1871446503 | U71: 43260.21848 | W71: 61 | X71: 24445.28787 | Y71: 26242.57655 | Z71: 27996.36287 | AA71: 3152533.418 | AB71: 1775.537501 | AC71: 61 | AD71: 477428.3851 | AE71: 594782.7175 | AF71: 708326.2813 | AG71: 61 | AH71: 531174.8739 | AI71: 664351.4256 | AJ71: 793050.9814
B72: 62 | C72: 54501.19042 | D72: 70707.33738 | E72: 86236.22593 | F72: 251778119.7 | G72: 15867.51776 | I72: 62 | J72: 132053.937 | K72: 204411.3616 | L72: 274788.4602 | M72: 5093286030 | N72: 71367.26161 | P72: 62 | Q72: 321395.5071 | R72: 366019.4241 | S72: 408842.3774 | T72: 1911738782 | U72: 43723.43515 | W72: 62 | X72: 24451.02616 | Y72: 26264.34576 | Z72: 28034.12693 | AA72: 3209652.783 | AB72: 1791.550385 | AC72: 62 | AD72: 477900.4703 | AE72: 596695.1314 | AF72: 711664.9646 | AG72: 62 | AH72: 532401.6607 | AI72: 667402.4688 | AJ72: 797901.1905
B73: 63 | C73: 55256.75681 | D73: 71851.50892 | E73: 87757.91794 | F73: 264081368.7 | G73: 16250.58057 | I73: 63 | J73: 132086.5022 | K73: 205406.3442 | L73: 276736.2209 | M73: 5230885281 | N73: 72324.85935 | P73: 63 | Q73: 321833.5607 | R73: 366922.1267 | S73: 410205.2875 | T73: 1952390524 | U73: 44185.8634 | W73: 63 | X73: 24456.87323 | Y73: 26286.13304 | Z73: 28071.8183 | AA73: 3266956.963 | AB73: 1807.472535 | AC73: 63 | AD73: 478376.9362 | AE73: 598614.604 | AF73: 715013.3267 | AG73: 63 | AH73: 533633.693 | AI73: 670466.1129 | AJ73: 802771.2447
B74: 64 | C74: 56013.19212 | D74: 73001.24977 | E74: 89289.82571 | F74: 276833585.8 | G74: 16638.3168 | I74: 64 | J74: 132120.2617 | K74: 206406.17 | L74: 278692.4267 | M74: 5370849885 | N74: 73286.08248 | P74: 64 | Q74: 322274.5699 | R74: 367827.0557 | S74: 411569.6836 | T74: 1993404335 | U74: 44647.55688 | W74: 64 | X74: 24462.82659 | Y74: 26307.93839 | Z74: 28109.43949 | AA74: 3324446.423 | AB74: 1823.306453 | AC74: 64 | AD74: 478857.6582 | AE74: 600541.1641 | AF74: 718371.5498 | AG74: 64 | AH74: 534870.8503 | AI74: 673542.4138 | AJ74: 807661.3755
B75: 65 | C75: =+D74-G75+$D$5 -> 56770.50029 | D75: =+D74*(1+$D$3)+$D$5 -> 74156.58704 | E75: =D74+G75+$D$5 -> 90831.99925 | F75: 290046427.9 | G75: 17030.74948 | I75: 65 | J75: 132155.1443 | K75: =+K74*(1+$K$3)+$K$5 -> 207410.8625 | L75: 280657.1957 | M75: 5513214823 | N75: 74251.02574 | P75: 65 | Q75: 322718.4885 | R75: =+R74*(1+$R$3)+$R$5 -> 368734.2164 | S75: 412935.6229 | T75: 2034782836 | U75: 45108.56722 | W75: 65 | X75: 24468.88384 | Y75: =+Y74*(1+$Y$3)+$Y$5 -> 26329.76183 | Z75: 28146.99293 | AA75: 3382121.626 | AB75: 1839.054547 | AC75: 65 | AD75: =+J75+Q75+X75 -> 479342.5166 | AE75: =+K75+R75+Y75 -> 602474.8407 | AF75: =+L75+S75+Z75 -> 721739.8116 | AG75: 65 | AH75: =+AD75+C75 -> 536113.0169 | AI75: =+AE75+D75 -> 676631.4278 | AJ75: =+AF75+E75 -> 812571.8108
B76: 66 | C76: 57528.68507 | D76: 75317.54798 | E76: 92384.48902 | F76: 303731767.2 | G76: 17427.90197 | I76: 66 | J76: =+K75-N76+$K$5 -> 132191.0808 | K76: 208420.4453 | L76: =K75+N76+$K$5 -> 282630.6441 | M76: =M75*($K$4^2)+(K75^2)*($K$4^2)+((1+$K$3)^2)*M75 -> 5658015553 | N76: 75219.78166 | P76: 66 | Q76: =+R75-U76+$R$5 -> 323165.2723 | R76: 369643.6145 | S76: =R75+U76+$R$5 -> 414303.1605 | T76: =T75*($R$4^2)+(R75^2)*($R$4^2)+((1+$R$3)^2)*T75 -> 2076528667 | U76: 45568.94411 | W76: 66 | X76: =+Y75-AB76+$Y$5 -> 24475.0427 | Y76: 26351.60337 | Z76: =Y75+AB76+$Y$5 -> 28184.48095 | AA76: =AA75*($Y$4^2)+(Y75^2)*($Y$4^2)+((1+$Y$3)^2)*AA75 -> 3439983.037 | AB76: 1854.719126 | AC76: 66 | AD76: 479831.3958 | AE76: 604415.6632 | AF76: 725118.2856 | AG76: 66 | AH76: 537360.0809 | AI76: 679733.2112 | AJ76: 817502.7746
B77: 67 | C77: 58287.75004 | D77: 76484.15995 | E77: 93947.34592 | F77: 317901694.5 | G77: 17829.79794 | I77: 67 | J77: 132228.0046 | K77: 209434.9424 | L77: 284612.886 | M77: 5805288020 | N77: 76192.4407 | P77: 67 | Q77: 323614.8791 | R77: 370555.2554 | S77: 415672.3499 | T77: 2118644483 | U77: 46028.73541 | W77: 67 | X77: 24481.30095 | Y77: 26373.46303 | Z77: 28221.90578 | AA77: 3498031.122 | AB77: 1870.302415 | AC77: 67 | AD77: 480324.1847 | AE77: 606363.6608 | AF77: 728507.1417 | AG77: 67 | AH77: 538611.9347 | AI77: 682847.8207 | AJ77: 822454.4876
B78: 68 | C78: 59047.69861 | D78: 77656.45047 | E78: 95520.6213 | F78: =F77*($D$4^2)+(D77^2)*($D$4^2)+((1+$D$3)^2)*F77 -> 332568522.5 | G78: =SQRT(F78) -> 18236.46135 | I78: 68 | J78: 132265.851 | K78: 210454.3775 | L78: 286604.0337 | M78: 5955068662 | N78: =SQRT(M78) -> 77169.09136 | P78: 68 | Q78: 324067.2681 | R78: 371469.1446 | S78: 417043.2426 | T78: 2161132959 | U78: =SQRT(T78) -> 46487.98726 | W78: 68 | X78: 24487.65647 | Y78: 26395.34082 | Z78: 28259.26958 | AA78: 3556266.348 | AB78: =SQRT(AA78) -> 1885.806551 | AC78: 68 | AD78: 480820.7756 | AE78: 608318.863 | AF78: 731906.5459 | AG78: 68 | AH78: 539868.4742 | AI78: 685975.3134 | AJ78: 827427.1672
B79: 69 | C79: 59808.53398 | D79: 78834.44717 | E79: 97104.36696 | F79: 347744789.3 | G79: 18647.91649 | I79: 69 | J79: 132304.5572 | K79: 211478.7749 | L79: 288604.1979 | M79: 6107394414 | N79: 78149.82031 | P79: 69 | Q79: 324522.4004 | R79: 372385.2877 | S79: 418415.8887 | T79: 2203996787 | U79: 46946.74415 | W79: 69 | X79: 24494.10722 | Y79: 26417.23676 | Z79: 28296.57441 | AA79: 3614689.183 | AB79: 1901.233595 | AC79: 69 | AD79: 481321.0649 | AE79: 610281.2993 | AF79: 735316.661 | AG79: 69 | AH79: 541129.5989 | AI79: 689115.7465 | AJ79: 832421.028
B80: 70 | C80: 60570.25923 | D80: 80018.17783 | E80: 98698.63511 | F80: 363443262 | G80: 19064.18794 | I80: 70 | J80: 132344.0624 | K80: 212508.1585 | L80: 290613.4874 | M80: 6262302719 | N80: 79134.71248 | P80: 70 | Q80: 324980.2387 | R80: 373303.6903 | S80: 419790.3368 | T80: 2247238674 | U80: 47405.04904 | W80: 70 | X80: 24500.65123 | Y80: 26439.15086 | Z80: 28333.82229 | AA80: 3673300.097 | AB80: 1916.585531 | AC80: 70 | AD80: 481824.9523 | AE80: 612250.9997 | AF80: 738737.6464 | AG80: 70 | AH80: 542395.2115 | AI80: 692269.1775 | AJ80: 837436.2815
B81: 71 | C81: 61332.87721 | D81: 81207.67035 | E81: 100303.4784 | F81: 379676940 | G81: 19485.30061 | I81: 71 | J81: 132384.3073 | K81: 213542.5527 | L81: 292632.0097 | M81: 6419831530 | N81: 80123.8512 | P81: 71 | Q81: 325440.7469 | R81: 374224.3579 | S81: 421166.6337 | T81: 2290861349 | U81: 47862.94338 | W81: 71 | X81: 24507.28659 | Y81: 26461.08315 | Z81: 28371.01514 | AA81: 3732099.56 | AB81: 1931.864271 | AC81: 71 | AD81: 482332.3408 | AE81: 614227.9938 | AF81: 742169.6585 | AG81: 71 | AH81: 543665.218 | AI81: 695435.6641 | AJ81: 842473.137
B82: 72 | C82: 62096.39066 | D82: 82402.9528 | E82: 101918.9501 | F82: 396459059.1 | G82: 19911.2797 | I82: 72 | J82: 132425.2345 | K82: 214581.9819 | L82: 294659.871 | M82: 6580019320 | N82: 81117.31825 | P82: 72 | Q82: 325903.8906 | R82: 375147.2961 | S82: 422544.8252 | T82: 2334867556 | U82: 48320.46726 | W82: 72 | X82: 24514.01149 | Y82: 26483.03363 | Z82: 28408.15481 | AA82: 3791088.042 | AB82: 1947.071658 | AC82: 72 | AD82: 482843.1366 | AE82: 616212.3116 | AF82: 745612.8509 | AG82: 72 | AH82: 544939.5273 | AI82: 698615.2644 | AJ82: 847531.801
B83: 73 | C83: 62860.80211 | D83: 83604.05334 | E83: 103545.1035 | F83: 413803094.7 | G83: 20342.15069 | I83: 73 | J83: 132466.7879 | K83: 215626.4705 | L83: 296697.1759 | M83: 6742905086 | N83: 82115.194 | P83: 73 | Q83: 326369.6367 | R83: 376072.5106 | S83: 423924.9555 | T83: 2379260058 | U83: 48777.65941 | W83: 73 | X83: 24520.82415 | Y83: 26505.00231 | Z83: 28445.2431 | AA83: 3850266.017 | AB83: 1962.209473 | AC83: 73 | AD83: 483357.2487 | AE83: 618203.9834 | AF83: 749067.3745 | AG83: 73 | AH83: 546218.0508 | AI83: 701808.0367 | AJ83: 852612.478
B84: 74 | C84: 63626.11394 | D84: 84811.00029 | E84: 105181.9927 | F84: 431722765.4 | G84: 20777.93939 | I84: 74 | J84: 132508.9131 | K84: 216676.0433 | L84: 298744.028 | M84: 6908528359 | N84: 83117.55746 | P84: 74 | Q84: 326837.9532 | R84: 377000.0068 | S84: 425307.0679 | T84: 2424041636 | U84: 49234.55734 | W84: 74 | X84: 24527.72288 | Y84: 26526.98922 | Z84: 28482.28174 | AA84: 3909633.957 | AB84: 1977.279433 | AC84: 74 | AD84: 483874.5892 | AE84: 620203.0393 | AF84: 752533.3776 | AG84: 74 | AH84: 547500.7031 | AI84: 705014.0396 | AJ84: 857715.3704
B85: 75 | C85: 64392.32838 | D85: 86023.82213 | E85: 106829.6722 | F85: 450232037.6 | G85: 21218.67191 | I85: 75 | J85: 132551.5569 | K85: 217730.7249 | L85: 300800.5297 | M85: 7076929208 | N85: 84124.48637 | P85: 75 | Q85: 327308.8095 | R85: 377929.7905 | S85: 426691.2041 | T85: 2469215089 | U85: 49691.1973 | W85: 75 | X85: 24534.70602 | Y85: 26548.99437 | Z85: 28519.27242 | AA85: 3969192.338 | AB85: 1992.283197 | AC85: 75 | AD85: 484395.0725 | AE85: 622209.5098 | AF85: 756011.0062 | AG85: 75 | AH85: 548787.4008 | AI85: 708233.3319 | AJ85: 862840.6784
B86: 76 | C86: 65159.4475 | D86: 87242.54743 | E86: 108488.1968 | F86: 469345128.1 | G86: 21664.37463 | I86: 76 | J86: 132594.6676 | K86: 218790.5402 | L86: 302866.7822 | M86: 7248148249 | N86: 85136.05728 | P86: 76 | Q86: 327782.1761 | R86: 378861.8674 | S86: 428077.405 | T86: 2514783236 | U86: 50147.61446 | W86: 76 | X86: 24541.772 | Y86: 26571.01777 | Z86: 28556.21674 | AA86: 4028941.634 | AB86: 2007.222368 | AC86: 76 | AD86: 484918.6157 | AE86: 624223.4253 | AF86: 759500.4039 | AG86: 76 | AH86: 550078.0632 | AI86: 711465.9728 | AJ86: 867988.6007
B87: 77 | C87: 65927.47318 | D87: 88467.20494 | E87: 110157.6217 | F87: 489076509.1 | G87: 22115.07425 | I87: 77 | J87: 132638.1946 | K87: 219855.5142 | L87: 304942.8858 | M87: 7422226652 | N87: 86152.3456 | P87: 77 | Q87: 328258.0245 | R87: 379796.2429 | S87: 429465.7102 | T87: 2560748911 | U87: 50603.84285 | W87: 77 | X87: 24548.91928 | Y87: 26593.05944 | Z87: 28593.11627 | AA87: 4088882.322 | AB87: 2022.098495 | AC87: 77 | AD87: 485445.1384 | AE87: 626244.8166 | AF87: 763001.7123 | AG87: 77 | AH87: 551372.6116 | AI87: 714712.0215 | AJ87: 873159.334
B88: 78 | C88: 66696.40718 | D88: 89697.82353 | E88: 111838.0027 | F88: 509440911.5 | G88: 22570.79776 | I88: 78 | J88: 132682.0885 | K88: 220925.672 | L88: 307028.9399 | M88: 7599206148 | N88: 87173.4257 | P88: 78 | Q88: 328736.3274 | R88: 380732.9229 | S88: 430856.1584 | T88: 2607114970 | U88: 51059.91549 | W88: 78 | X88: 24556.14637 | Y88: 26615.1194 | Z88: 28629.97252 | AA88: 4149014.88 | AB88: 2036.913076 | AC88: 78 | AD88: 485974.5623 | AE88: 628273.7144 | AF88: 766515.0709 | AG88: 78 | AH88: 552670.9695 | AI88: 717971.5379 | AJ88: 878353.0736
B89: 79 | C89: 67466.2511 | D89: 90934.43223 | E89: 113529.396 | F89: 530453328.9 | G89: 23031.57244 | I89: 79 | J89: 132726.3011 | K89: 222001.0389 | L89: 309125.043 | M89: 7779129034 | N89: 88199.37094 | P89: 79 | Q89: 329217.0585 | R89: 381671.913 | S89: 432248.7873 | T89: 2653884287 | U89: 51515.86442 | W89: 79 | X89: 24563.45184 | Y89: 26637.19766 | Z89: 28666.78696 | AA89: 4209339.787 | AB89: 2051.667562 | AC89: 79 | AD89: 486506.8114 | AE89: 630310.1496 | AF89: 770040.6173 | AG89: 79 | AH89: 553973.0625 | AI89: 721244.5818 | AJ89: 883570.0133
B90: 80 | C90: 68237.00637 | D90: 92177.06017 | E90: 115231.8581 | F90: 552129021.8 | G90: 23497.42585 | I90: 80 | J90: 132770.7852 | K90: 223081.6402 | L90: 311231.2927 | M90: 7962038185 | N90: 89230.25376 | P90: 80 | Q90: 329700.1923 | R90: 382613.2189 | S90: 433643.6337 | T90: 2701059753 | U90: 51971.7207 | W90: 80 | X90: 24570.8343 | Y90: 26659.29423 | Z90: 28703.56101 | AA90: 4269857.522 | AB90: 2066.363357 | AC90: 80 | AD90: 487041.8118 | AE90: 632354.1534 | AF90: 773578.4874 | AG90: 80 | AH90: 555278.8182 | AI90: 724531.2135 | AJ90: 888810.3455
B91: 81 | C91: 69008.67429 | D91: 93425.73667 | E91: 116945.4461 | F91: 574483521.7 | G91: 23968.38588 | I91: 81 | J91: 132815.4945 | K91: 224167.5014 | L91: 313347.7859 | M91: 8147977058 | N91: 90266.14569 | P91: 81 | Q91: 330185.7044 | R91: 383556.8463 | S91: 435040.7335 | T91: 2748644279 | U91: 52427.51452 | W91: 81 | X91: 24578.29241 | Y91: 26681.40913 | Z91: 28740.29604 | AA91: 4330568.566 | AB91: 2081.001818 | AC91: 81 | AD91: 487579.4913 | AE91: 634405.7568 | AF91: 777128.8154 | AG91: 81 | AH91: 556588.1656 | AI91: 727831.4935 | AJ91: 894074.2614
B92: 82 | C92: 69781.256 | D92: 94680.49117 | E92: 118670.2173 | F92: 597532635.3 | G92: 24444.48067 | I92: 82 | J92: 132860.3839 | K92: 225258.648 | L92: 315474.6188 | M92: 8336989700 | N92: 91307.11746 | P92: 82 | Q92: 330673.5711 | R92: 384502.801 | S92: 436440.1216 | T92: 2796640796 | U92: 52883.2752 | W92: 82 | X92: 24585.82486 | Y92: 26703.54237 | Z92: 28776.99339 | AA92: 4391473.402 | AB92: 2095.584263 | AC92: 82 | AD92: 488119.7799 | AE92: 636464.9914 | AF92: 780691.7338 | AG92: 82 | AH92: 557901.0359 | AI92: 731145.4826 | AJ92: 899361.9511
B93: 83 | C93: 70554.7525 | D93: 95941.35325 | E93: 120406.2298 | F93: 621292448.4 | G93: 24925.73867 | I93: 83 | J93: 132905.409 | K93: 226355.1059 | L93: 317611.887 | M93: 8529120757 | N93: 92353.23902 | P93: 83 | Q93: 331163.7698 | R93: 385451.0886 | S93: 437841.8322 | T93: 2845052254 | U93: 53339.03124 | W93: 83 | X93: 24593.43041 | Y93: 26725.69398 | Z93: 28813.65434 | AA93: 4452572.511 | AB93: 2110.111967 | AC93: 83 | AD93: 488662.6092 | AE93: 638531.8885 | AF93: 784267.3736 | AG93: 83 | AH93: 559217.3617 | AI93: 734473.2417 | AJ93: 904673.6035
B94: 84 | C94: 71329.16463 | D94: 97208.35264 | E94: 122153.5419 | F94: 645779330.4 | G94: 25412.18862 | I94: 84 | J94: 132950.5263 | K94: 227456.9008 | L94: 319759.6854 | M94: 8724415481 | N94: 93404.57955 | P94: 84 | Q94: 331656.2783 | R94: 386401.715 | S94: 439245.899 | T94: 2893881620 | U94: 53794.81034 | W94: 84 | X94: 24601.10781 | Y94: 26747.86396 | Z94: 28850.28015 | AA94: 4513866.379 | AB94: 2124.586167 | AC94: 84 | AD94: 489207.9124 | AE94: 640606.4798 | AF94: 787855.8646 | AG94: 84 | AH94: 560537.0771 | AI94: 737814.8324 | AJ94: 910009.4064
B95: 85 | C95: 72104.4931 | D95: 98481.51921 | E95: 123912.2122 | F95: 671009938.9 | G95: 25903.85954 | I95: 85 | J95: 132995.6932 | K95: 228564.0588 | L95: 321918.1084 | M95: 8922919738 | N95: 94461.20758 | P95: 85 | Q95: 332151.0755 | R95: 387354.6859 | S95: 440652.3545 | T95: 2943131883 | U95: 54250.63947 | W95: 85 | X95: 24608.8559 | Y95: 26770.05233 | Z95: 28886.87202 | AA95: 4575355.491 | AB95: 2139.008062 | AC95: 85 | AD95: 489755.6246 | AE95: 642688.797 | AF95: 791457.3349 | AG95: 85 | AH95: 561860.1177 | AI95: 741170.3162 | AJ95: 915369.5471
B96: 86 | C96: 72880.73847 | D96: 99760.88298 | E96: 125682.2999 | F96: 697001223.5 | G96: 26400.78074 | I96: 86 | J96: 133040.8678 | K96: 229676.6059 | L96: 324087.2497 | M96: 9124680016 | N96: 95523.19099 | P96: 86 | Q96: 332648.141 | R96: 388310.007 | S96: 442061.2307 | T96: 2992806051 | U96: 54706.54487 | W96: 86 | X96: 24616.67352 | Y96: 26792.25911 | Z96: 28923.43115 | AA96: 4637040.332 | AB96: 2153.378818 | AC96: 86 | AD96: 490305.6823 | AE96: 644778.872 | AF96: 795071.9116 | AG96: 86 | AH96: 563186.4208 | AI96: 744539.755 | AJ96: 920754.2116
B97: 87 | C97: 73657.90117 | D97: 101046.4741 | E97: 127463.8648 | F97: 723770430.6 | G97: 26902.98182 | I97: 87 | J97: 133086.0088 | K97: 230794.5684 | L97: 326267.2029 | M97: 9329743434 | N97: 96590.59703 | P97: 87 | Q97: 333147.455 | R97: 389267.6843 | S97: 443472.5591 | T97: 3042907151 | U97: 55162.55207 | W97: 87 | X97: 24624.55955 | Y97: 26814.48431 | Z97: 28959.95867 | AA97: 4698921.391 | AB97: 2167.699562 | AC97: 87 | AD97: 490858.0234 | AE97: 646876.7369 | AF97: 798699.7207 | AG97: 87 | AH97: 564515.9245 | AI97: 747923.2111 | AJ97: 926163.5855
B98: 88 | C98: 74435.98147 | D98: 102338.3229 | E98: 129256.9668 | F98: 751335107.9 | G98: 27410.49266 | I98: 88 | J98: 133131.076 | K98: 231917.9726 | L98: 328458.0608 | M98: 9538157748 | N98: 97663.4924 | P98: 88 | Q98: 333648.9983 | R98: 390227.7234 | S98: 444886.3702 | T98: 3093438230 | U98: 55618.68598 | W98: 88 | X98: 24632.51292 | Y98: 26836.72795 | Z98: 28996.4557 | AA98: 4760999.155 | AB98: 2181.971392 | AC98: 88 | AD98: 491412.5872 | AE98: 648982.4239 | AF98: 802340.8867 | AG98: 88 | AH98: 565848.5686 | AI98: 751320.7469 | AJ98: 931597.8535
B99: 89 | C99: 75214.9795 | D99: 103636.4599 | E99: 131061.6664 | F99: 779713109.1 | G99: 27923.34344 | I99: 89 | J99: 133176.0293 | K99: 233046.8451 | L99: 330659.9159 | M99: 9749971361 | N99: 98741.94327 | P99: 89 | Q99: 334152.7525 | R99: 391190.1302 | S99: 446302.6942 | T99: 3144402355 | U99: 56074.97085 | W99: 89 | X99: 24640.53258 | Y99: 26858.99004 | Z99: 29032.92332 | AA99: 4823274.114 | AB99: 2196.195372 | AC99: 89 | AD99: 491969.3144 | AE99: 651095.9653 | AF99: 805995.5334 | AG99: 89 | AH99: 567184.294 | AI99: 754732.4252 | AJ99: 937057.1998
B100: 90 | C100: 75994.89529 | D100: 104940.9156 | E100: 132878.0245 | F100: 808922598.1 | G100: 28441.56462 | I100: 90 | J100: 133220.8298 | K100: 234181.2124 | L100: 332872.8604 | M100: 9965233331 | N100: 99826.0153 | P100: 90 | Q100: 334658.6999 | R100: 392154.9106 | S100: 447721.5605 | T100: 3195802613 | U100: 56531.43031 | W100: 90 | X100: 24648.6175 | Y100: 26881.27059 | Z100: 29069.36258 | AA100: 4885746.759 | AB100: 2210.372538 | AC100: 90 | AD100: 492528.1472 | AE100: 653217.3936 | AF100: 809663.7835 | AG100: 90 | AH100: 568523.0425 | AI100: 758158.3092 | AJ100: 942541.808
B101: 91 | C101: 76775.72868 | D101: 106251.7208 | E101: 134706.1026 | F101: 838982054.2 | G101: 28965.18693 | I101: 91 | J101: 133265.4387 | K101: 235321.1013 | L101: 335096.9861 | M101: 1.018399338e+10 | N101: 100915.7737 | P101: 91 | Q101: 335166.8232 | R101: 393122.0704 | S101: 449142.9981 | T101: 3247642112 | U101: 56988.08745 | W101: 91 | X101: 24656.7667 | Y101: 26903.56963 | Z101: 29105.77449 | AA101: 4948417.581 | AB101: 2224.503896 | AC101: 91 | AD101: 493089.0285 | AE101: 655346.7413 | AF101: 813345.7586 | AG101: 91 | AH101: 569864.7572 | AI101: 761598.4621 | AJ101: 948051.8612
B102: 92 | C102: 77557.47942 | D102: 107568.9065 | E102: 136545.9622 | F102: 869910276.6 | G102: 29494.24141 | I102: 92 | J102: 133309.818 | K102: 236466.5386 | L102: 337332.3845 | M102: 1.04063019e+10 | N102: 102011.2832 | P102: 92 | Q102: 335677.1057 | R102: 394091.6155 | S102: 450567.0352 | T102: 3299923977 | U102: 57444.96477 | W102: 92 | X102: 24664.97921 | Y102: 26925.88717 | Z102: 29142.16005 | AA102: 5011287.074 | AB102: 2238.590421 | AC102: 92 | AD102: 493651.9029 | AE102: 657484.0413 | AF102: 817041.5797 | AG102: 92 | AH102: 571209.3823 | AI102: 765052.9477 | AJ102: 953587.542
B103: 93 | C103: 78340.14709 | D103: 108892.5035 | E103: 138397.6658 | F103: 901726389.2 | G103: 30028.75937 | I103: 93 | J103: 133353.9304 | K103: 237617.5514 | L103: 339579.1468 | M103: 1.063220997e+10 | N103: 103112.6082 | P103: 93 | Q103: 336189.5313 | R103: 395063.5517 | S103: 451993.6997 | T103: 3352651358 | U103: 57902.08423 | W103: 93 | X103: 24673.2541 | Y103: 26948.22322 | Z103: 29178.52024 | AA103: 5074355.731 | AB103: 2252.633066 | AC103: 93 | AD103: 494216.7158 | AE103: 659629.3264 | AF103: 820751.3668 | AG103: 93 | AH103: 572556.8629 | AI103: 768521.83 | AJ103: 959149.0326
B104: 94 | C104: 79123.73115 | D104: 110222.5433 | E104: 140261.2759 | F104: 934449845.9 | G104: 30568.7724 | I104: 94 | J104: 133397.7388 | K104: 238774.1669 | L104: 341837.3641 | M104: 1.086176935e+10 | N104: 104219.8127 | P104: 94 | Q104: 336704.0844 | R104: 396037.885 | S104: 453423.019 | T104: 3405827423 | U104: 58359.4673 | W104: 94 | X104: 24681.59046 | Y104: 26970.5778 | Z104: 29214.85597 | AA104: 5137624.048 | AB104: 2266.632755 | AC104: 94 | AD104: 494783.4137 | AE104: 661782.6297 | AF104: 824475.2391 | AG104: 94 | AH104: 573907.1448 | AI104: 772005.173 | AJ104: 964736.5151
B105: 95 | C105: 79908.23093 | D105: 111559.0571 | E105: 142136.8557 | F105: 968100435.1 | G105: 31114.31238 | I105: 95 | J105: 133441.2067 | K105: 239936.4122 | L105: 344107.1271 | M105: 1.109503251e+10 | N105: 105332.9602 | P105: 95 | Q105: 337220.7501 | R105: 397014.6213 | S105: 454855.02 | T105: 3459455360 | U105: 58817.13492 | W105: 95 | X105: 24689.98741 | Y105: 26992.95092 | Z105: 29251.16819 | AA105: 5201092.52 | AB105: 2280.590388 | AC105: 95 | AD105: 495351.9442 | AE105: 663943.9844 | AF105: 828213.3153 | AG105: 95 | AH105: 575260.1751 | AI105: 775503.0416 | AJ105: 970350.171
B106: 96 | C106: 80693.64563 | D106: 112902.0765 | E106: 144024.4686 | F106: 1002698285 | G106: 31665.41149 | I106: 96 | J106: 133484.298 | K106: 241104.3148 | L106: 346388.5264 | M106: 1.133205261e+10 | N106: 106452.1142 | P106: 96 | Q106: 337739.5137 | R106: 397993.7665 | S106: 456289.7289 | T106: 3513538380 | U106: 59275.10759 | W106: 96 | X106: 24698.44408 | Y106: 27015.3426 | Z106: 29287.45776 | AA106: 5264761.645 | AB106: 2294.506841 | AC106: 96 | AD106: 495922.2558 | AE106: 666113.4239 | AF106: 831965.7131 | AG106: 96 | AH106: 576615.9015 | AI106: 779015.5004 | AJ106: 975990.1817
B107: 97 | C107: 81479.9743 | D107: 114251.633 | E107: 145924.1786 | F107: 1038263868 | G107: 32222.10217 | I107: 97 | J107: 133526.9773 | K107: 242277.9023 | L107: 348681.6524 | M107: 1.157288355e+10 | N107: 107577.3375 | P107: 97 | Q107: 338260.3611 | R107: 398975.3265 | S107: 457727.1718 | T107: 3568079713 | U107: 59733.40534 | W107: 97 | X107: 24706.95963 | Y107: 27037.75286 | Z107: 29323.72557 | AA107: 5328631.921 | AB107: 2308.382967 | AC107: 97 | AD107: 496494.2981 | AE107: 668290.9816 | AF107: 835732.5497 | AG107: 97 | AH107: 577974.2724 | AI107: 782542.6146 | AJ107: 981656.7284
B108: 98 | C108: 82267.21588 | D108: 115607.7586 | E108: 147836.0502 | F108: 1074818008 | G108: 32784.41716 | I108: 98 | J108: 133569.2093 | K108: 243457.2022 | L108: 350986.5953 | M108: 1.181757994e+10 | N108: 108708.693 | P108: 98 | Q108: 338783.2787 | R108: 399959.3072 | S108: 459167.3742 | T108: 3623082611 | U108: 60192.04774 | W108: 98 | X108: 24715.53326 | Y108: 27060.1817 | Z108: 29359.97245 | AA108: 5392703.848 | AB108: 2322.219595 | AC108: 98 | AD108: 497068.0213 | AE108: 670476.6912 | AF108: 839513.9419 | AG108: 98 | AH108: 579335.2371 | AI108: 786084.4498 | AJ108: 987349.9921
B109: 99 | C109: 83055.36917 | D109: 116970.4852 | E109: 149760.1481 | F109: 1112381883 | G109: 33352.38947 | I109: 99 | J109: 133610.9591 | K109: 244642.2425 | L109: 353303.4453 | M109: 1.206619712e+10 | N109: 109846.2431 | P109: 99 | Q109: 339308.2533 | R109: 400945.7148 | S109: 460610.3612 | T109: 3678550347 | U109: 60651.05396 | W109: 99 | X109: 24724.16417 | Y109: 27082.62916 | Z109: 29396.19924 | AA109: 5456977.926 | AB109: 2336.017535 | AC109: 99 | AD109: 497643.3766 | AE109: 672670.5864 | AF109: 843310.0058 | AG109: 99 | AH109: 580698.7458 | AI109: 789641.0717 | AJ109: 993070.1539
B110: 100 | C110: 83844.43284 | D110: 118339.845 | E110: 151696.5377 | F110: 1150977032 | G110: 33926.05241 | I110: 100 | J110: 133652.1925 | K110: 245833.051 | L110: 355632.2925 | M110: 1.23187912e+10 | N110: 110990.05 | P110: 100 | Q110: 339835.272 | R110: 401934.5551 | S110: 462056.1575 | T110: 3734486214 | U110: 61110.44276 | W110: 100 | X110: 24732.85158 | Y110: 27105.09523 | Z110: 29432.40673 | AA110: 5521454.657 | AB110: 2349.777576 | AC110: 100 | AD110: 498220.3161 | AE110: 674872.7013 | AF110: 847120.8568 | AG110: 100 | AH110: 582064.7489 | AI110: 793212.5463 | AJ110: 998817.3944
B111: 101 | C111: 84634.40543 | D111: 119715.8702 | E111: 153645.2846 | F111: 1190625360 | G111: 34505.43957 | I111: 101 | J111: 133692.8752 | K111: 247029.6558 | L111: 357973.2267 | M111: 1.257541902e+10 | N111: 112140.1758 | P111: 101 | Q111: 340364.3226 | R111: 402925.8341 | S111: 463504.7876 | T111: 3790893529 | U111: 61570.23249 | W111: 101 | X111: 24741.59474 | Y111: 27127.57994 | Z111: 29468.59571 | AA111: 5586134.544 | AB111: 2363.500485 | AC111: 101 | AD111: 498798.7925 | AE111: 677083.0698 | AF111: 850946.61 | AG111: 101 | AH111: 583433.1979 | AI111: 796798.94 | AJ111: 1004591.895
B112: 102 | C112: 85425.28536 | D112: 121098.5932 | E112: 155606.455 | F112: 1231349143 | G112: 35090.58482 | I112: 102 | J112: 133732.9735 | K112: 248232.0851 | L112: 360326.338 | M112: 1.283613821e+10 | N112: 113296.6822 | P112: 102 | Q112: 340895.393 | R112: 403919.5579 | S112: 464956.2753 | T112: 3847775628 | U112: 62030.44114 | W112: 102 | X112: 24750.39293 | Y112: 27150.0833 | Z112: 29504.76695 | AA112: 5651018.09 | AB112: 2377.187012 | AC112: 102 | AD112: 499378.7594 | AE112: 679301.7263 | AF112: 854787.3802 | AG112: 102 | AH112: 584804.0448 | AI112: 800400.3196 | AJ112: 1010393.835
B113: 103 | C113: 86217.0709 | D113: 122488.0468 | E113: 157580.1156 | F113: 1273171036 | G113: 35681.52233 | I113: 103 | J113: 133772.4541 | K113: 249440.3673 | L113: 362691.7161 | M113: 1.310100714e+10 | N113: 114459.631 | P113: 103 | Q113: 341428.4716 | R113: 404915.7325 | S113: 466410.6443 | T113: 3905135871 | U113: 62491.08633 | W113: 103 | X113: 24759.24541 | Y113: 27172.60533 | Z113: 29540.92119 | AA113: 5716105.802 | AB113: 2390.837887 | AC113: 103 | AD113: 499960.1711 | AE113: 681528.7052 | AF113: 858643.2816 | AG113: 103 | AH113: 586177.242 | AI113: 804016.7519 | AJ113: 1016223.397
B114: 104 | C114: 87009.76023 | D114: 123884.2635 | E114: 159566.3333 | F114: 1316114073 | G114: 36278.28653 | I114: 104 | J114: 133811.2837 | K114: 250654.5309 | L114: 365069.451 | M114: 1.337008499e+10 | N114: 115629.0837 | P114: 104 | Q114: 341963.5472 | R114: 405914.364 | S114: 467867.9179 | T114: 3962977638 | U114: 62952.18533 | W114: 104 | X114: 24768.15151 | Y114: 27195.14604 | Z114: 29577.05915 | AA114: 5781398.184 | AB114: 2404.453822 | AC114: 104 | AD114: 500542.9824 | AE114: 683764.0409 | AF114: 862514.428 | AG114: 104 | AH114: 587552.7426 | AI114: 807648.3045 | AJ114: 1022080.761
B115: 105 | C115: 87803.35136 | D115: 125287.2764 | E115: 161565.1757 | F115: 1360201681 | G115: 36880.91215 | I115: 105 | J115: 133849.4295 | K115: 251874.6045 | L115: 367459.6324 | M115: 1.364343173e+10 | N115: 116805.1015 | P115: 105 | Q115: 342500.6089 | R115: 406915.4583 | S115: 469328.119 | T115: 4021304332 | U115: 63413.75507 | W115: 105 | X115: 24777.11053 | Y115: 27217.70545 | Z115: 29613.18155 | AA115: 5846895.746 | AB115: 2418.035514 | AC115: 105 | AD115: 501127.1489 | AE115: 686007.7683 | AF115: 866400.933 | AG115: 105 | AH115: 588930.5002 | AI115: 811295.0447 | AJ115: 1027966.109
B116: 106 | C116: 88597.84221 | D116: 126697.1186 | E116: 163576.7107 | F116: 1405457678 | G116: 37489.43422 | I116: 106 | J116: 133886.8588 | K116: 253100.6169 | L116: 369862.3502 | M116: 1.392110814e+10 | N116: 117987.7457 | P116: 106 | Q116: 343039.6461 | R116: 407919.0216 | S116: 470791.2704 | T116: 4080119377 | U116: 63875.81215 | W116: 106 | X116: 24786.12181 | Y116: 27240.28358 | Z116: 29649.28909 | AA116: 5912598.994 | AB116: 2431.583639 | AC116: 106 | AD116: 501712.6268 | AE116: 688259.9221 | AF116: 870302.9098 | AG116: 106 | AH116: 590310.469 | AI116: 814957.0407 | AJ116: 1033879.62
B117: 107 | C117: 89393.23055 | D117: 128113.8232 | E117: 165601.0066 | F117: 1451906283 | G117: 38103.88804 | I117: 107 | J117: 133923.5394 | K117: 254332.597 | L117: 372277.6944 | M117: 1.42031758e+10 | N117: 119177.0775 | P117: 107 | Q117: 343580.6487 | R117: 408925.0599 | S117: 472257.3944 | T117: 4139426221 | U117: 64338.37285 | W117: 107 | X117: 24795.18471 | Y117: 27262.88043 | Z117: 29685.38244 | AA117: 5978508.438 | AB117: 2445.098861 | AC117: 107 | AD117: 502299.3729 | AE117: 690520.5373 | AF117: 874220.4713 | AG117: 107 | AH117: 591692.6034 | AI117: 818634.3605 | AJ117: 1039821.478
B118: 108 | C118: 90189.51404 | D118: 129537.4237 | E118: 167638.1324 | F118: 1499572122 | G118: 38724.30918 | I118: 108 | J118: 133959.4391 | K118: 255570.5737 | L118: 374705.7548 | M118: 1.448969713e+10 | N118: 120373.1578 | P118: 108 | Q118: 344123.6068 | R118: 409933.5795 | S118: 473726.5131 | T118: 4199228333 | U118: 64801.45317 | W118: 108 | X118: 24804.2986 | Y118: 27285.49603 | Z118: 29721.46225 | AA118: 6044624.59 | AB118: 2458.581825 | AC118: 108 | AD118: 502887.3445 | AE118: 692789.6492 | AF118: 878153.7302 | AG118: 108 | AH118: 593076.8585 | AI118: 822327.0729 | AJ118: 1045791.863
B119: 109 | C119: 90986.69019 | D119: 130967.9537 | E119: 169688.1573 | F119: 1548480230 | G119: 39350.73354 | I119: 109 | J119: 133994.526 | K119: 256814.5764 | L119: 377146.6215 | M119: 1.478073538e+10 | N119: 121576.0477 | P119: 109 | Q119: 344668.5107 | R119: 410944.5862 | S119: 475198.6482 | T119: 4259529205 | U119: 65265.0688 | W119: 109 | X119: 24813.46286 | Y119: 27308.13039 | Z119: 29757.52919 | AA119: 6110947.962 | AB119: 2472.033164 | AC119: 109 | AD119: 503476.4995 | AE119: 695067.2931 | AF119: 882102.7989 | AG119: 109 | AH119: 594463.1897 | AI119: 826035.2468 | AJ119: 1051790.956
B120: 110 | C120: 91784.75641 | D120: 132405.4468 | E120: 171751.151 | F120: 1598656065 | G120: 39983.19728 | I120: 110 | J120: 134028.7684 | K120: 258064.6344 | L120: 379600.3844 | M120: 1.507635465e+10 | N120: 122785.808 | P120: 110 | Q120: 345215.3511 | R120: 411958.0865 | S120: 476673.8214 | T120: 4320332351 | U120: 65729.23513 | W120: 110 | X120: 24822.67689 | Y120: 27330.78352 | Z120: 29793.58388 | AA120: 6177479.065 | AB120: 2485.453493 | AC120: 110 | AD120: 504066.7964 | AE120: 697353.5043 | AF120: 886067.7897 | AG120: 110 | AH120: 595851.5528 | AI120: 829758.9512 | AJ120: 1057818.941
B121: 111 | C121: 92583.70998 | D121: 133849.937 | E121: 173827.1837 | F121: 1650125505 | G121: 40621.73685 | I121: 111 | J121: 134062.1348 | K121: 259320.777 | L121: 382067.1339 | M121: 1.53766199e+10 | N121: 124002.4996 | P121: 111 | Q121: 345764.1191 | R121: 412974.0862 | S121: 478152.0538 | T121: 4381641309 | U121: 66193.96731 | W121: 111 | X121: 24831.94011 | Y121: 27353.45545 | Z121: 29829.62694 | AA121: 6244218.416 | AB121: 2498.843416 | AC121: 111 | AD121: 504658.194 | AE121: 699648.3187 | AF121: 890048.8146 | AG121: 111 | AH121: 597241.904 | AI121: 833498.2557 | AJ121: 1063875.998
B122: 112 | C122: 93383.54804 | D122: 135301.4584 | E122: 175916.326 | F122: 1702914861 | G122: 41266.389 | I122: 112 | J122: 134094.5938 | K122: 260583.034 | L122: 384546.9602 | M122: 1.568159695e+10 | N122: 125226.1832 | P122: 112 | Q122: 346314.806 | R122: 413992.5917 | S122: 479633.3664 | T122: 4443459638 | U122: 66659.28021 | W122: 112 | X122: 24841.25193 | Y122: 27376.14618 | Z122: 29865.65897 | AA122: 6311166.527 | AB122: 2512.20352 | AC122: 112 | AD122: 505250.6518 | AE122: 701951.7719 | AF122: 894045.9856 | AG122: 112 | AH122: 598634.1998 | AI122: 837253.2303 | AJ122: 1069962.312
B123: 113 | C123: 94184.26762 | D123: 136760.0451 | E123: 178018.6491 | F123: 1757050881 | G123: 41917.19075 | I123: 113 | J123: 134126.1144 | K123: 261851.4351 | L123: 387039.9536 | M123: 1.599135252e+10 | N123: 126456.9196 | P123: 113 | Q123: 346867.4033 | R123: 415013.6092 | S123: 481117.7802 | T123: 4505790923 | U123: 67125.18844 | W123: 113 | X123: 24850.6118 | Y123: 27398.85574 | Z123: 29901.68056 | AA123: 6378323.918 | AB123: 2525.534383 | AC123: 113 | AD123: 505844.1295 | AE123: 704263.9 | AF123: 898059.4144 | AG123: 113 | AH123: 600028.3971 | AI123: 841023.9451 | AJ123: 1076078.064
B124: 114 | C124: 94985.86562 | D124: 138225.7315 | E124: 180134.2245 | F124: 1812560755 | G124: 42574.17944 | I124: 114 | J124: 134156.6654 | K124: 263126.0102 | L124: 389546.2048 | M124: 1.63059542e+10 | N124: 127694.7697 | P124: 114 | Q124: 347421.9028 | R124: 416037.1447 | S124: 482605.3155 | T124: 4568638769 | U124: 67591.70636 | W124: 114 | X124: 24860.01917 | Y124: 27421.58413 | Z124: 29937.6923 | AA124: 6445691.104 | AB124: 2538.836565 | AC124: 114 | AD124: 506438.5874 | AE124: 706584.739 | AF124: 902089.2126 | AG124: 114 | AH124: 601424.453 | AI124: 844810.4705 | AJ124: 1082223.437
B125: 115 | C125: 95788.33882 | D125: 139698.5522 | E125: 182263.1242 | F125: 1869472125 | G125: 43237.39268 | I125: 115 | J125: 134186.2161 | K125: 264406.7894 | L125: 392065.8043 | M125: 1.66254705e+10 | N125: 128939.7941 | P125: 115 | Q125: 347978.2966 | R125: 417063.2045 | S125: 484095.9928 | T125: 4632006807 | U125: 68058.84812 | W125: 115 | X125: 24869.47352 | Y125: 27444.33138 | Z125: 29973.69475 | AA125: 6513268.605 | AB125: 2552.110618 | AC125: 115 | AD125: 507033.9862 | AE125: 708914.3253 | AF125: 906135.4918 | AG125: 115 | AH125: 602822.325 | AI125: 848612.8775 | AJ125: 1088398.616
B126: 116 | C126: 96591.68387 | D126: 141178.542 | E126: 184405.4206 | F126: 1927813090 | G126: 43906.86837 | I126: 116 | J126: 134214.7357 | K126: 265693.8028 | L126: 394598.843 | M126: 1.694997083e+10 | N126: 130192.0536 | P126: 116 | Q126: 348536.5769 | R126: 418091.7949 | S126: 485589.8321 | T126: 4695898690 | U126: 68526.6276 | W126: 116 | X126: 24878.9743 | Y126: 27467.0975 | Z126: 30009.68846 | AA126: 6581056.94 | AB126: 2565.357079 | AC126: 116 | AD126: 507630.2869 | AE126: 711252.6952 | AF126: 910198.3636 | AG126: 116 | AH126: 604221.9708 | AI126: 852431.2372 | AJ126: 1094603.784
B127: 117 | C127: 97395.89729 | D127: 142665.7357 | E127: 186561.1867 | F127: 1987612209 | G127: 44582.64471 | I127: 117 | J127: 134242.1936 | K127: 266987.0808 | L127: 397145.4119 | M127: 1.727952555e+10 | N127: 131451.6091 | P127: 117 | Q127: 349096.7364 | R127: 419122.922 | S127: 487086.8534 | T127: 4760318095 | U127: 68995.05848 | W127: 117 | X127: 24888.52103 | Y127: 27489.88251 | Z127: 30045.67398 | AA127: 6649056.632 | AB127: 2578.576474 | AC127: 117 | AD127: 508227.4511 | AE127: 713599.8854 | AF127: 914277.9393 | AG127: 117 | AH127: 605623.3484 | AI127: 856265.621 | AJ127: 1100839.126
B128: 118 | C128: 98200.9755 | D128: 144160.1684 | E128: 188730.4959 | F128: 2048898516 | G128: 45264.7602 | I128: 118 | J128: 134268.5594 | K128: 268286.6539 | L128: 399705.6022 | M128: 1.761420593e+10 | N128: 132718.5214 | P128: 118 | Q128: 349658.7678 | R128: 420156.5922 | S128: 488587.0763 | T128: 4825268723 | U128: 69464.15423 | W128: 118 | X128: 24898.11319 | Y128: 27512.68641 | Z128: 30081.65182 | AA128: 6717268.201 | AB128: 2591.769319 | AC128: 118 | AD128: 508825.4404 | AE128: 715955.9326 | AF128: 918374.3303 | AG128: 118 | AH128: 607026.4159 | AI128: 860116.1009 | AJ128: 1107104.826
B129: 119 | C129: 99006.91475 | D129: 145661.8753 | E129: 190913.422 | F129: 2111701519 | G129: 45953.25362 | I129: 119 | J129: 134293.8025 | K129: 269592.5528 | L129: 402279.5053 | M129: 1.795408422e+10 | N129: 133992.8514 | P129: 119 | Q129: 350222.6641 | R129: 421192.8117 | S129: 490090.5203 | T129: 4890754298 | U129: 69933.92809 | W129: 119 | X129: 24907.75029 | Y129: 27535.50923 | Z129: 30117.62253 | AA129: 6785692.172 | AB129: 2604.936117 | AC129: 119 | AD129: 509424.217 | AE129: 718320.8737 | AF129: 922487.6481 | AG129: 119 | AH129: 608431.1317 | AI129: 863982.749 | AJ129: 1113401.07
B130: 120 | C130: 99813.71122 | D130: 147170.8918 | E130: 193110.0393 | F130: 2176051210 | G130: 46648.16406 | I130: 120 | J130: 134317.8929 | K130: 270904.8082 | L130: 404867.2127 | M130: 1.829923361e+10 | N130: 135274.6599 | P130: 120 | Q130: 350788.4186 | R130: 422231.5868 | S130: 491597.2049 | T130: 4956778570 | U130: 70404.39312 | W130: 120 | X130: 24917.43187 | Y130: 27558.35099 | Z130: 30153.58659 | AA130: 6854329.07 | AB130: 2618.077361 | AC130: 120 | AD130: 510023.7434 | AE130: 720694.746 | AF130: 926618.0041 | AG130: 120 | AH130: 609837.4546 | AI130: 867865.6378 | AJ130: 1119728.043
B131: 121 | C131: 100621.3609 | D131: 148687.2536 | E131: 195320.4227 | F131: 2241978076 | G131: 47349.5309 | I131: 121 | J131: 134340.8002 | K131: 272223.451 | L131: 407468.8162 | M131: 1.864972828e+10 | N131: 136564.008 | P131: 121 | Q131: 351356.0247 | R131: 423272.9238 | S131: 493107.149 | T131: 5023345312 | U131: 70875.56216 | W131: 121 | X131: 24927.15745 | Y131: 27581.21169 | Z131: 30189.54452 | AA131: 6923179.419 | AB131: 2631.193535 | AC131: 121 | AD131: 510623.9823 | AE131: 723077.5865 | AF131: 930765.5097 | AG131: 121 | AH131: 611245.3432 | AI131: 871764.8401 | AJ131: 1126085.932
B132: 122 | C132: 101429.8598 | D132: 150210.9963 | E132: 197544.6474 | F132: 2309513099 | G132: 48057.3938 | I132: 122 | J132: 134362.4943 | K132: 273548.5124 | L132: 410084.4078 | M132: 1.900564339e+10 | N132: 137860.9567 | P132: 122 | Q132: 351925.4759 | R132: 424316.8291 | S132: 494620.3717 | T132: 5090458320 | U132: 71347.44789 | W132: 122 | X132: 24936.92658 | Y132: 27604.09136 | Z132: 30225.4968 | AA132: 6992243.746 | AB132: 2644.285111 | AC132: 122 | AD132: 511224.8968 | AE132: 725469.4328 | AF132: 934930.2763 | AG132: 122 | AH132: 612654.7566 | AI132: 875680.4291 | AJ132: 1132474.924
B133: 123 | C133: 102239.2036 | D133: 151742.1559 | E133: 199782.7891 | F133: 2378687768 | G133: 48771.79275 | I133: 123 | J133: 134382.9451 | K133: 274880.0236 | L133: 412714.0797 | M133: 1.936705512e+10 | N133: 139165.5673 | P133: 123 | Q133: 352496.7663 | R133: 425363.3088 | S133: 496136.8918 | T133: 5158121418 | U133: 71820.06278 | W133: 123 | X133: 24946.7388 | Y133: 27626.99 | Z133: 30261.44391 | AA133: 7061522.581 | AB133: 2657.352551 | AC133: 123 | AD133: 511826.4502 | AE133: 727870.3225 | AF133: 939112.4154 | AG133: 123 | AH133: 614065.6538 | AI133: 879612.4784 | AJ133: 1138895.205
B134: 124 | C134: 103049.3879 | D134: 153280.7685 | E134: 202034.9239 | F134: 2449534085 | G134: 49492.76801 | I134: 124 | J134: 134402.1228 | K134: 276218.0161 | L134: 415357.9245 | M134: 1.973404063e+10 | N134: 140477.9008 | P134: 124 | Q134: 353069.8897 | R134: 426412.3695 | S134: 497656.728 | T134: 5226338452 | U134: 72293.41914 | W134: 124 | X134: 24956.59369 | Y134: 27649.90764 | Z134: 30297.38631 | AA134: 7131016.452 | AB134: 2670.39631 | AC134: 124 | AD134: 512428.6062 | AE134: 730280.2932 | AF134: 943312.0388 | AG134: 124 | AH134: 615477.9941 | AI134: 883561.0617 | AJ134: 1145346.963
B135: 125 | C135: 103860.4084 | D135: 154826.8704 | E135: 204301.1287 | F135: 2522084575 | G135: 50220.36016 | I135: 125 | J135: 134419.9973 | K135: 277562.5212 | L135: 418016.0348 | M135: 2.010667813e+10 | N135: 141798.0188 | P135: 125 | Q135: 353644.8404 | R135: 427464.0174 | S135: 499179.8986 | T135: 5295113292 | U135: 72767.52911 | W135: 125 | X135: 24966.49081 | Y135: 27672.8443 | Z135: 30333.32447 | AA135: 7200725.89 | AB135: 2683.416831 | AC135: 125 | AD135: 513031.3285 | AE135: 732699.3829 | AF135: 947529.2579 | AG135: 125 | AH135: 616891.7369 | AI135: 887526.2534 | AJ135: 1151830.387
B136: 126 | C136: 104672.2604 | D136: 156380.4981 | E136: 206581.4805 | F136: 2596372287 | G136: 50954.61007 | I136: 126 | J136: 134436.5387 | K136: 278913.5708 | L136: 420688.5037 | M136: 2.048504687e+10 | N136: 143125.9825 | P136: 126 | Q136: 354221.6128 | R136: 428518.259 | S136: 500706.4221 | T136: 5364449837 | U136: 73242.40464 | W136: 126 | X136: 24976.42975 | Y136: 27695.79997 | Z136: 30369.25885 | AA136: 7270651.426 | AB136: 2696.41455 | AC136: 126 | AD136: 513634.5812 | AE136: 735127.6298 | AF136: 951764.1846 | AG136: 126 | AH136: 618306.8416 | AI136: 891508.1279 | AJ136: 1158345.665
B137: 127 | C137: 105484.9392 | D137: 157941.688 | E137: 208876.057 | F137: 2672430811 | G137: 51695.55891 | I137: 127 | J137: 134451.7172 | K137: 280271.1967 | L137: 423375.4244 | M137: 2.086922715e+10 | N137: 144461.8536 | P137: 127 | Q137: 354800.2015 | R137: 429575.1006 | S137: 502236.3166 | T137: 5434352007 | U137: 73718.05754 | W137: 127 | X137: 24986.41008 | Y137: 27718.7747 | Z137: 30405.18987 | AA137: 7340793.593 | AB137: 2709.389893 | AC137: 127 | AD137: 514238.3288 | AE137: 737565.0721 | AF137: 956016.9309 | AG137: 127 | AH137: 619723.2679 | AI137: 895506.7601 | AJ137: 1164892.988
B138: 128 | C138: 106298.4399 | D138: 159510.4772 | E138: 211184.9362 | F138: 2750294277 | G138: 52443.24816 | I138: 128 | J138: 134465.5029 | K138: 281635.431 | L138: 426076.8905 | M138: 2.125930034e+10 | N138: 145805.6938 | P138: 128 | Q138: 355380.6012 | R138: 430634.5487 | S138: 503769.6001 | T138: 5504823750 | U138: 74194.49946 | W138: 128 | X138: 24996.43142 | Y138: 27741.76848 | Z138: 30441.11797 | AA138: 7411152.925 | AB138: 2722.343278 | AC138: 128 | AD138: 514842.5355 | AE138: 740011.7482 | AF138: 960287.6086 | AG138: 128 | AH138: 621140.9754 | AI138: 899522.2254 | AJ138: 1171472.545
B139: 129 | C139: =+D138-G139+$D$5 -> 107112.7576 | D139: =+D138*(1+$D$3)+$D$5 -> 161086.9025 | E139: =D138+G139+$D$5 -> 213508.1968 | F139: 2829997370 | G139: 53197.7196 | I139: 129 | J139: 134477.8661 | K139: =+K138*(1+$K$3)+$K$5 -> 283006.3057 | L139: 428792.9958 | M139: 2.165534888e+10 | N139: 147157.5648 | P139: 129 | Q139: 355962.8068 | R139: =+R138*(1+$R$3)+$R$5 -> 431696.6097 | S139: 505306.2906 | T139: 5575869037 | U139: 74671.74189 | W139: 129 | X139: 25006.49336 | Y139: =+Y138*(1+$Y$3)+$Y$5 -> 27764.78133 | Z139: 30477.04359 | AA139: 7481729.958 | AB139: 2735.275116 | AC139: 129 | AD139: =+J139+Q139+X139 -> 515447.1663 | AE139: =+K139+R139+Y139 -> 742467.6967 | AF139: =+L139+S139+Z139 -> 964576.33 | AG139: 129 | AH139: =+AD139+C139 -> 622559.9239 | AI139: =+AE139+D139 -> 903554.5992 | AJ139: =+AF139+E139 -> 1178084.527
B140: 130 | C140: 107927.8872 | D140: 162671.0012 | E140: 215845.9178 | F140: 2911575334 | G140: 53959.01532 | I140: 130 | J140: =+K139-N140+$K$5 -> 134488.777 | K140: 284383.8532 | L140: =K139+N140+$K$5 -> 431523.8343 | M140: =M139*($K$4^2)+(K139^2)*($K$4^2)+((1+$K$3)^2)*M139 -> 2.205745632e+10 | N140: 148517.5287 | P140: 130 | Q140: =+R139-U140+$R$5 -> 356546.8135 | R140: 432761.29 | S140: =R139+U140+$R$5 -> 506846.4059 | T140: =T139*($R$4^2)+(R139^2)*($R$4^2)+((1+$R$3)^2)*T139 -> 5647491868 | U140: 75149.79619 | W140: 130 | X140: =+Y139-AB140+$Y$5 -> 25016.59552 | Y140: 27787.81327 | Z140: =Y139+AB140+$Y$5 -> 30512.96714 | AA140: =AA139*($Y$4^2)+(Y139^2)*($Y$4^2)+((1+$Y$3)^2)*AA139 -> 7552525.228 | AB140: 2748.185807 | AC140: 130 | AD140: 516052.186 | AE140: 744932.9564 | AF140: 968883.2074 | AG140: 130 | AH140: 623980.0732 | AI140: 907603.9576 | AJ140: 1184729.125
B141: 131 | C141: 108743.8234 | D141: 164262.8105 | E141: 218198.1789 | F141: 2995063979 | G141: 54727.1777 | I141: 131 | J141: 134498.2057 | K141: 285768.1059 | L141: 434269.5006 | M141: 2.246570731e+10 | N141: 149885.6474 | P141: 131 | Q141: 357132.6164 | R141: 433828.5961 | S141: 508389.9636 | T141: 5719696265 | U141: 75628.67356 | W141: 131 | X141: 25026.73753 | Y141: 27810.86433 | Z141: 30548.88902 | AA141: 7623539.272 | AB141: 2761.075745 | AC141: 131 | AD141: 516657.5597 | AE141: 747407.5664 | AF141: 973208.3532 | AG141: 131 | AH141: 625401.3831 | AI141: 911670.3768 | AJ141: 1191406.532
B142: 132 | C142: 109560.561 | D142: 165862.368 | E142: 220565.0599 | F142: =F141*($D$4^2)+(D141^2)*($D$4^2)+((1+$D$3)^2)*F141 -> 3080499695 | G142: =SQRT(F142) -> 55502.24946 | I142: 132 | J142: 134506.1226 | K142: 287159.0966 | L142: 437030.0893 | M142: 2.288018762e+10 | N142: =SQRT(M142) -> 151261.9834 | P142: 132 | Q142: 357720.211 | R142: 434898.5344 | S142: 509936.9812 | T142: 5792486278 | U142: =SQRT(T142) -> 76108.38507 | W142: 132 | X142: 25036.91901 | Y142: 27833.9345 | Z142: 30584.80964 | AA142: 7694772.629 | AB142: =SQRT(AA142) -> 2773.945318 | AC142: 132 | AD142: 517263.2526 | AE142: 749891.5656 | AF142: 977551.8801 | AG142: 132 | AH142: 626823.8136 | AI142: 915753.9336 | AJ142: 1198116.94
B143: 133 | C143: 110378.0944 | D143: 167469.7115 | E143: 222946.6416 | F143: 3167919454 | G143: 56284.2736 | I143: 133 | J143: 134512.4977 | K143: 288556.8581 | L143: 439805.6956 | M143: 2.330098416e+10 | N143: 152646.5989 | P143: 133 | Q143: 358309.5928 | R143: 435971.1116 | S143: 511487.4761 | T143: 5865865984 | U143: 76588.94166 | W143: 133 | X143: 25047.13959 | Y143: 27857.02381 | Z143: 30620.7294 | AA143: 7766225.84 | AB143: 2786.794905 | AC143: 133 | AD143: 517869.2301 | AE143: 752384.9934 | AF143: 981913.9011 | AG143: 133 | AH143: 628247.3245 | AI143: 919854.7049 | AJ143: 1204860.543
B144: 134 | C144: 111196.418 | D144: 169084.8788 | E144: 225343.0049 | F144: 3257360823 | G144: 57073.29343 | I144: 134 | J144: 134517.3015 | K144: 289961.4232 | L144: 442596.4147 | M144: 2.3728185e+10 | N144: 154039.5566 | P144: 134 | Q144: 358900.7574 | R144: 437046.3339 | S144: 513041.4657 | T144: 5939839485 | U144: 77070.35412 | W144: 134 | X144: 25057.39893 | Y144: 27880.13227 | Z144: 30656.64868 | AA144: 7837899.445 | AB144: 2799.624876 | AC144: 134 | AD144: 518475.4578 | AE144: 754887.8894 | AF144: 986294.529 | AG144: 134 | AH144: 629671.8759 | AI144: 923972.7681 | AJ144: 1211637.534
B145: 135 | C145: 112015.5262 | D145: 170707.908 | E145: 227754.2313 | F145: 3348861969 | G145: 57869.35258 | I145: 135 | J145: 134520.5039 | K145: 291372.8251 | L145: 445402.3424 | M145: 2.416187937e+10 | N145: 155440.9192 | P145: 135 | Q145: 359493.7008 | R145: 438124.2081 | S145: 514598.9671 | T145: 6014410908 | U145: 77552.63314 | W145: 135 | X145: 25067.69667 | Y145: 27903.2599 | Z145: 30692.56787 | AA145: 7909793.987 | AB145: 2812.435597 | AC145: 135 | AD145: 519081.9014 | AE145: 757400.293 | AF145: 990693.8773 | AG145: 135 | AH145: 631097.4276 | AI145: 928108.201 | AJ145: 1218448.109
B146: 136 | C146: 112835.413 | D146: 172338.8373 | E146: 230180.403 | F146: 3442461670 | G146: 58672.49501 | I146: 136 | J146: 134522.0753 | K146: 292791.097 | L146: 448223.5748 | M146: 2.460215769e+10 | N146: 156850.7497 | P146: 136 | Q146: 360088.4188 | R146: 439204.7406 | S146: 516159.9974 | T146: 6089584409 | U146: 78035.78928 | W146: 136 | X146: 25078.03248 | Y146: 27926.40672 | Z146: 30728.48733 | AA146: 7981910.009 | AB146: 2825.227426 | AC146: 136 | AD146: 519688.5266 | AE146: 759922.2443 | AF146: 995112.0595 | AG146: 136 | AH146: 632523.9396 | AI146: 932261.0816 | AJ146: 1225292.462
B147: 137 | C147: 113656.0724 | D147: 173977.7053 | E147: 232621.6023 | F147: 3538199326 | G147: 59482.76495 | I147: 137 | J147: 134521.9858 | K147: 294216.2725 | L147: 451060.2082 | M147: 2.504911155e+10 | N147: 158269.1112 | P147: 137 | Q147: 360684.9076 | R147: 440287.938 | S147: 517724.5735 | T147: 6165364169 | U147: 78519.83297 | W147: 137 | X147: 25088.406 | Y147: 27949.57274 | Z147: 30764.40743 | AA147: 8054248.056 | AB147: 2838.000715 | AC147: 137 | AD147: 520295.2995 | AE147: 762453.7832 | AF147: 999549.1892 | AG147: 137 | AH147: 633951.3718 | AI147: 936431.4885 | AJ147: 1232170.791
B148: 138 | C148: 114477.4984 | D148: 175624.5506 | E148: 235077.9123 | F148: 3636114963 | G148: 60300.20699 | I148: 138 | J148: 134520.2056 | K148: 295648.3851 | L148: 453912.3394 | M148: 2.550283379e+10 | N148: 159696.0669 | P148: 138 | Q148: 361283.1634 | R148: 441373.8068 | S148: 519292.7125 | T148: 6241754398 | U148: 79004.77453 | W148: 138 | X148: 25098.81693 | Y148: 27972.75797 | Z148: 30800.32855 | AA148: 8126808.675 | AB148: 2850.755808 | AC148: 138 | AD148: 520902.1859 | AE148: 764994.9498 | AF148: 1004005.38 | AG148: 138 | AH148: 635379.6843 | AI148: 940619.5004 | AJ148: 1239083.293
B149: 139 | C149: 115299.6846 | D149: 177279.412 | E149: 237549.4166 | F149: 3736249243 | G149: 61124.866 | I149: 139 | J149: 134516.7046 | K149: 297087.4685 | L149: 456780.0655 | M149: 2.596341845e+10 | N149: 161131.6805 | P149: 139 | Q149: 361883.1826 | R149: 442462.3537 | S149: 520864.431 | T149: 6318759331 | U149: 79490.62417 | W149: 139 | X149: 25109.26493 | Y149: 27995.96244 | Z149: 30836.25102 | AA149: 8199592.412 | AB149: 2863.493044 | AC149: 139 | AD149: 521509.1522 | AE149: 767545.7846 | AF149: 1008480.747 | AG149: 139 | AH149: 636808.8368 | AI149: 944825.1966 | AJ149: 1246030.164
B150: 140 | C150: 116122.6248 | D150: 178942.3285 | E150: 240036.1992 | F150: 3838643479 | G150: 61956.78719 | I150: 140 | J150: 134511.453 | K150: 298533.5568 | L150: 459663.484 | M150: 2.643096082e+10 | N150: 162576.0155 | P150: 140 | Q150: 362484.9617 | R150: 443553.5852 | S150: 522439.7457 | T150: 6396383231 | U150: 79977.392 | W150: 140 | X150: 25119.74969 | Y150: 28019.18616 | Z150: 30872.1752 | AA150: 8272599.816 | AB150: 2876.212756 | AC150: 140 | AD150: 522116.1644 | AE150: 770106.3282 | AF150: 1012975.405 | AG150: 140 | AH150: 638238.7892 | AI150: 949048.6567 | AJ150: 1253011.604
B151: 141 | C151: 116946.3124 | D151: 180613.3393 | E151: 242538.3446 | F151: 3943339637 | G151: 62796.01609 | I151: 141 | J151: 134504.4208 | K151: 299986.684 | L151: 462562.6928 | M151: 2.690555746e+10 | N151: 164029.136 | P151: 141 | Q151: 363088.4972 | R151: 444647.508 | S151: 524018.6732 | T151: 6474630388 | U151: 80465.08801 | W151: 141 | X151: 25130.27089 | Y151: 28042.42914 | Z151: 30908.10143 | AA151: 8345831.437 | AB151: 2888.91527 | AC151: 141 | AD151: 522723.1889 | AE151: 772676.6211 | AF151: 1017489.467 | AG151: 141 | AH151: 639669.5013 | AI151: 953289.9605 | AJ151: 1260027.812
B152: 142 | C152: 117770.7408 | D152: 182292.4839 | E152: 245055.9379 | F152: 4050380348 | G152: 63642.59853 | I152: 142 | J152: 134495.5779 | K152: 301446.8843 | L152: 465477.7901 | M152: 2.73873062e+10 | N152: 165491.1061 | P152: 142 | Q152: 363693.7859 | R152: 445744.1287 | S152: 525601.2301 | T152: 6553505121 | U152: 80953.72209 | W152: 142 | X152: 25140.82824 | Y152: 28065.69141 | Z152: 30944.03005 | AA152: 8419287.826 | AB152: 2901.600907 | AC152: 142 | AD152: 523330.192 | AE152: 775256.7045 | AF152: 1022023.05 | AG152: 142 | AH152: 641100.9328 | AI152: 957549.1883 | AJ152: 1267078.988
B153: 143 | C153: 118595.9032 | D153: 183979.8018 | E153: 247589.0646 | F153: 4159808920 | G153: 64496.58068 | I153: 143 | J153: 134484.8942 | K153: 302914.1923 | L153: 468408.8745 | M153: 2.787630615e+10 | N153: 166961.9901 | P153: 143 | Q153: 364300.8247 | R153: 446843.454 | S153: 527187.4327 | T153: 6633011774 | U153: 81443.30405 | W153: 143 | X153: 25151.42142 | Y153: 28088.97297 | Z153: 30979.96139 | AA153: 8492969.534 | AB153: 2914.269983 | AC153: 143 | AD153: 523937.1403 | AE153: 777846.6192 | AF153: 1026576.269 | AG153: 143 | AH153: 642533.0435 | AI153: 961826.421 | AJ153: 1274165.333
B154: 144 | C154: 119421.7927 | D154: 185675.3328 | E154: 250137.8108 | F154: 4271669345 | G154: 65358.00903 | I154: 144 | J154: 134472.3396 | K154: 304388.6424 | L154: 471356.045 | M154: 2.837265775e+10 | N154: 168441.8527 | P154: 144 | Q154: 364909.6104 | R154: 447945.4905 | S154: 528777.2975 | T154: 6713154722 | U154: 81933.84357 | W154: 144 | X154: 25162.05016 | Y154: 28112.27384 | Z154: 31015.89577 | AA154: 8566877.115 | AB154: 2926.922806 | AC154: 144 | AD154: 524544.0001 | AE154: 780446.4068 | AF154: 1031149.238 | AG154: 144 | AH154: 643965.7929 | AI154: 966121.7395 | AJ154: 1281287.049
B155: 145 | C155: 120248.4024 | D155: 187379.1168 | E155: 252702.2632 | F155: 4386006309 | G155: 66226.93039 | I155: 145 | J155: 134457.8838 | K155: 305870.2696 | L155: 474319.4011 | M155: 2.887646275e+10 | N155: 169930.7587 | P155: 145 | Q155: 365520.1402 | R155: 449050.2449 | S155: 530370.8407 | T155: 6793938367 | U155: 82425.35027 | W155: 145 | X155: 25172.71416 | Y155: 28135.59404 | Z155: 31051.83352 | AA155: 8641011.123 | AB155: 2939.559682 | AC155: 145 | AD155: 525150.7381 | AE155: 783056.1085 | AF155: 1035742.075 | AG155: 145 | AH155: 645399.1405 | AI155: 970435.2253 | AJ155: 1288444.339
B156: 146 | C156: 121075.7249 | D156: 189091.1942 | E156: 255282.5087 | F156: 4502865204 | G156: 67103.39189 | I156: 146 | J156: 134441.4965 | K156: 307359.1086 | L156: 477299.0426 | M156: 2.938782424e+10 | N156: 171428.7731 | P156: 146 | Q156: 366132.4112 | R156: 450157.7239 | S156: 531968.0785 | T156: 6875367137 | U156: 82917.83365 | W156: 146 | X156: 25183.41314 | Y156: 28158.93359 | Z156: 31087.77495 | AA156: 8715372.115 | AB156: 2952.180908 | AC156: 146 | AD156: 525757.3209 | AE156: 785675.7661 | AF156: 1040354.896 | AG156: 146 | AH156: 646833.0458 | AI156: 974766.9603 | AJ156: 1295637.405
B157: 147 | C157: 121903.7532 | D157: 190811.6051 | E157: 257878.6352 | F157: 4622292135 | G157: 67987.44101 | I157: 147 | J157: 134423.1474 | K157: 308855.1946 | L157: 480295.0698 | M157: 2.990684668e+10 | N157: 172935.9612 | P157: 147 | Q157: 366746.4208 | R157: 451267.9343 | S157: 533569.0271 | T157: 6957445491 | U157: 83411.30314 | W157: 147 | X157: 25194.14681 | Y157: 28182.2925 | Z157: 31123.72037 | AA157: 8789960.648 | AB157: 2964.786779 | AC157: 147 | AD157: 526363.715 | AE157: 788305.4214 | AF157: 1044987.817 | AG157: 147 | AH157: 648267.4681 | AI157: 979117.0265 | AJ157: 1302866.452
B158: 148 | C158: 122732.4796 | D158: 192540.3902 | E158: 260490.7306 | F158: 4744333934 | G158: 68879.12553 | I158: 148 | J158: 134402.8059 | K158: 310358.5628 | L158: 483307.5832 | M158: 3.04336359e+10 | N158: 174452.3886 | P158: 148 | Q158: 367362.1663 | R158: 452380.8828 | S158: 535173.7024 | T158: 7040177917 | U158: 83905.76808 | W158: 148 | X158: 25204.91492 | Y158: 28205.67079 | Z158: 31159.67009 | AA158: 8864777.279 | AB158: 2977.377584 | AC158: 148 | AD158: 526969.8871 | AE158: 790945.1164 | AF158: 1049640.956 | AG158: 148 | AH158: 649702.3667 | AI158: 983485.5067 | AJ158: 1310131.686
B159: 149 | C159: 123561.8967 | D159: 194277.5903 | E159: 263118.8838 | F159: 4869038167 | G159: 69778.49359 | I159: 149 | J159: 134380.4417 | K159: 311869.2488 | L159: 486336.684 | M159: 3.096829912e+10 | N159: 175978.1211 | P159: 149 | Q159: 367979.6451 | R159: 453496.5761 | S159: 536782.1205 | T159: 7123568929 | U159: 84401.23772 | W159: 149 | X159: 25215.71718 | Y159: 28229.06847 | Z159: 31195.62439 | AA159: 8939822.569 | AB159: 2989.953606 | AC159: 149 | AD159: 527575.8039 | AE159: 793594.8934 | AF159: 1054314.429 | AG159: 149 | AH159: 651137.7006 | AI159: 987872.4837 | AJ159: 1317433.313
B160: 150 | C160: 124391.9967 | D160: 196023.2463 | E160: 265763.184 | F160: 4996453146 | G160: 70685.59363 | I160: 150 | J160: 134356.024 | K160: 313387.2882 | L160: 489382.4737 | M160: 3.151094499e+10 | N160: 177513.2248 | P160: 150 | Q160: 368598.8548 | R160: 454615.021 | S160: 538394.2973 | T160: 7207623073 | U160: 84897.72125 | W160: 150 | X160: 25226.55334 | Y160: 28252.48555 | Z160: 31231.58359 | AA160: 9015097.077 | AB160: 3002.515125 | AC160: 150 | AD160: 528181.4322 | AE160: 796254.7947 | AF160: 1059008.355 | AG160: 150 | AH160: 652573.4289 | AI160: 992278.041 | AJ160: 1324771.539
B161: 151 | C161: 125222.7719 | D161: 197777.3994 | E161: 268423.7208 | F161: 5126627941 | G161: 71600.47445 | I161: 151 | J161: 134329.5221 | K161: 314912.7166 | L161: 492445.0542 | M161: 3.206168358e+10 | N161: 179057.766 | P161: 151 | Q161: 369219.7932 | R161: 455736.2243 | S161: 540010.2487 | T161: 7292344923 | U161: 85395.22775 | W161: 151 | X161: 25237.42314 | Y161: 28275.92207 | Z161: 31267.54797 | AA161: 9090601.367 | AB161: 3015.062415 | AC161: 151 | AD161: 528786.7385 | AE161: 798924.863 | AF161: 1063722.851 | AG161: 151 | AH161: 654009.5104 | AI161: 996702.2624 | AJ161: 1332146.572
B162: 152 | C162: 126054.2142 | D162: 199540.0909 | E162: 271100.5846 | F162: 5259612387 | G162: 72523.18517 | I162: 152 | J162: 134300.9053 | K162: 316445.5702 | L162: 495524.528 | M162: 3.262062639e+10 | N162: 180611.8113 | P162: 152 | Q162: 369842.458 | R162: 456860.1927 | S162: 541629.9905 | T162: 7377739080 | U162: 85893.76625 | W162: 152 | X162: 25248.32632 | Y162: 28299.37802 | Z162: 31303.51781 | AA162: 9166336.001 | AB162: 3027.595746 | AC162: 152 | AD162: 529391.6897 | AE162: 801605.141 | AF162: 1068458.036 | AG162: 152 | AH162: 655445.9039 | AI162: 1001145.232 | AJ162: 1339558.621
B163: 153 | C163: 126886.3156 | D163: 201311.3624 | E163: 273793.8661 | F163: 5395457100 | G163: 73453.77526 | I163: 153 | J163: 134270.1426 | K163: 317985.885 | L163: 498620.9978 | M163: 3.318788642e+10 | N163: 182175.4276 | P163: 153 | Q163: 370466.8471 | R163: 457986.9332 | S163: 543253.5384 | T163: 7463810178 | U163: 86393.34568 | W163: 153 | X163: 25259.26264 | Y163: 28322.85344 | Z163: 31339.49341 | AA163: 9242301.544 | AB163: 3040.115383 | AC163: 153 | AD163: 529996.2523 | AE163: 804295.6717 | AF163: 1073214.03 | AG163: 153 | AH163: 656882.568 | AI163: 1005607.034 | AJ163: 1347007.896
B164: 154 | C164: 127719.0678 | D164: 203091.2556 | E164: 276503.6569 | F164: 5534213484 | G164: 74392.29452 | I164: 154 | J164: 134237.2031 | K164: 319533.6974 | L164: 501734.567 | M164: 3.376357813e+10 | N164: 183748.682 | P164: 154 | Q164: 371092.9583 | R164: 459116.4526 | S164: 544880.9082 | T164: 7550562879 | U164: 86893.97493 | W164: 154 | X164: 25270.23185 | Y164: 28346.34832 | Z164: 31375.47502 | AA164: 9318498.561 | AB164: 3052.621588 | AC164: 154 | AD164: 530600.3932 | AE164: 806996.4983 | AF164: 1077990.95 | AG164: 154 | AH164: 658319.4611 | AI164: 1010087.754 | AJ164: 1354494.607
B165: 155 | C165: 128552.4625 | D165: 204879.8126 | E165: 279230.0487 | F165: 5675933743 | G165: 75338.79308 | I165: 155 | J165: 134202.0555 | K165: 321089.0438 | L165: 504865.3393 | M165: 3.434781749e+10 | N165: 185331.6419 | P165: 155 | Q165: 371720.7898 | R165: 460248.7576 | S165: 546512.1154 | T165: 7638001875 | U165: 87395.66279 | W165: 155 | X165: 25281.2337 | Y165: 28369.8627 | Z165: 31411.46294 | AA165: 9394927.62 | AB165: 3065.114618 | AC165: 155 | AD165: 531204.079 | AE165: 809707.6641 | AF165: 1082788.918 | AG165: 155 | AH165: 659756.5415 | AI165: 1014587.477 | AJ165: 1362018.966
B166: 156 | C166: 129386.4911 | D166: 206677.0754 | E166: 281973.134 | F166: 5820670896 | G166: 76293.32144 | I166: 156 | J166: 134164.6687 | K166: 322651.961 | L166: 508013.4189 | M166: 3.4940722e+10 | N166: 186924.3751 | P166: 156 | Q166: 372350.3396 | R166: 461383.8552 | S166: 548147.1756 | T166: 7726131887 | U166: 87898.418 | W166: 156 | X166: 25292.26797 | Y166: 28393.39658 | Z166: 31447.45742 | AA166: 9471589.289 | AB166: 3077.594725 | AC166: 156 | AD166: 531807.2763 | AE166: 812429.2128 | AF166: 1087608.052 | AG166: 156 | AH166: 661193.7674 | AI166: 1019106.288 | AJ166: 1369581.186
B167: 157 | C167: 130221.145 | D167: 208483.0865 | E167: 284733.0058 | F167: 5968478784 | G167: 77255.93041 | I167: 157 | J167: 134125.0114 | K167: 324222.4857 | L167: 511178.9106 | M167: 3.554241071e+10 | N167: 188526.9496 | P167: 157 | Q167: 372981.606 | R167: 462521.7522 | S167: 549786.1044 | T167: 7814957669 | U167: 88402.24923 | W167: 157 | X167: 25303.33442 | Y167: 28416.94999 | Z167: 31483.45874 | AA167: 9548484.137 | AB167: 3090.062157 | AC167: 157 | AD167: 532409.9518 | AE167: 815161.188 | AF167: 1092448.474 | AG167: 157 | AH167: 662631.0968 | AI167: 1023644.274 | AJ167: 1377181.48
B168: 158 | C168: 131056.4154 | D168: 210297.8885 | E168: 287509.7577 | F168: 6119412082 | G168: 78226.67117 | I168: 158 | J168: 134083.0521 | K168: 325800.6551 | L168: 514361.9193 | M168: 3.615300422e+10 | N168: 190139.4336 | P168: 158 | Q168: 373614.5872 | R168: 463662.4557 | S168: 551428.9173 | T168: 7904484003 | U168: 88907.16508 | W168: 158 | X168: 25314.43282 | Y168: 28440.52293 | Z168: 31519.46715 | AA168: 9625612.735 | AB168: 3102.517161 | AC168: 158 | AD168: 533012.0721 | AE168: 817903.6337 | AF168: 1097310.304 | AG168: 158 | AH168: 664068.4874 | AI168: 1028201.522 | AJ168: 1384820.062
B169: 159 | C169: 131892.2933 | D169: 212121.5241 | E169: 290303.4837 | F169: 6273526317 | G169: 79205.59524 | I169: 159 | J169: 134038.7592 | K169: 327386.5062 | L169: 517562.5509 | M169: 3.67726247e+10 | N169: 191761.8959 | P169: 159 | Q169: 374249.2816 | R169: 464805.9724 | S169: 553075.6298 | T169: 7994715701 | U169: 89413.17409 | W169: 159 | X169: 25325.56295 | Y169: 28464.11543 | Z169: 31555.4829 | AA169: 9702975.656 | AB169: 3114.959977 | AC169: 159 | AD169: 533613.6037 | AE169: 820656.594 | AF169: 1102193.664 | AG169: 159 | AH169: 665505.897 | AI169: 1032778.118 | AJ169: 1392497.147
B170: 160 | C170: 132728.7696 | D170: 213954.0363 | E170: 293114.2786 | F170: 6430877870 | G170: 80192.75447 | I170: 160 | J170: 133992.101 | K170: 328980.0766 | L170: 520780.9114 | M170: 3.740139596e+10 | N170: 193394.4052 | P170: 160 | Q170: 374885.6876 | R170: 465952.3093 | S170: 554726.2571 | T170: 8085657609 | U170: 89920.28475 | W170: 160 | X170: 25336.72459 | Y170: 28487.72749 | Z170: 31591.50627 | AA170: 9780573.473 | AB170: 3127.390841 | AC170: 160 | AD170: 534214.5132 | AE170: 823420.1134 | AF170: 1107098.675 | AG170: 160 | AH170: 666943.2829 | AI170: 1037374.15 | AJ170: 1400212.953
B171: 161 | C171: 133565.8352 | D171: 215795.4684 | E171: 295942.2374 | F171: 6591523998 | G171: 81188.2011 | I171: 161 | J171: 133943.0458 | K171: 330581.4038 | L171: 524017.1074 | M171: 3.803944339e+10 | N171: 195037.0308 | P171: 161 | Q171: 375523.8038 | R171: 467101.4734 | S171: 556380.8147 | T171: 8177314600 | U171: 90428.50546 | W171: 161 | X171: 25347.91751 | Y171: 28511.35915 | Z171: 31627.53748 | AA171: 9858406.759 | AB171: 3139.809988 | AC171: 161 | AD171: 534814.7671 | AE171: 826194.2363 | AF171: 1112025.46 | AG171: 161 | AH171: 668380.6023 | AI171: 1041989.705 | AJ171: 1407967.697
B172: 162 | C172: 134403.4807 | D172: 217645.8638 | E172: 298787.4561 | F172: 6755522839 | G172: 82191.98768 | I172: 162 | J172: 133891.5614 | K172: 332190.5255 | L172: 527271.2461 | M172: 3.868689407e+10 | N172: 196689.8423 | P172: 162 | Q172: 376163.6288 | R172: 468253.4716 | S172: 558039.318 | T172: 8269691582 | U172: 90937.84461 | W172: 162 | X172: 25359.1415 | Y172: 28535.01041 | Z172: 31663.5768 | AA172: 9936476.092 | AB172: 3152.217647 | AC172: 162 | AD172: 535414.3317 | AE172: 828979.0075 | AF172: 1116974.141 | AG172: 162 | AH172: 669817.8125 | AI172: 1046624.871 | AJ172: 1415761.597
B173: 163 | C173: 135241.6966 | D173: 219505.266 | E173: 301650.0309 | F173: 6922933430 | G173: 83204.16714 | I173: 163 | J173: 133837.616 | K173: 333807.4796 | L173: 530543.435 | M173: 3.934387671e+10 | N173: 198352.9095 | P173: 163 | Q173: 376805.1611 | R173: 469408.311 | S173: 559701.7821 | T173: 8362793491 | U173: 91448.31049 | W173: 163 | X173: 25370.39637 | Y173: 28558.68129 | Z173: 31699.62445 | AA173: 10014782.05 | AB173: 3164.614044 | AC173: 163 | AD173: 536013.1735 | AE173: 831774.4719 | AF173: 1121944.842 | AG173: 163 | AH173: 671254.8701 | AI173: 1051279.738 | AJ173: 1423594.872
B174: 164 | C174: 136080.4733 | D174: 221373.719 | E174: 304530.0588 | F174: 7093815716 | G174: 84224.79276 | I174: 164 | J174: 133781.1771 | K174: 335432.3044 | L174: 533833.7822 | M174: 4.001052171e+10 | N174: 200026.3025 | P174: 164 | Q174: 377448.3997 | R174: 470565.9985 | S174: 561368.2224 | T174: 8456625296 | U174: 91959.91135 | W174: 164 | X174: 25381.68189 | Y174: 28582.3718 | Z174: 31735.68069 | AA174: 10093325.21 | AB174: 3176.999403 | AC174: 164 | AD174: 536611.2586 | AE174: 834580.6748 | AF174: 1126937.685 | AG174: 164 | AH174: 672691.7319 | AI174: 1055954.394 | AJ174: 1431467.744
B175: 165 | C175: 136919.8008 | D175: 223251.2668 | E175: 307427.6372 | F175: 7268230565 | G175: 85253.91818 | I175: 165 | J175: 133722.2125 | K175: 337065.0381 | L175: 537142.3964 | M175: 4.068696119e+10 | N175: 201710.0919 | P175: 165 | Q175: 378093.3431 | R175: 471726.5412 | S175: 563038.6539 | T175: 8551191998 | U175: 92472.65541 | W175: 165 | X175: 25392.99786 | Y175: 28606.08197 | Z175: 31771.74575 | AA175: 10172106.15 | AB175: 3189.373942 | AC175: 165 | AD175: 537208.5535 | AE175: 837397.6613 | AF175: 1131952.796 | AG175: 165 | AH175: 674128.3543 | AI175: 1060648.928 | AJ175: 1439380.433
B176: 166 | C176: 137759.6694 | D176: 225137.9536 | E176: 310342.8642 | F176: 7446239778 | G176: 86291.59738 | I176: 166 | J176: 133660.6896 | K176: 338705.7193 | L176: 540469.3867 | M176: 4.1373329e+10 | N176: 203404.3485 | P176: 166 | Q176: 378739.9904 | R176: 472889.9461 | S176: 564713.092 | T176: 8646498629 | U176: 92986.5508 | W176: 166 | X176: 25404.34409 | Y176: 28629.8118 | Z176: 31807.81985 | AA176: 10251125.45 | AB176: 3201.737879 | AC176: 166 | AD176: 537805.0241 | AE176: 840225.4772 | AF176: 1136990.299 | AG176: 166 | AH176: 675564.6935 | AI176: 1065363.431 | AJ176: 1447333.163
B177: 167 | C177: 138600.0689 | D177: 227033.824 | E177: 313275.8383 | F177: 7627906108 | G177: 87337.88473 | I177: 167 | J177: 133596.5758 | K177: 340354.3865 | L177: 543814.8627 | M177: 4.206976072e+10 | N177: 205109.1434 | P177: 167 | Q177: 379388.3405 | R177: 474056.2203 | S177: 566391.5518 | T177: 8742550255 | U177: 93501.60563 | W177: 167 | X177: 25415.72038 | Y177: 28653.56133 | Z177: 31843.90323 | AA177: 10330383.69 | AB177: 3214.091426 | AC177: 167 | AD177: 538400.6367 | AE177: 843064.1681 | AF177: 1142050.318 | AG177: 167 | AH177: 677000.7056 | AI177: 1070097.992 | AJ177: 1455326.156
B178: 168 | C178: 139440.9891 | D178: 228938.9226 | E178: 316226.6589 | F178: 7813293268 | G178: 88392.83493 | I178: 168 | J178: 133529.8383 | K178: 342011.0787 | L178: 547178.9347 | M178: 4.277639374e+10 | N178: 206824.5482 | P178: 168 | Q178: 380038.3924 | R178: 475225.3708 | S178: 568074.0483 | T178: 8839351972 | U178: 94017.82795 | W178: 168 | X178: 25427.12653 | Y178: 28677.33055 | Z178: 31879.99612 | AA178: 10409881.47 | AB178: 3226.434792 | AC178: 168 | AD178: 538995.3572 | AE178: 845913.78 | AF178: 1147132.979 | AG178: 168 | AH178: 678436.3462 | AI178: 1074852.703 | AJ178: 1463359.638
B179: 169 | C179: 140282.4195 | D179: 230853.2944 | E179: 319195.4257 | F179: 8002465945 | G179: 89456.50309 | I179: 169 | J179: 133460.444 | K179: 343675.8349 | L179: 550561.7133 | M179: 4.349336721e+10 | N179: 208550.6346 | P179: 169 | Q179: 380690.1451 | R179: 476397.4048 | S179: 569760.5966 | T179: 8936908910 | U179: 94535.22576 | W179: 169 | X179: 25438.56236 | Y179: 28701.11949 | Z179: 31916.09873 | AA179: 10489619.36 | AB179: 3238.768185 | AC179: 169 | AD179: 539589.1515 | AE179: 848774.3592 | AF179: 1152238.409 | AG179: 169 | AH179: 679871.571 | AI179: 1079627.654 | AJ179: 1471433.834
B180: 170 | C180: 141124.3497 | D180: 232776.9845 | E180: 322182.239 | F180: 8195489819 | G180: 90528.94465 | I180: 170 | J180: 133388.3599 | K180: 345348.6944 | L180: 553963.3098 | M180: 4.422082212e+10 | N180: 210287.4749 | P180: 170 | Q180: 381343.5978 | R180: 477572.3293 | S180: 571451.2118 | T180: 9035226230 | U180: 95053.80702 | W180: 170 | X180: 25450.02768 | Y180: 28724.92816 | Z180: 31952.21129 | AA180: 10569597.94 | AB180: 3251.091808 | AC180: 170 | AD180: 540181.9854 | AE180: 851645.9519 | AF180: 1157366.733 | AG180: 170 | AH180: 681306.3351 | AI180: 1084422.936 | AJ180: 1479548.972
B181: 171 | C181: 141966.7691 | D181: 234710.0382 | E181: 325187.1999 | F181: 8392431569 | G181: 91610.21542 | I181: 171 | J181: 133313.5527 | K181: 347029.6966 | L181: 557383.836 | M181: 4.495890128e+10 | N181: 212035.1416 | P181: 171 | Q181: 381998.7497 | R181: 478750.1515 | S181: 573145.909 | T181: 9134309128 | U181: 95573.57965 | W181: 171 | X181: 25461.5223 | Y181: 28748.75658 | Z181: 31988.33402 | AA181: 10649817.82 | AB181: 3263.405862 | AC181: 171 | AD181: 540773.8247 | AE181: 854528.6047 | AF181: 1162518.079 | AG181: 171 | AH181: 682740.5938 | AI181: 1089238.643 | AJ181: 1487705.279
B182: 172 | C182: 142809.6666 | D182: 236652.5012 | E182: 328210.4098 | F182: 8593358894 | G182: 92700.3716 | I182: 172 | J182: 133235.989 | K182: 348718.8812 | L182: 560823.4042 | M182: 4.570774941e+10 | N182: 213793.7076 | P182: 172 | Q182: 382655.6 | R182: 479930.8786 | S182: 574844.7031 | T182: 9234162832 | U182: 96094.55152 | W182: 172 | X182: 25473.04604 | Y182: 28772.60477 | Z182: 32024.46712 | AA182: 10730279.57 | AB182: 3275.710544 | AC182: 172 | AD182: 541364.6351 | AE182: 857422.3645 | AF182: 1167692.574 | AG182: 172 | AH182: 684174.3017 | AI182: 1094074.866 | AJ182: 1495902.984
B183: 173 | C183: 143653.0314 | D183: 238604.4192 | E183: 331251.9709 | F183: 8798340525 | G183: 93799.46975 | I183: 173 | J183: 133155.6351 | K183: 350416.288 | L183: 564282.1273 | M183: 4.646751307e+10 | N183: 215563.2461 | P183: 173 | Q183: 383314.1481 | R183: 481114.5176 | S183: 576547.609 | T183: 9334792604 | U183: 96616.73045 | W183: 173 | X183: 25484.59872 | Y183: 28796.47274 | Z183: 32060.61082 | AA183: 10810983.78 | AB183: 3288.00605 | AC183: 173 | AD183: 541954.3819 | AE183: 860327.2783 | AF183: 1172890.347 | AG183: 173 | AH183: 685607.4134 | AI183: 1098931.698 | AJ183: 1504142.318
B184: 174 | C184: 144496.8524 | D184: 240565.8383 | E184: 334311.986 | F184: 9007446237 | G184: 94907.5668 | I184: 174 | J184: 133072.4573 | K184: 352121.957 | L184: 567760.1187 | M184: 4.723834075e+10 | N184: 217343.8307 | P184: 174 | Q184: 383974.3933 | R184: 482301.0758 | S184: 578254.6418 | T184: 9436203738 | U184: 97140.12424 | W184: 174 | X184: 25496.18017 | Y184: 28820.36051 | Z184: 32096.76531 | AA184: 10891931.06 | AB184: 3300.292571 | AC184: 174 | AD184: 542543.0308 | AE184: 863243.3933 | AF184: 1178111.526 | AG184: 174 | AH184: 687039.8832 | AI184: 1103809.232 | AJ184: 1512423.512
B185: 175 | C185: 145341.1182 | D185: 242536.8047 | E185: 337390.5584 | F185: 9220746867 | G185: 96024.72008 | I185: 175 | J185: 132986.4215 | K185: 353835.9284 | L185: 571257.4924 | M185: 4.80203829e+10 | N185: 219135.5354 | P185: 175 | Q185: 384636.3351 | R185: 483490.5603 | S185: 579965.8164 | T185: 9538401563 | U185: 97664.74063 | W185: 175 | X185: 25507.79022 | Y185: 28844.2681 | Z185: 32132.93081 | AA185: 10973121.98 | AB185: 3312.570298 | AC185: 175 | AD185: 543130.5469 | AE185: 866170.7569 | AF185: 1183356.24 | AG185: 175 | AH185: 688471.6651 | AI185: 1108707.562 | AJ185: 1520746.798
B186: 176 | C186: 146185.8174 | D186: 244517.3648 | E186: 340487.7919 | F186: 9438314329 | G186: 97150.98728 | I186: 176 | J186: 132897.4938 | K186: 355558.2427 | L186: 574774.363 | M186: 4.881379189e+10 | N186: 220938.4346 | P186: 176 | Q186: 385299.973 | R186: 484682.9785 | S186: 581681.1477 | T186: 9641391442 | U186: 98190.58734 | W186: 176 | X186: 25519.42868 | Y186: 28868.19552 | Z186: 32169.10752 | AA186: 11054557.14 | AB186: 3324.839416 | AC186: 176 | AD186: 543716.8955 | AE186: 869109.4167 | AF186: 1188624.618 | AG186: 176 | AH186: 689902.7129 | AI186: 1113626.782 | AJ186: 1529112.41
B187: 177 | C187: 147030.9384 | D187: 246507.5655 | E187: 343603.7913 | F187: 9660221626 | G187: 98286.42646 | I187: 177 | J187: 132805.6397 | K187: 357288.9404 | L187: 578310.8456 | M187: 4.961872212e+10 | N187: 222752.603 | P187: 177 | Q187: 385965.3065 | R187: 485878.3375 | S187: 583400.6505 | T187: 9745178771 | U187: 98717.67203 | W187: 177 | X187: 25531.09541 | Y187: 28892.14279 | Z187: 32205.29563 | AA187: 11136237.15 | AB187: 3337.100111 | AC187: 177 | AD187: 544302.0416 | AE187: 872059.4207 | AF187: 1193916.792 | AG187: 177 | AH187: 691332.98 | AI187: 1118566.986 | AJ187: 1537520.583
B188: 178 | C188: 147876.4694 | D188: 248507.4535 | E188: 346738.6615 | F188: 9886542868 | G188: 99431.09608 | I188: 178 | J188: 132710.8249 | K188: 359028.0624 | L188: 581867.0559 | M188: 5.043532997e+10 | N188: 224578.1155 | P188: 178 | Q188: 386632.3351 | R188: 487076.6445 | S188: 585124.3398 | T188: 9849768981 | U188: 99246.00234 | W188: 178 | X188: 25542.79023 | Y188: 28916.10992 | Z188: 32241.49535 | AA188: 11218162.59 | AB188: 3349.352563 | AC188: 178 | AD188: 544885.9502 | AE188: 875020.8169 | AF188: 1199232.891 | AG188: 178 | AH188: 692762.4196 | AI188: 1123528.27 | AJ188: 1545971.553
B189: 179 | C189: 148722.3985 | D189: 250517.0761 | E189: 349892.5085 | F189: 1.011735329e+10 | G189: 100585.055 | I189: 179 | J189: 132613.0146 | K189: 360775.6497 | L189: 585443.1102 | M189: 5.126377388e+10 | N189: 226415.0478 | P189: 179 | Q189: 387301.0586 | R189: 488277.9069 | S189: 586852.2304 | T189: 9955167539 | U189: 99775.58589 | W189: 179 | X189: 25554.51297 | Y189: 28940.09694 | Z189: 32277.70687 | AA189: 11300334.06 | AB189: 3361.596951 | AC189: 179 | AD189: 545468.5862 | AE189: 877993.6535 | AF189: 1204573.048 | AG189: 179 | AH189: 694190.9847 | AI189: 1128510.73 | AJ189: 1554465.556
B190: 180 | C190: 149568.7137 | D190: 252536.4806 | E190: 353065.4385 | F190: 1.035272925e+10 | G190: 101748.3624 | I190: 180 | J190: 132512.174 | K190: 362531.7434 | L190: 589039.1253 | M190: 5.210421433e+10 | N190: 228263.4757 | P190: 180 | Q190: 387971.4767 | R190: 489482.132 | S190: 588584.3371 | T190: 1.006137994e+10 | U190: 100306.4302 | W190: 180 | X190: 25566.26348 | Y190: 28964.10385 | Z190: 32313.93039 | AA190: 11382752.17 | AB190: 3373.833453 | AC190: 180 | AD190: 546049.9142 | AE190: 880977.9792 | AF190: 1209937.393 | AG190: 180 | AH190: 695618.6279 | AI190: 1133514.46 | AJ190: 1563002.831
B191: 181 | C191: 150415.4027 | D191: 254565.7147 | E191: 356257.5586 | F191: 1.059274829e+10 | G191: 102921.078 | I191: 181 | J191: 132408.268 | K191: 364296.385 | L191: 592655.2187 | M191: 5.29568139e+10 | N191: 230123.4753 | P191: 181 | Q191: 388643.5891 | R191: 490689.327 | S191: 590320.6749 | T191: 1.016841173e+10 | U191: 100838.5429 | W191: 181 | X191: 25578.04161 | Y191: 28988.13068 | Z191: 32350.16609 | AA191: 11465417.51 | AB191: 3386.062243 | AC191: 181 | AD191: 546629.8987 | AE191: 883973.8426 | AF191: 1215326.06 | AG191: 181 | AH191: 697045.3014 | AI191: 1138539.557 | AJ191: 1571583.618
B192: 182 | C192: 151262.4531 | D192: 256604.8262 | E192: 359468.9764 | F192: 1.083748909e+10 | G192: 104103.2616 | I192: 182 | J192: 132301.2615 | K192: 366069.616 | L192: 596291.5084 | M192: 5.382173731e+10 | N192: 231995.1235 | P192: 182 | Q192: 389317.3956 | R192: 491899.4992 | S192: 592061.2583 | T192: 1.027626847e+10 | U192: 101371.9314 | W192: 182 | X192: 25589.84719 | Y192: 29012.17744 | Z192: 32386.41417 | AA192: 11548330.69 | AB192: 3398.283492 | AC192: 182 | AD192: 547208.5043 | AE192: 886981.2927 | AF192: 1220739.181 | AG192: 182 | AH192: 698470.9574 | AI192: 1143586.119 | AJ192: 1580208.157
B193: 183 | C193: 152109.8523 | D193: 258653.8632 | E193: 362699.8001 | F193: 1.108703152e+10 | G193: 105294.9739 | I193: 183 | J193: 132191.119 | K193: 367851.4784 | L193: 599948.1131 | M193: 5.469915138e+10 | N193: 233878.497 | P193: 183 | Q193: 389992.896 | R193: 493112.6561 | S193: 593806.1024 | T193: 1.038495577e+10 | U193: 101906.6032 | W193: 183 | X193: 25601.68007 | Y193: 29036.24415 | Z193: 32422.67481 | AA193: 11631492.31 | AB193: 3410.497369 | AC193: 183 | AD193: 547785.6951 | AE193: 890000.3786 | AF193: 1226176.89 | AG193: 183 | AH193: 699895.5474 | AI193: 1148654.242 | AJ193: 1588876.69
B194: 184 | C194: 152957.5878 | D194: 260712.8739 | E194: 365950.1386 | F194: 1.134145668e+10 | G194: 106496.2754 | I194: 184 | J194: 132077.8049 | K194: 369642.0141 | L194: 603625.1519 | M194: 5.558922513e+10 | N194: 235773.6735 | P194: 184 | Q194: 390670.0904 | R194: 494328.8049 | S194: 595555.2218 | T194: 1.049447927e+10 | U194: 102442.5657 | W194: 184 | X194: 25613.5401 | Y194: 29060.33082 | Z194: 32458.94819 | AA194: 11714902.96 | AB194: 3422.704043 | AC194: 184 | AD194: 548361.4353 | AE194: 893031.1498 | AF194: 1231639.322 | AG194: 184 | AH194: 701319.0231 | AI194: 1153744.024 | AJ194: 1597589.461
B195: 185 | C195: 153805.6464 | D195: 262781.907 | E195: 369220.1014 | F195: 1.160084686e+10 | G195: 107707.2275 | I195: 185 | J195: 131961.2833 | K195: 371441.2653 | L195: 607322.7448 | M195: 5.649212977e+10 | N195: 237680.7307 | P195: 185 | Q195: 391348.9785 | R195: 495547.9531 | S195: 597308.6313 | T195: 1.060484465e+10 | U195: 102979.8264 | W195: 185 | X195: 25625.42714 | Y195: 29084.43747 | Z195: 32495.23449 | AA195: 11798563.27 | AB195: 3434.903677 | AC195: 185 | AD195: 548935.689 | AE195: 896073.6558 | AF195: 1237126.611 | AG195: 185 | AH195: 702741.3354 | AI195: 1158855.563 | AJ195: 1606346.712
B196: 186 | C196: 154654.0153 | D196: 264861.0113 | E196: 372509.7987 | F196: 1.186528559e+10 | G196: 108927.8917 | I196: 186 | J196: 131841.5183 | K196: 373249.2744 | L196: 611041.0122 | M196: 5.740803873e+10 | N196: 239599.7469 | P196: 186 | Q196: 392029.5605 | R196: 496770.108 | S196: 599066.3457 | T196: 1.071605761e+10 | U196: 103518.3926 | W196: 186 | X196: 25637.34103 | Y196: 29108.56412 | Z196: 32531.53391 | AA196: 11882473.84 | AB196: 3447.096436 | AC196: 186 | AD196: 549508.4198 | AE196: 899127.9466 | AF196: 1242638.892 | AG196: 186 | AH196: 704162.4352 | AI196: 1163988.958 | AJ196: 1615148.691
B197: 187 | C197: 155502.6812 | D197: 266950.2356 | E197: 375819.3413 | F197: 1.213485767e+10 | G197: 110158.33 | I197: 187 | J197: 131718.4737 | K197: 375066.0841 | L197: 614780.0751 | M197: 5.83371277e+10 | N197: 241530.8007 | P197: 187 | Q197: 392711.8363 | R197: 497995.2771 | S197: 600828.3798 | T197: 1.082812392e+10 | U197: 104058.2718 | W197: 187 | X197: 25649.28164 | Y197: 29132.71078 | Z197: 32567.8466 | AA197: 11966635.27 | AB197: 3459.282479 | AC197: 187 | AD197: 550079.5916 | AE197: 902194.0721 | AF197: 1248176.302 | AG197: 187 | AH197: 705582.2728 | AI197: 1169144.308 | AJ197: 1623995.643
B198: 188 | C198: 156351.6308 | D198: 269049.6294 | E198: 379148.8405 | F198: 1.240964916e+10 | G198: 111398.6048 | I198: 188 | J198: 131592.1129 | K198: 376891.7373 | L198: 618540.0553 | M198: 5.927957465e+10 | N198: 243473.9712 | P198: 188 | Q198: 393395.806 | R198: 499223.4678 | S198: 602594.7483 | T198: 1.094104936e+10 | U198: 104599.4711 | W198: 188 | X198: 25661.24882 | Y198: 29156.87748 | Z198: 32604.17275 | AA198: 12051048.17 | AB198: 3471.461965 | AC198: 188 | AD198: 550649.1678 | AE198: 905272.0826 | AF198: 1253738.976 | AG198: 188 | AH198: 707000.7986 | AI198: 1174321.712 | AJ198: 1632887.817
B199: 189 | C199: 157200.8504 | D199: 271159.2421 | E199: 382498.4084 | F199: 1.268974741e+10 | G199: 112648.779 | I199: 189 | J199: 131462.3994 | K199: 378726.2768 | L199: 622321.0751 | M199: 6.023555986e+10 | N199: 245429.3378 | P199: 189 | Q199: 394081.4699 | R199: 500454.6876 | S199: 604365.4658 | T199: 1.105483974e+10 | U199: 105141.998 | W199: 189 | X199: 25673.24243 | Y199: 29181.06422 | Z199: 32640.51253 | AA199: 12135713.16 | AB199: 3483.63505 | AC199: 189 | AD199: 551217.1117 | AE199: 908362.0287 | AF199: 1259327.053 | AG199: 189 | AH199: 708417.9621 | AI199: 1179521.271 | AJ199: 1641825.462
B200: 190 | C200: 158050.3264 | D200: 273279.1234 | E200: 385868.1577 | F200: 1.297524107e+10 | G200: 113908.9157 | I200: 190 | J200: 131329.2964 | K200: 380569.7462 | L200: 626123.2573 | M200: 6.120526595e+10 | N200: 247396.9805 | P200: 190 | Q200: 394768.8279 | R200: 501688.9439 | S200: 606140.5473 | T200: 1.116950093e+10 | U200: 105685.8597 | W200: 190 | X200: 25685.26233 | Y200: 29205.27102 | Z200: 32676.86611 | AA200: 12220630.86 | AB200: 3495.80189 | AC200: 190 | AD200: 551783.3866 | AE200: 911463.961 | AF200: 1264940.671 | AG200: 190 | AH200: 709833.713 | AI200: 1184743.084 | AJ200: 1650808.828
... 170 more rows

Sheet Elaborazioni (hidden)
A2: Componente azionaria Ray Dalio | B2: =100-Dashboard!C8 -> 57
A3: Componente rettificata | B3: =IF(B2*2>100,50,B2) -> 50
A4: Formula liquidità | B4: =Dashboard!C8/67 -> 0.6417910448
A5: Liquidità in retirement | B5: =IF(B4>1,+Dashboard!C11/15*2,0) -> 0
A6: Rapporto gestioni medio rischio | B6: 0.5
A7: Piano di accumulo mensile (basato su safe) | B7: =IF(Dashboard!C8>67,0,(ROUND(+Input!B6*Input!B7*0.9/1200,0))*100) -> 800
A8: Iniziale piano di accumulo (12 volte la rata mensile) | B8: =+B7*12 -> 9600
A10: Breve termine primo modello | B10: =+(Dashboard!G11-Dashboard!G11*Dashboard!G14)*Dashboard!C8/100 -> 17200 | C10: =+B10/Dashboard!C$11 -> 0.0344
A11: Breve termine in base al fabbisogno | B11: =+IF(B5>B10,B5,B10) -> 17200 | C11: =+B11/Dashboard!C$11 -> 0.0344
A12: Breve termine residuo | B12: =+B11 -> 17200 | C12: =+B12/Dashboard!C$11 -> 0.0344
A13: Componente Breve termine finale | B13: =IF((+B11+(100%-C26)*Dashboard!C11)>B11,+B11+(100%-C26)*Dashboard!C11,B11) -> 24948.21564 | C13: =+B13/Dashboard!C$11 -> 0.04989643128
A14: Componente medio termine in base al modello | B14: =+B3/100*2*Dashboard!C11*75% -> 375000 | C14: =+B14/Dashboard!C$11 -> 0.75
A15: Componente medio termine rettificato | B15: =+(Dashboard!C11-Elaborazioni!B23)*Elaborazioni!C14/Elaborazioni!C24 -> 349088.8383 | C15: =+B15/Dashboard!C$11 -> 0.6981776765
A16: Componente medio termine segno | B16: =IF(C15<0.01,0,B15) -> 349088.8383 | C16: =+B16/Dashboard!C$11 -> 0.6981776765
A17: Componente medio termine finale | B17: =+B16 -> 349088.8383 | C17: =+B17/Dashboard!C$11 -> 0.6981776765
A18: Componente lungo termine | B18: =+B3/2/100*Dashboard!C11 -> 125000 | C18: =+B18/Dashboard!C$11 -> 0.25
A19: Da sotrarre | B19: =+(Dashboard!C11-Elaborazioni!B23)*Elaborazioni!C18/Elaborazioni!C24 -> 116362.9461 | C19: =+B19/Dashboard!C$11 -> 0.2327258922
A20: Componente Lungo termine finale | B20: =IF(C19<0.01,0,B19) -> 116362.9461 | C20: =+B20/Dashboard!C$11 -> 0.2327258922
A21: Piano di Accumulo | B21: =+B8 -> 9600 | C21: =+B21/Dashboard!C$11 -> 0.0192
A22: Piano di accumulo forzato | B22: =+B8 -> 9600
A23: Piano di accumulo Finale | B23: =+B22 -> 9600 | C23: =+B23/Dashboard!C$11 -> 0.0192
B24: Rapporto iniziale | C24: =+C21+C14+C11+C18 -> 1.0536
B26: Intermedio | C26: =+C23+C20+C17+C12 -> 0.9845035687
B27: Finale | C27: =+C23+C20+C17+C13 -> 1
A30: Ammontare di capitale a lungo termine | B30: =+B39+D39 -> 151271.8299
A31: Ammontare di capitale a medio termine | B31: =+B40-D41-D39 -> 314179.9544
A32: Ammontare di capitale a breve termine | B32: =+B41+D41 -> 24948.21564
A33: Piano di accumulo | B33: =+B22 -> 9600
A34: Totale di controllo | B34: =+B32+B31+B30+B33 -> 500000
A35: Patrimonio disponibile | B35: =+Dashboard!C11 -> 500000
A36: Rata mensile | B36: =+B33/12 -> 800
A39: Ammontare di capitale a lungo termine | B39: =+IF(Dashboard!C11=0,0,B20) -> 116362.9461 | D39: =IF(Dashboard!G8>3,Elaborazioni!C40*Dashboard!G8,0) -> 34908.88383
A40: Ammontare di capitale a medio termine | B40: =IF(Dashboard!C11=0,0,+B17) -> 349088.8383 | C40: =+B40/50 -> 6981.776765
A41: Ammontare di capitale a breve termine | B41: =IF(Dashboard!C11=0,0,+B13) -> 24948.21564 | D41: =IF(Dashboard!G8<=3,Elaborazioni!C40*(5-Dashboard!G8),0) -> 0
A42: Piano di accumulo | B42: =+B22 -> 9600
A43: Totale di controllo | B43: =+B32+B31+B30+B33 -> 500000
A44: Patrimonio disponibile | B44: =+Dashboard!C11 -> 500000
A45: Rata mensile | B45: =+B33/12 -> 800
A46: Profilo di rischio: | B46: 1
B47: 2
B48: 3
B49: 4
B50: 5
A52: Capacità di risparmio: | B52: 0
B53: 0.05
B54: 0.1
B55: 0.15
B56: 0.2
B57: 0.25
B58: 0.3
B59: 0.35
B60: 0.4
B61: 0.45
B62: 0.5

Sheet output
A2: ANALISI PER: | B2: =+Dashboard!C5&" "&Dashboard!G5 -> Cesare Nistri | H2: DATA: | I2: =+TODAY() -> 2020-11-03
E5: Dati da modello | G5: Suggerito a Cliente
E6: PAC | F6: Mensile | G6: PAC | H6: Mensile | I6: Percentuale del portafoglio
E8: =+Elaborazioni!B33 -> 9600 | F8: =+Elaborazioni!B36 -> 800 | G8: 9600 | H8: 800 | I8: =+(G7)/Input!B3 -> 0
F9: Lungo Termine | H9: Lungo Termine | I9: Percentuale del portafoglio
F10: =+Elaborazioni!B30 -> 151271.8299 | H10: 151271.8299 | I10: =+H10/Input!B3 -> 0.3025436598
F15: Medio Termine | H15: Medio Termine | I15: Percentuale del portafoglio
F16: =+Elaborazioni!B31 -> 314179.9544 | H16: 314179.9544 | I16: =+H16/Input!B3 -> 0.6283599089
F20: Breve Termine | H20: Breve Termine | I20: Percentuale del portafoglio
F21: =+Elaborazioni!B32 -> 24948.21564 | H21: 24948.21564 | I21: =+H21/Input!B3 -> 0.04989643128
F23: =+F10+F16+F21+E8 -> 500000 | G23: TOTALE | H23: =+G8+H10+H16+H21 -> 500000
H25: Asset non finanziari
G26: =IF((+Input!B4-Input!B3)<0,"ERRORE DI INSERIMENTO DATI",+Input!B4-Input!B3) -> 100000

Sheet Mock-up page EN_x0009_ (hidden)
B2: GOAL BASED INVESTING
F5: INVESTMENT SAVING ACCOUNT
F6: Plan 4 Life MSCI World
F9: LONG TERM INVESTMENT (More than 10 years)
F10: Dynamic 0/100 Run Multistrategy 10+
F13: MEDIUM TERM INVESTMENT (More than 5 years)
F14: All Weather Genetix Family 3 Golden Butterfly Portable Alpha
F18: SHORT TERM INVESTMENT (Less than 5 years)
F19: Dynamic Bond Governative IG

Sheet MOCK-UP ITA
B2: GOAL BASED INVESTING

Sheet Simulazione

Sheet Risparmio
A3: RISPARMIO COMMISSIONI
B6: COMPLIMENTI,
B7: GRAZIE AD OPENPHINANCE,
B8: PAGANDO IL TUO ADVISOR | E8: =+Confronto!G5 -> 0.005 | F8: ALL'ANNO
B10: IN 10 ANNI AVRAI UN RISPARMIO DI COMMISSIONI PARI A: | G10: =+'Calcolo commissioni'!B44 -> 74440.22157 | H10: €*
B11: A PARITA' DI RENDIMENTO ATTESO GUADAGNERAI IN PIU': | G11: =+'Calcolo commissioni'!B48 -> 52509.20476 | H11: €*
B12: *Comparazione effettuata rispetto alla media dei costi degli intermediari italiani per lo stesso servizio
B15: IN 20 ANNI AVRAI UN RISPARMIO DI COMMISSIONI PARI A: | G15: =+'Calcolo commissioni'!B45 -> 118405.1202 | H15: €*
B16: A PARITA' DI RENDIMENTO ATTESO GUADAGNERAI IN PIU': | G16: =+'Calcolo commissioni'!B49 -> 208637.3097 | H16: €*
B17: *Comparazione effettuata rispetto alla media dei costi degli intermediari italiani per lo stesso servizio
B20: IN 30 ANNI AVRAI UN RISPARMIO DI COMMISSIONI PARI A: | G20: =+'Calcolo commissioni'!B46 -> 75595.05874 | H20: €*
B21: A PARITA' DI RENDIMENTO ATTESO GUADAGNERAI IN PIU': | G21: =+'Calcolo commissioni'!B50 -> 454397.3855 | H21: €*
B22: *Comparazione effettuata rispetto alla media dei costi degli intermediari italiani per lo stesso servizio

Sheet Confronto
A3: CONFRONTO IMPATTO COMMISSIONI
A5: COMMISSIONI ATTUALI: | C5: 0.02 | E5: COMMISSIONI ADVISOR: | G5: 0.005
F7: IVA: | G7: =+G5*22% -> 0.0011

Sheet Calcolo commissioni (hidden)
B1: Intermediario | C1: DIAMAN + tasse | D1: Netto Diaman | G1: Advisor | J1: Lordo totale | AB1: Intermediario
A3: Commissione | B3: =+Confronto!C5-0.5% -> 0.015 | C3: 0 | G3: =+Confronto!G5+Confronto!G7 -> 0.0061 | J3: 0.007 | AB3: 0.02
A4: Tassa sul patrimonio | B4: 0.002 | C4: 0.002 | D4: 0.01 | AB4: 0.002
A5: TOTALE COMMISSIONI
A6: Anno | B6: Capitale | AB6: Capitale
A7: 2020 | B7: =+C7 -> 500000 | C7: =+Motori!BC10 -> 500000 | D7: =+Motori!BC10 -> 500000 | F7: 0 | H7: 0 | I7: =+C7 -> 500000 | J7: =+B7 -> 500000 | L7: =+J7-D7 -> 0 | AB7: =+B7 -> 500000 | AD7: 0
A8: =+A7+1 -> 2021 | B8: =+B7*D8/D7-B7*(B$3+B$4) -> 520688.4133 | C8: =+C7*D8/D7-C7*D$4 -> 524188.4133 | D8: =+Motori!BC11 -> 529188.4133 | E8: =+B8*(B$3+B$4) -> 8851.703025 | F8: =+F7+E8 -> 8851.703025 | G8: =+D8*G$3 -> 3228.049321 | H8: =+H7+G8 -> 3228.049321 | I8: =+C8-H8 -> 520960.3639 | J8: =+J7*D8/D7+J7*J$3 -> 532688.4133 | K8: =+J8-D8 -> 3500 | L8: 3500 | AB8: =+B7*D8/D7-B7*(AB$3+AB$4) -> 518188.4133 | AC8: =+AB8*(AB$3+AB$4) -> 11400.14509 | AD8: =+AD7+AC8 -> 11400.14509
A9: =+A8+1 -> 2022 | B9: =+B8*D9/D8-B8*(B$3+B$4) -> 541988.9704 | C9: =+C8*D9/D8-C8*D$4 -> 549301.4689 | D9: =+Motori!BC12 -> 559832.8952 | E9: =+B9*(B$3+B$4) -> 9213.812496 | F9: =+F8+E9 -> 18065.51552 | G9: 3414.980661 | H9: =+H8+G9 -> 6643.029982 | I9: =+C9-H9 -> 542658.4389 | J9: =+J8*D9/D8+J8*J$3 -> 567264.3937 | K9: =+J9-D9 -> 7431.498476 | L9: 7431.498476 | AB9: =+AB8*D9/D8-AB8*(AB$3+AB$4) -> 536795.7572 | AC9: =+AB9*(AB$3+AB$4) -> 11809.50666 | AD9: =+AD8+AC9 -> 23209.65175
A10: 2023 | B10: 563928.7927 | C10: =+C9*D10/D9-C9*D$4 -> 575382.4129 | D10: =+Motori!BC13 -> 592012.2025 | E10: 9586.789476 | F10: 27652.305 | G10: 3611.274435 | H10: 10254.30442 | I10: 565128.1085 | J10: 603841.7157 | K10: 11829.51326 | L10: 11829.51326 | AB10: 555841.3784 | AC10: 12228.51033 | AD10: 35438.16208
A11: 2024 | B11: 586536.1094 | C11: =+C10*D11/D10-C10*C$4 -> 607079.6294 | D11: =+Motori!BC14 -> 625809.5612 | E11: 9971.11386 | F11: 37623.41886 | G11: 3817.438323 | H11: 14071.74274 | I11: 593007.8867 | J11: 642541.301 | K11: 16731.73983 | L11: 16731.73983 | AB11: 575345.2722 | AC11: 12657.59599 | AD11: 48095.75806
A12: 2025 | B12: 609840.3044 | C12: 640306.252 | D12: =+Motori!BC15 -> 661312.9276 | E12: 10367.28517 | F12: 47990.70403 | G12: 4034.008859 | H12: 18105.7516 | I12: 622200.5004 | J12: 683491.68 | K12: 22178.75236 | L12: 22178.75236 | AB12: 595328.1076 | AC12: 13097.21837 | AD12: 61192.97643
A13: 2026 | B13: 633871.9663 | C13: 675143.0636 | D13: =+Motori!BC16 -> 698615.2644 | E13: 10775.82343 | F13: 58766.52746 | G13: 4261.553113 | H13: 22367.30471 | I13: 652775.7589 | J13: 726829.484 | K13: 28214.21955 | L13: 28214.21955 | AB13: 615811.2544 | AC13: 13547.8476 | AD13: 74740.82403
A14: 2027 | B14: 658662.9398 | C14: 711675.3113 | D14: =+Motori!BC17 -> 737814.8324 | E14: 11197.26998 | F14: 69963.79744 | G14: 4500.670478 | H14: 26867.97519 | I14: 684807.3361 | J14: 772699.9689 | K14: 34885.13652 | L14: 34885.13652 | AB14: 636816.8103 | AC14: 14009.96983 | AD14: 88750.79385
A15: 2028 | B15: 684246.3794 | C15: 749992.9593 | D15: =+Motori!BC18 -> 779015.5004 | E15: 11632.18845 | F15: 81595.98589 | G15: 4751.994552 | H15: 31619.96974 | I15: 718372.9895 | J15: 821257.5741 | K15: 42242.07375 | L15: 42242.07375 | AB15: 658367.63 | AC15: 14484.08786 | AD15: 103234.8817
A16: 2029 | B16: 710656.8059 | C16: 790190.9556 | D16: =+Motori!BC19 -> 822327.0729 | E16: 12081.1657 | F16: 93677.15159 | G16: 5016.195145 | H16: 36636.16489 | I16: 753554.7907 | J16: 872666.5174 | K16: 50339.44447 | L16: 50339.44447 | AB16: 680487.3547 | AC16: 14970.7218 | AD16: 118205.6035
A17: 2030 | B17: 737930.1649 | C17: 832369.5149 | D17: =+Motori!BC20 -> 867865.6378 | E17: 12544.8128 | F17: 106221.9644 | G17: 5293.980391 | H17: 41930.14528 | I17: 790439.3696 | J17: 927101.4295 | K17: 59235.7917 | L17: 59235.7917 | AB17: 703200.4433 | AC17: 15470.40975 | AD17: 133676.0133
A18: 2031 | B18: 766103.8878 | C18: 876634.4173 | D18: =+Motori!BC21 -> 915753.9336 | E18: 13023.76609 | F18: 119245.7305 | G18: 5586.098995 | H18: 47516.24427 | I18: 829118.173 | J18: 984748.0301 | K18: 68994.09651 | L18: 68994.09651 | AB18: 726532.2045 | AC18: 15983.7085 | AD18: 149659.7218
A19: 2032 | B19: 795216.9562 | C19: 923097.3238 | D19: =+Motori!BC22 -> 966121.7395 | E19: 13518.68826 | F19: 132764.4187 | G19: 5893.342611 | H19: 53409.58688 | I19: 869687.7369 | J19: 1045803.848 | K19: 79682.10896 | L19: 79682.10896 | AB19: 750508.8301 | AC19: 16511.19426 | AD19: 166170.916
A20: 2033 | B20: 825309.968 | C20: 971876.1105 | D20: =+Motori!BC23 -> 1019106.288 | E20: 14030.26946 | F20: 146794.6882 | G20: 6216.548358 | H20: 59626.13524 | I20: 912249.9752 | J20: 1110478.992 | K20: 91372.70337 | L20: 91372.70337 | AB20: 775157.4296 | AC20: 17053.46345 | AD20: 183224.3795
A21: 2034 | B21: 856425.207 | C21: 1023095.222 | D21: =+Motori!BC24 -> 1074852.703 | E21: 14559.22852 | F21: 161353.9167 | G21: 6556.601486 | H21: 66182.73673 | I21: 956912.485 | J21: 1178996.962 | K21: 104144.2598 | L21: 104144.2598 | AB21: 800506.0668 | AC21: 17611.13347 | AD21: 200835.513
A22: 2035 | B22: 888606.7156 | C22: 1076886.044 | D22: =+Motori!BC25 -> 1133514.46 | E22: 15106.31416 | F22: 176460.2309 | G22: 6914.438205 | H22: 73097.17493 | I22: 1003788.869 | J22: 1251595.533 | K22: 118081.0734 | L22: 118081.0734 | AB22: 826583.7963 | AC22: 18184.84352 | AD22: 219020.3565
A23: 2036 | B23: 921900.3699 | C23: 1133387.298 | D23: =+Motori!BC26 -> 1195253.881 | E23: 15672.30629 | F23: 192132.5372 | G23: 7291.048674 | H23: 80388.22361 | I23: 1052999.075 | J23: 1328527.675 | K23: 133273.7941 | L23: 133273.7941 | AB23: 853420.7032 | AC23: 18775.25547 | AD23: 237795.6119
A24: 2037 | B24: 956353.9594 | C24: 1192745.462 | D24: =+Motori!BC27 -> 1260242.651 | E24: 16258.01731 | F24: 208390.5545 | G24: 7687.480173 | H24: 88075.70378 | I24: 1104669.758 | J24: 1410062.549 | K24: 149819.8981 | L24: 149819.8981 | AB24: 881047.9427 | AC24: 19383.05474 | AD24: 257178.6667
A25: 2038 | B25: 992017.2685 | C25: 1255115.207 | D25: =+Motori!BC28 -> 1328662.371 | E25: 16864.29356 | F25: 225254.848 | G25: 8104.840464 | H25: 96180.54424 | I25: 1158934.663 | J25: 1496486.566 | K25: 167824.1945 | L25: 167824.1945 | AB25: 909497.7821 | AC25: 20008.95121 | AD25: 277187.6179
A26: 2039 | B26: 1028942.162 | C26: 1320659.868 | D26: =+Motori!BC29 -> 1400705.139 | E26: 17492.01676 | F26: 242746.8648 | G26: 8544.301346 | H26: 104724.8456 | I26: 1215935.022 | J26: 1588104.507 | K26: 187399.3685 | L26: 187399.3685 | AB26: 938803.6445 | AC26: 20653.68018 | AD26: 297841.2981
A27: 2040 | B27: 1067182.677 | C27: 1389551.935 | D27: =+Motori!BC30 -> 1476574.168 | E27: 18142.10551 | F27: 260888.9703 | G27: 9007.102424 | H27: 113731.948 | I27: 1275819.987 | J27: 1685240.733 | K27: 208666.5648 | L27: 208666.5648 | AB27: 969000.1535 | AC27: 21318.00338 | AD27: 319159.3014
A28: 2041 | B28: 1106795.112 | C28: 1461973.577 | D28: =+Motori!BC31 -> 1556484.444 | E28: 18815.5169 | F28: 279704.4872 | G28: 9494.555109 | H28: 123226.5031 | I28: 1338747.074 | J28: 1788240.457 | K28: 231756.0134 | L28: 231756.0134 | AB28: 1000123.18 | AC28: 22002.70996 | AD28: 341162.0114
A29: 2042 | B29: 1147838.128 | C29: 1538117.194 | D29: =+Motori!BC32 -> 1640663.416 | E29: 19513.24817 | F29: 299217.7354 | G29: 10008.04684 | H29: 133234.55 | I29: 1404882.644 | J29: 1897471.118 | K29: 256807.7011 | L29: 256807.7011 | AB29: 1032209.89 | AC29: 22708.61759 | AD29: 363870.629
A30: 2043 | B30: 1190372.848 | C30: 1618185.999 | D30: =+Motori!BC33 -> 1729351.734 | E30: 20236.33842 | F30: 319454.0738 | G30: 10549.04558 | H30: 143783.5955 | I30: 1474402.404 | J30: 2013323.826 | K30: 283972.0924 | L30: 283972.0924 | AB30: 1065298.798 | AC30: 23436.57355 | AD30: 387307.2025
A31: 2044 | B31: 1234462.965 | C31: 1702394.64 | D31: =+Motori!BC34 -> 1822804.022 | E31: 20985.8704 | F31: 340439.9442 | G31: 11119.10453 | H31: 154902.7001 | I31: 1547491.94 | J31: 2136214.925 | K31: 313410.9025 | L31: 313410.9025 | AB31: 1099429.814 | AC31: 24187.4559 | AD31: 411494.6584
A32: 2045 | B32: 1251555.233 | C32: 1751501.77 | D32: =+Motori!BC35 -> 1879030.078 | E32: 21276.43896 | F32: 361716.3832 | G32: 11462.08348 | H32: 166364.7836 | I32: 1585136.986 | J32: 2217061.931 | K32: 338031.8527 | L32: 338031.8527 | AB32: 1109155.275 | AC32: 24401.41606 | AD32: 435896.0745
A33: 2046 | B33: 1269582.583 | C33: 1803002.856 | D33: =+Motori!BC36 -> 1938039.062 | E33: 21582.90392 | F33: 383299.2871 | G33: 11822.03828 | H33: 178186.8218 | I33: 1624816.034 | J33: 2302205.887 | K33: 364166.8247 | L33: 364166.8247 | AB33: 1119585.726 | AC33: 24630.88598 | AD33: 460526.9605
A34: 2047 | B34: 1288576.689 | C34: 1857022.456 | D34: =+Motori!BC37 -> 1999980.547 | E34: 21905.80372 | F34: 405205.0908 | G34: 12199.88134 | H34: 190386.7032 | I34: 1666635.753 | J34: 2391901.914 | K34: 391921.3676 | L34: 391921.3676 | AB34: 1130737.815 | AC34: 24876.23192 | AD34: 485403.1924
A35: 2048 | B35: 1308570.662 | C35: 1913691.954 | D35: =+Motori!BC38 -> 2065012.562 | E35: 22245.70126 | F35: 427450.7921 | G35: 12596.57663 | H35: 202983.2798 | I35: 1710708.674 | J35: 2486421.085 | K35: 421408.5231 | L35: 421408.5231 | AB35: 1142629.02 | AC35: 25137.83843 | AD35: 510541.0308
A36: =+A35+1 -> 2049 | B36: 1329599.111 | C36: 1973149.951 | D36: =+Motori!BC39 -> 2133302.083 | E36: 22603.18489 | F36: 450053.977 | G36: 13013.1427 | H36: 215996.4225 | I36: 1757153.529 | J36: 2586051.442 | K36: 452749.3598 | L36: 452749.3598 | AB36: 1155277.677 | AC36: 25416.10889 | AD36: 535957.1397
A37: =+A36+1 -> 2050 | B37: 1351698.205 | C37: 2035542.669 | D37: =+Motori!BC40 -> 2205025.554 | E37: 22978.86948 | F37: 473032.8464 | G37: 13450.65588 | H37: 229447.0784 | I37: 1806095.59 | J37: 2691099.101 | K37: 486073.5472 | L37: =+J37-D37 -> 486073.5472 | AB37: 1168703.008 | AC37: 25711.46618 | AD37: 561668.6059
B39: TOTALE 0 Commissioni | C39: Perdita di opportunità | D39: Totale DIAMAN | E39: TOTALE D+A | G39: TOTALE 0 Commissioni | H39: Perdita di opportunità | I39: Totale Intermediario | J39: Totale cliente | AB39: TOTALE 0 Commissioni | AC39: TOTALE D+A
A40: 10 anni | B40: =+J17 -> 927101.4295 | C40: =+B40-D40-E40 -> 77426.26817 | D40: =+K17 -> 59235.7917 | E40: =+I17 -> 790439.3696 | G40: =+B40 -> 927101.4295 | H40: =+G40-J40-I40 -> 82949.30023 | I40: =+F17 -> 106221.9644 | J40: =+B17 -> 737930.1649 | AB40: =+AK17 -> 0 | AC40: =+AG17 -> 0
A41: 20 anni | B41: =+J27 -> 1685240.733 | C41: 200754.1812 | D41: =+K27 -> 208666.5648 | E41: =+I27 -> 1275819.987 | G41: =+B41 -> 1685240.733 | H41: =+G41-J41-I41 -> 357169.0854 | I41: =+F27 -> 260888.9703 | J41: =+B27 -> 1067182.677 | AB41: =+AK27 -> 0 | AC41: =+AG27 -> 0
A42: 30 anni | B42: =+J37 -> 2691099.101 | C42: =+B42-D42-E42 -> 398929.9637 | D42: =+K37 -> 486073.5472 | E42: =+I37 -> 1806095.59 | G42: 2691099.101 | H42: 866368.0499 | I42: =+F37 -> 473032.8464 | J42: =+B37 -> 1351698.205 | AB42: =+AK37 -> 0 | AC42: =+AG37 -> 0
A44: RISPARMIO A 10 ANNI | B44: =+I48-D40 -> 74440.22157 | AB44: =+AJ48-AE40 -> 0
A45: RISPARMIO A 20 ANNI | B45: =+I49-C41 -> 118405.1202 | AB45: =+AJ49-AD41 -> 0
A46: RISPARMIO A 30 ANNI | B46: =+I50-D42 -> 75595.05874 | G46: FISSO A 2,5% | AB46: =+AJ50-AE42 -> 0
G47: TOTALE 0 Commissioni | H47: Perdita di opportunità | I47: Totale Intermediario | J47: Totale cliente
A48: GUADAGNO A 10 ANNI | B48: =+E40-J48 -> 52509.20476 | G48: =+G40 -> 927101.4295 | H48: =+G48-J48-I48 -> 55495.25136 | I48: =+AD17 -> 133676.0133 | J48: =+J40 -> 737930.1649 | AB48: =+AI48-AD40 -> 0
A49: GUADAGNO A 20 ANNI | B49: =+E41-J49 -> 208637.3097 | G49: =+G41 -> 1685240.733 | H49: =+G49-J49-I49 -> 298898.7543 | I49: =+AD27 -> 319159.3014 | J49: =+J41 -> 1067182.677 | AB49: =+AI49-AD41 -> 0
A50: GUADAGNO A 20 ANNI | B50: =+E42-J50 -> 454397.3855 | G50: =+G42 -> 2691099.101 | H50: 777732.2904 | I50: =+AD37 -> 561668.6059 | J50: =+J42 -> 1351698.205 | AB50: =+AI50-AD42 -> 0
A60: Totale Mercato | B60: 3233994.432 | C60: 3233994.432 | AB60: 3233994.432
A61: Totale | B61: =+B57 -> 0 | C61: =+C57 -> 0 | AB61: =+AB57 -> 0
A62: Costi sostenuti | B62: =+M58 -> 0 | C62: =+N58 -> 0 | AB62: =+AN58 -> 0
A63: Perdita di opportunità | B63: =+B61-B60 -> -3233994.432 | C63: =-(+C61-C60) -> 3233994.432 | AB63: =+AB61-AB60 -> -3233994.432
A65: Guadagno | B65: 0 | C65: =+C61 -> 0 | AB65: 0
A66: Costi | B66: =+B62 -> 0 | C66: 0 | AB66: =+AB62 -> 0
A67: Mercato | B67: =+B60 -> 3233994.432 | C67: =+C63-C66 -> 3233994.432 | AB67: =+AB60 -> 3233994.432
B70: 0.5% - 0.5% | C70: 0.5% - 1% | AB70: 0.5% - 0.5%
A71: Totale Mercato | B71: 3233994.432 | C71: 3233994.432 | AB71: 3233994.432
A72: Totale | B72: =+C61-B73 -> 0 | C72: =+D61-C73 -> 0 | AB72: =+AD61-AB73 -> 0
A73: Costi sostenuti | B73: =+W58 -> 0 | C73: =+B73 -> 0 | AB73: =+AX58 -> 0
A74: Totale costi | B74: =+C62 -> 0 | C74: =+D62 -> 0 | AB74: =+AD62 -> 0
A75: Perdita di opportunità | B75: =+B72-B71 -> -3233994.432 | C75: =+C72-C71 -> -3233994.432 | AB75: =+AB72-AB71 -> -3233994.432
A79: Portafoglio ideale | B79: 0.2 | C79: 0.015 | AB79: 0.2
B80: 0.6 | C80: 0.01 | AB80: 0.6
B81: 0.2 | C81: 0.006 | AB81: 0.2
B84: 0.01 | C84: 0.5% - 0.5% | AB84: 0.01
A85: Guadagno | B85: 2024071.442 | C85: =+B72 -> 0 | AB85: 2024071.442
A86: Costi | B86: 330574.8179 | C86: =+B73+B74 -> 0 | AB86: 330574.8179
A87: Perso | B87: 879348.1726 | C87: =-B75-B73-B74 -> 3233994.432 | AB87: 879348.1726
B90: 0.02 | C90: 1% - 1% | AB90: 0.02
A91: Guadagno | B91: 1261208.796 | C91: =+G72 -> 0 | AB91: 1261208.796
A92: Costi | B92: 471842.9435 | C92: =+G73+G74 -> 0 | AB92: 471842.9435
A93: Perso | B93: 1500942.693 | C93: =-G75-G74-G73 -> 0 | AB93: 1500942.693

Sheet 4-Caratteri-clienti (hidden)
B1: ATTIVI | C1: GUARDIANI | D1: IDEALISTI | E1: RAZIONALI
A2: Comportamento del cliente | B2: Ottimista, ma spesso troppo sicuro di se. Tollera le perdite, ma si prende troppi rischi. Problemi di autocontrollo e difficoltà di pianificare | C2: Ansioso, le perdite gli fanno perdere fiducia nel piano finanziario e nel consulente. Tendenza a inserire il rischio basso per sentirsi sicuro | D2: I mercati confondono e in generale preferisce non avere a che fare con questioni finanziarie. E' più preoccupato per la famiglia che per se stesso | E2: Il suo essere razionale lo porta ad essere scettico e a incolpare il consulente per non avere previsto crolli di mercato. Ricerca soluzioni complesse e ternde a rischiare molto
A4: Rischio | B4: Razionali | C4: Attivi
A5: Protezione | B5: Guardiani | C5: Idealisti
